Workbook

Sheet TitlePage
A1: Title page
C6: Rozol Prairie Dog Bait, Hand Baiting :Chlorophacinone
I16: SERA XLS-056-10-03a
E17: WorksheetMaker Version | F17: 6.00.13
A51: 2015-07-26

Sheet Disclaimer
A1: DISCLAIMER

Sheet General Notes
A1: General Notes
B2: Prepared by: | C2: Patrick R. Durkin
B3: Program Version: | C3: 6.00.13
B4: Database Used: | C4: FS WsMkr V06-00-01.mdb
B5: Template Workbook: | C5: FS WsMkr V06-00-01.mdb
B6: Base Workbook: | C6: FS WSMkr Blank V06-00-01.xlsm
A8: Color Codes in WorksheetMaker
A13: Color Codes used in Workbook for Front Matter, Data and Calculation Worksheets
B14: Green shading | C14: This is a default value or a user specified a value. You can change these values as you see fit but you should have a reason for doing so.
B15: Yellow shading | C15: This is a source for a link in other parts of the workbook. If you have good reason to change the value, you should note the change (with your reason) in the “Revisions” page.
B16: Blue shading | C16: This cell is linked to another cell in the workbook. Do not change this value. If you change any of these values, the workbook may not update correctly.
B17: Blue shading blue border | C17: This cell is linked to a Program parameter in Worksheet A01. Do not change this value. If you want the value to change, go to Worksheet A01 and change the value in that worksheet.
B18: Purple Shading | C18: Indicates (for information only) that the typical of order of Lower and Upper values is intentionally reversed. This is only used in the second (label) column.
B19: Italics, no shading | C19: The value in this cell is generated by a formula (the number that you see is the result of an equation). This cell is linked only to other cells in the worksheet. Do not change this value.
A25: Color Codes used in Workbook for Risk Characterization Worksheets
B26: HQ ≥ 2 | C26: For hazard quotient greater than 2, the number is in bold font with a red background and rounded to the nearest integer.
B27: HQ > 1 but < 2 | C27: For hazard quotient greater than 1 but less than two, the number is in bold font with a white background and rounded to one significant place after the decimal.
B28: HQ ≥ 0.1 but <1 | C28: For hazard quotient greater than 0.1 but less than one, the number is in regular font with a white background and rounded to one significant place after the decimal.
B29: HQ < 0.1 | C29: For hazard quotient less than 0.1, the number is in regular font with a white background. The number is expressed in scientific notation and rounded to one significant place -- e.g., 2E-02 rather than 0.02.
B55: Prepared by: | C55: Patrick R. Durkin
B56: Program Version: | C56: 6.00.13
B57: Database Used: | C57: FS WsMkr V06-00-01.mdb
B58: Template Workbook: | C58: FS WsMkr V06-00-01.mdb
B59: Base Workbook: | C59: FS WSMkr Blank V06-00-01.xlsm

Sheet Chemical Notes
A1: Chemical specific notes
A2: Risk Assessment: | D2: SERA TR-056-10-02a
A3: Report Date: | D3: October, 2014
A6: The area below is an embedded MS Word Document. Add chemical-specific notes as appropriate.

Sheet Revisions
A1: Revision Histroy
A8: The area below is an embedded MS Word Document. Add revision notes as appropriate.

Sheet Contents
B1: Table of Contents | C1: Toc
A2: Work-sheet No. | B2: Worksheet Title
A3: TitlePage | B3: Title page
A4: Disclaimer | B4: DISCLAIMER
A5: General Notes | B5: General Notes
A6: Chemical Notes | B6: Chemical specific notes
A7: Revisions | B7: Revision Histroy
A8: Contents
A9: A01 | B9: Program Data: Application rate, concentration in formulation, and amounts handled by workers
A10: A02a | B10: General reference values and exposure factors used in worksheets.
A11: A02b | B11: General reference values and exposure factors used in worksheets.
A12: A02c | B12: General reference values and exposure factors used in worksheets.
A13: A02d | B13: General reference values and exposure factors used in worksheets.
A14: A03 | B14: Food items for terrestrial animals
A15: B01 | B15: Chemical and Physical Properties for Chlorophacinone
A16: B02 | B16: Toxicity values for Chlorophacinone
A17: B03a | B17: Calculation of Zero-Order Dermal Permeability Rate (Kp) in cm/hour
A18: B03b | B18: Calculation of First-Order Dermal Absorption Rate
A19: B04Rt | B19: Estimates of Water Contamination Rates -- i.e., the concentration in ambient water per pound applied per acre
A20: B04a | B20: Expected Concentrations in Surface Water
A21: B04b | B21: Pond: Concentration of pesticide (granular formulation) in pond water after an accidental spill
A22: C01a | B22: Exposure estimates based on Pesticide Handlers Exposure Database (PHED) Method
A23: C01b | B23: Exposure estimates based on Pesticide Handlers Exposure Database (PHED) Method
A24: C02a | B24: Dermal Exposure Assessment for a Granular Exposure Using Zero-Order Absorption, Worker, Surface Area, Hands, for 1 minute(s)
A25: C02b | B25: Dermal Exposure Assessment for a Granular Exposure Using Zero-Order Absorption, Worker, Surface Area, Hands, for 60 minute(s)
A26: C02c | B26: Dermal Exposure Assessment for a Granular Exposure Using Zero-Order Absorption, Worker, Surface Area, Hands, for 480 minute(s)
A27: D01 | B27: Consumption of Bait by a Small Child
A28: D02 | B28: Consumption of contaminated water by Child, Accidental Spill
A29: D03a | B29: Consumption of Contaminated Fish (Accidental Spill), Adult Male, acute exposure
A30: D03b | B30: Consumption of Contaminated Fish (Accidental Spill), Subsistence Populations, acute exposure
A31: D04 | B31: Swimming Exposure Assessment Using Zero-Order Absorption, Adult Female, Surface Area, Whole body, for 60 minute(s)
A32: D05 | B32: Consumption of contaminated water by Child, Peak Conentrations
A33: D06a | B33: Consumption of Contaminated Fish (Peak Exposure), Adult Male, acute exposure
A34: D06b | B34: Consumption of Contaminated Fish (Peak Exposure), Subsistence Populations, acute exposure
A35: D07 | B35: Consumption of contaminated water by Adult Male, Longer-term Conentrations
A36: D08a | B36: Consumption of Contaminated Fish (Longer-term), Adult Male, chronic exposure
A37: D08b | B37: Consumption of Contaminated Fish (Longer-term), Subsistence Populations, chronic exposure
A38: E01 | B38: Worksheet E01: Summary of Worker Exposure Assessments
A39: E02 | B39: Worksheet E01: Summary of Worker Hazard Quotients (Toxicity)
A40: E03 | B40: Worksheet E03: Summary of Exposure Assessments for the General Public
A41: E04 | B41: Worksheet E03: Summary of Hazard Quotients (Toxicity) for the General Public
A42: F01a | B42: Consumption of Contaminated Bait, Mouse, Accidental Spill
A43: F01b | B43: Consumption of Contaminated Bait, Squirrel, Accidental Spill
A44: F01c | B44: Consumption of Contaminated Bait, Passerine, Accidental Spill
A45: F01d | B45: Consumption of Contaminated Bait, Mallard, Accidental Spill
A46: F01e | B46: Consumption of Contaminated Bait, Pigeon, Accidental Spill
A47: F01f | B47: Consumption of Contaminated Bait, Quail, Accidental Spill
A48: F01g | B48: Consumption of Contaminated Bait, Deer, Accidental Spill
A49: F02a | B49: Consumption of Contaminated Bait, Mouse, Misapplication
A50: F02b | B50: Consumption of Contaminated Bait, Squirrel, Misapplication
A51: F02c | B51: Consumption of Contaminated Bait, Skunk, Misapplication
A52: F02d | B52: Consumption of Contaminated Bait, Passerine, Misapplication
A53: F02e | B53: Consumption of Contaminated Bait, Mallard, Misapllication
A54: F02f | B54: Consumption of Contaminated Bait, Pigeon, Misapplication
A55: F02g | B55: Consumption of Contaminated Bait, Quail, Misapplication
A56: F03a | B56: Acute exposure of Small Mammal after an accidental spill of the pesticide into a pond
A57: F03b | B57: Acute exposure of Canid after an accidental spill of the pesticide into a pond
A58: F03c | B58: Acute exposure of Large Mammal after an accidental spill of the pesticide into a pond
A59: F03d | B59: Acute exposure of Small Passerine after an accidental spill of the pesticide into a pond
A60: F03e | B60: Acute exposure of Canada Goose after an accidental spill of the pesticide into a pond
A61: F04a | B61: Acute scenario for the consumption of Contaminated Fish ( Accidental Spill) by Bird, piscivorous
A62: F04b | B62: Acute scenario for the consumption of Contaminated Fish (Peak) by Bird, piscivorous
A63: F04c | B63: Chronic scenario for the consumption of Contaminated Fish (Longer-term) by Bird, piscivorous
A64: F05a | B64: Consumption of Contaminated Bait, Mouse, Standard Application
A65: F05b | B65: Consumption of Contaminated Bait, Squirrel, Standard Application
A66: F05c | B66: Consumption of Contaminated Bait, Skunk, Standard Application
A67: F05d | B67: Consumption of Contaminated Bait, Passerine, Standard Application
A68: F05e | B68: Consumption of Contaminated Bait, Mallard, Standard Application
A69: F05f | B69: Consumption of Contaminated Bait, Pigeon, Standard Application
A70: F05g | B70: Consumption of Contaminated Bait, Quail, Standard Application
A71: F06a | B71: Consumption of contaminated water by Mammal, small, Peak Concentrations
A72: F06b | B72: Consumption of contaminated water by Mammal, carnivorous, Peak Concentrations
A73: F06c | B73: Consumption of contaminated water by Mammal, large, Peak Concentrations
A74: F06d | B74: Consumption of contaminated water by Bird, small, Peak ConcentrationsT
A75: F06e | B75: Consumption of contaminated water by Bird, large, Peak Concentrations
A76: F07a | B76: Consumption of contaminated water by Mammal, small, Longer-term Concentrations
A77: F07b | B77: Consumption of contaminated water by Mammal, carnivorous, Longer-term Concentrations
A78: F07c | B78: Consumption of contaminated water by Mammal, large, Longer-term Concentrations
A79: F07d | B79: Consumption of contaminated water by Bird, small, Longer-term Concentrations
A80: F07e | B80: Consumption of contaminated water by Bird, large, Longer-term Concentrations
A81: F08 | B81: Consumption of bait by a bear
A82: F09a | B82: Consumption of Poisoned Gopher by a Coyete
A83: F09b | B83: Consumption of Poisoned Prairie Dog by a Badger
A84: F09c | B84: Consumption of Poisoned Prairie Dog by a Mink
A85: F09d | B85: Consumption of Poisoned Prairie Dog by a Owl
A86: F09e | B86: Consumption of Poisoned Prairie Dog by a Snake
A87: F10a | B87: Consumption of Contaminated Contaminated Insects by Mouse
A88: F10b | B88: Consumption of Contaminated Contaminated Insects by Small bird
A89: F10c | B89: Consumption of Contaminated Contaminated Insects by Bullfrog
A90: G01 | B90: Summary of Rodenticide Exposure Assessments for the Terrestrial Animals
A91: G02 | B91: Summary of Rodenticide Hazard Quotients (Toxicity) for the Terrestrial Animals
A92: G03 | B92: Worksheet G03: Summary of Hazard Quotients for Aquatic Species
A93: References | B93: References cited in workbook

Sheet A01
A1: Program Data: Application rate, concentration in formulation, and amounts handled by workers
A2: Parameter/Assumption | B2: Code / Range | C2: Equation/ Value | D2: Units | E2: Reference/ Equation
A3: % a.i. in Formulation | B3: a.i. | C3: 5e-05 | D3: percent | E3: Program Input
A4: Formulation Application Rate | B4: ApRtForm | C4: 12.5 | D4: lb formulation/acre | E4: Program Input
A5: Pounds of Formulation Handled by Each Worker Per Day | B5: WrkHndForm
B6: Central | C6: 1.5 | D6: lbs. formulation per day | E6: Program Input
B7: Lower | C7: 0.75 | E7: Program Input
B8: Upper | C8: 3 | E8: Program Input
A9: Do not change the red cells below.
A10: a.i. Application Rate | B10: ApRt | C10: =C4*C3 -> 0.000625 | D10: lb a.i./acre | E10: Eq
A11: Pounds of Formulation Handled by Each Worker Per Day | B11: WrkAmntHnd
B12: Central | C12: =C6*C$3 -> 7.5e-05 | D12: lbs. a.i. per day | E12: Eq
B13: Lower | C13: =C7*C$3 -> 3.75e-05 | E13: Eq
B14: Upper | C14: =C8*C$3 -> 0.00015 | E14: Eq
A15: Standard Values/Options for Scenarios (You can change the values below.)
A16: Surface area of pond for spill | B16: PondSA_M | C16: 1000 | D16: Sq. Meters | E16: Risk assessment.
A17: Pond depth | B17: PondDepthM | C17: 1 | D17: Meters | E17: Risk assessment.
A18: Stream flow rate for drift scenario | B18: StreamFlowLD | C18: 710000 | D18: Liters/day | E18: Risk assessment.
A19: Stream length for drift scenario | B19: StreamLengthFt | C19: 1038 | D19: Feet | E19: Risk assessment.
A20: Stream width for drift scenario | B20: StreamWidthFt | C20: 6 | D20: Feet | E20: Risk assessment.
A21: Duration for longer-term exposures | B21: SubChDays | C21: 90 | D21: Days | E21: Risk assessment.
A22: Duration for swimming scenarios | B22: SwimMin | C22: 60 | D22: Minutes | E22: Risk assessment.
A23: Toxic Equivalency Factor for formulation | B23: TEF
B24: Central | C24: 1 | E24: Risk assessment.
B25: Lower | C25: 1
B26: Upper | C26: 1
A27: Amount spilled into ponds | B27: PondSpillAmntLbs
B28: Central | C28: 0.0015 | D28: Lbs | E28: Risk assessment.
B29: Lower | C29: 0.001
B30: Upper | C30: 0.002
A31: Concentration in insect | B31: InsectRes
B32: Central | C32: 0.2 | D32: ug/g | E32: Risk assessment.
B33: Lower | C33: 0.07
B34: Upper | C34: 0.6
A35: Proportion of Contaminated diet for accidental spill scenario. | B35: InsectRes
B36: Central | C36: 0.3 | D36: unitless | E36: Risk assessment, Section 4.2.2.1.
B37: Lower | C37: 0.03
B38: Upper | C38: 1
A39: Proportion of Contaminated diet for accidental spill scenario. | B39: InsectRes
B40: Central | C40: 0.03 | D40: unitless | E40: Risk assessment, Section 4.2.2.2.
B41: Lower | C41: 0.003
B42: Upper | C42: 0.1

Sheet A02a
A1: General reference values and exposure factors used in worksheets.
A3: Receptor | B3: Factor | C3: Value | D3: Units | E3: Reference | F3: Reference Note
A4: Adult Female | B4: Body weight | C4: 64 | D4: kg | E4: U.S. EPA/ORD 1985 | F4: page 5, Table 2-2
A5: Adult Female | B5: Surface Area, Feet and lower Legs | C5: 2915 | D5: cm2 | E5: U.S. EPA/ORD 1992 | F5: p. 8-11, Table 8-3, total for feet and lower legs
A6: Adult Female | B6: Surface Area, Wearing shorts and T-shirt | C6: 5300 | D6: cm2 | E6: U.S. EPA/ORD 1992 | F6: p. 8-11, Table 8-3, total for arms, hands, lower legs, and feet.
A7: Adult Female | B7: Surface Area, Whole body | C7: 16900 | D7: cm2 | E7: U.S. EPA/ORD 1997 | F7: p. 6-13, Table 6-3, whole body, 50th percentile
A8: Adult Male | B8: Body weight | C8: 70 | D8: kg | E8: ICRP 1975 | F8: p. 13.
A9: Subsistence Populations | B9: Body weight | C9: 70 | D9: kg | E9: ICRP 1975 | F9: p. 13
A10: Worker, Aerial Spray | B10: Absorbed dose rate, central estimate | C10: 3e-05 | D10: (mg/kg bw)/(lbs handled per day) | E10: SERA 2007 | F10: Acres treated per hour
A11: Worker, Aerial Spray | B11: Absorbed dose rate, lower range | C11: 1e-06 | D11: (mg/kg bw)/(lbs handled per day) | E11: SERA 2007 | F11: Acres treated per hour
A12: Worker, Aerial Spray | B12: Absorbed dose rate, upper range | C12: 0.0001 | D12: (mg/kg bw)/(lbs handled per day) | E12: SERA 2007 | F12: Acres treated per hour
A13: Worker, Aerial Spray | B13: Hours of application per day, central estimate | C13: 7 | D13: Hours per day | E13: USDA 1989a | F13: N/A
A14: Worker, Aerial Spray | B14: Hours of application per day, lower range | C14: 6 | D14: Hours per day | E14: USDA 1989a | F14: N/A
A15: Worker, Aerial Spray | B15: Hours of application per day, upper range | C15: 8 | D15: Hours per day | E15: USDA 1989a | F15: N/A
A16: Worker, Aerial Spray | B16: Acres treated per hour, central estimate | C16: 70 | D16: acres/hour | E16: USDA 1989a | F16: Acres treated per hour
A17: Worker, Aerial Spray | B17: Acres treated per hour, lower range | C17: 40 | D17: acres/hour | E17: USDA 1989a | F17: Acres treated per hour
A18: Worker, Aerial Spray | B18: Acres treated per hour, upper range | C18: 100 | D18: acres/hour | E18: USDA 1989a | F18: Acres treated per hour
A19: Worker, Backpack | B19: Absorbed dose rate, central estimate | C19: 0.003 | D19: (mg/kg bw)/(lbs handled per day) | E19: SERA 2007 | F19: Acres treated per hour
A20: Worker, Backpack | B20: Absorbed dose rate, lower range | C20: 0.0003 | D20: (mg/kg bw)/(lbs handled per day) | E20: SERA 2007 | F20: Acres treated per hour
A21: Worker, Backpack | B21: Absorbed dose rate, upper range | C21: 0.01 | D21: (mg/kg bw)/(lbs handled per day) | E21: SERA 2007 | F21: Acres treated per hour
A22: Worker, Backpack | B22: Hours of application per day, central estimate | C22: 7 | D22: Hours per day | E22: USDA 1989a | F22: N/A
A23: Worker, Backpack | B23: Hours of application per day, lower range | C23: 6 | D23: Hours per day | E23: USDA 1989a | F23: N/A
A24: Worker, Backpack | B24: Hours of application per day, upper range | C24: 8 | D24: Hours per day | E24: USDA 1989a | F24: N/A
A25: Worker, Backpack | B25: Acres treated per hour, central estimate | C25: 0.625 | D25: acres/hour | E25: USDA 1989a | F25: Acres treated per hour
A26: Worker, Backpack | B26: Acres treated per hour, lower range | C26: 0.25 | D26: acres/hour | E26: USDA 1989a | F26: Acres treated per hour
A27: Worker, Backpack | B27: Acres treated per hour, upper range | C27: 1 | D27: acres/hour | E27: USDA 1989a | F27: Acres treated per hour
A28: Child | B28: Body weight | C28: 13.3 | D28: kg | E28: U.S. EPA/ORD 1996 | F28: p. 7-1, Table 7-2
A29: Child | B29: Surface Area, Whole body | C29: 6030 | D29: cm2 | E29: U.S. EPA/ORD 1996 | F29: p. 6-15, Table 6-6, 50th percentile.
A30: Worker, Ground Spray | B30: Absorbed dose rate, central estimate | C30: 0.0002 | D30: (mg/kg bw)/(lbs handled per day) | E30: SERA 2007 | F30: Acres treated per hour
A31: Worker, Ground Spray | B31: Absorbed dose rate, lower range | C31: 1e-05 | D31: (mg/kg bw)/(lbs handled per day) | E31: SERA 2007 | F31: Acres treated per hour
A32: Worker, Ground Spray | B32: Absorbed dose rate, upper range | C32: 0.0009 | D32: (mg/kg bw)/(lbs handled per day) | E32: SERA 2007 | F32: Acres treated per hour
A33: Worker, Ground Spray | B33: Hours of application per day, central estimate | C33: 7 | D33: Hours per day | E33: USDA 1989a | F33: N/A
A34: Worker, Ground Spray | B34: Hours of application per day, lower range | C34: 6 | D34: Hours per day | E34: USDA 1989a | F34: N/A
A35: Worker, Ground Spray | B35: Hours of application per day, upper range | C35: 8 | D35: Hours per day | E35: USDA 1989a | F35: N/A
A36: Worker, Ground Spray | B36: Acres treated per hour, central estimate | C36: 16 | D36: acres/hour | E36: USDA 1989a | F36: Acres treated per hour
A37: Worker, Ground Spray | B37: Acres treated per hour, lower range | C37: 11 | D37: acres/hour | E37: USDA 1989a | F37: Acres treated per hour
A38: Worker, Ground Spray | B38: Acres treated per hour, upper range | C38: 21 | D38: acres/hour | E38: USDA 1989a | F38: Acres treated per hour
A39: Worker | B39: Body weight | C39: 70 | D39: kg | E39: ICRP 1975 | F39: p. 13
A40: Worker | B40: Surface Area, Hands | C40: 840 | D40: cm2 | E40: U.S. EPA/ORD 1992 | F40: p. 8-11
A41: Worker | B41: Surface Area, Lower legs | C41: 2070 | D41: cm2 | E41: U.S. EPA/ORD 1992 | F41: p. 8-11

Sheet A02b
A1: General reference values and exposure factors used in worksheets.
A3: Receptor | B3: Factor | C3: Value | D3: Units | E3: Reference | F3: Reference Note
A4: Amphibian | B4: Kilocalories, alpha parameter for allometric equation | C4: 0.054 | D4: BW(g),Kcal (kcal/day) | E4: U.S. EPA/ORD 1993 | F4: p. 3-7, equation 3-14
A5: Amphibian | B5: Kilocalories, beta parameter for allometric equation | C5: 0.799 | D5: BW(g),Kcal (kcal/day) | E5: U.S. EPA/ORD 1993 | F5: p. 3-7, equation 3-14
A6: Amphibian, bull frog | B6: Food consumption, alpha parameter for allometric equation | C6: 1.09 | D6: BW(g),FC(g) | E6: SERA 2010 | F6: Figure 15
A7: Amphibian, bull frog | B7: Food consumption, beta parameter for allometric equation | C7: 0.1723 | D7: BW(g),FC(g) | E7: SERA 2010 | F7: Figure 15
A8: Bird, NOS | B8: Food consumption, alpha parameter for allometric equation | C8: 0.648 | D8: BW(g),FC(g) | E8: U.S. EPA/ORD 1993 | F8: Eq. 3-3, p. 3-4, all birds
A9: Bird, NOS | B9: Food consumption, beta parameter for allometric equation | C9: 0.651 | D9: BW(g),FC(g) | E9: U.S. EPA/ORD 1993 | F9: Eq. 3-3, p. 3-4, all birds
A10: Bird, carnivorous | B10: Body weight | C10: 0.64 | D10: kg | E10: Dunning 1993 | F10: p. 97. Female Spotted Owl (Strix occidentalis). Range of 548 to 760 g.
A11: Bird, carnivorous | B11: Kilocalories, alpha parameter for allometric equation | C11: 1.146 | D11: BW(g),KCal(kcal/day) | E11: U.S. EPA/ORD 1993 | F11: Eq. 3-37, nonpasserines
A12: Bird, carnivorous | B12: Kilocalories, beta parameter for allometric equation | C12: 0.749 | D12: BW(g),KCal(kcal/day) | E12: U.S. EPA/ORD 1993 | F12: Eq. 3-37, nonpasserines
A13: Bird, carnivorous | B13: Water consumption, alpha parameter for allometric equation | C13: 0.059 | D13: BW(kg), WC(L) | E13: U.S. EPA/ORD 1993 | F13: Eq. 3-15, p. 3-8
A14: Bird, carnivorous | B14: Water consumption, beta parameter for allometric equation | C14: 0.67 | D14: BW(kg), WC(L) | E14: U.S. EPA/ORD 1993 | F14: Eq. 3-15, p. 3-8
A15: Bird, large | B15: Body weight | C15: 4 | D15: kg | E15: Default | F15: Canada goose
A16: Bird, large | B16: Kilocalories, alpha parameter for allometric equation | C16: 1.146 | D16: BW(g),KCal(kcal/day) | E16: U.S. EPA/ORD 1993 | F16: Eq. 3-37, non-passerines
A17: Bird, large | B17: Kilocalories, beta parameter for allometric equation | C17: 0.749 | D17: BW(g),KCal(kcal/day) | E17: U.S. EPA/ORD 1993 | F17: Eq. 3-37, non-passerines
A18: Bird, large | B18: Water consumption, alpha parameter for allometric equation | C18: 0.059 | D18: BW(kg), WC(L) | E18: U.S. EPA/ORD 1993 | F18: Eq. 3-15, p. 3-8
A19: Bird, large | B19: Water consumption, beta parameter for allometric equation | C19: 0.67 | D19: BW(kg), WC(L) | E19: U.S. EPA/ORD 1993 | F19: Eq. 3-15, p. 3-8
A20: Bird, non-Passerine | B20: Food consumption, alpha parameter for allometric equation | C20: 0.301 | D20: BW(g),FC(g) | E20: U.S. EPA/ORD 1993 | F20: Eq. 3-5, p. 3-5, non-passerines
A21: Bird, non-Passerine | B21: Food consumption, beta parameter for allometric equation | C21: 0.751 | D21: BW(g),FC(g) | E21: U.S. EPA/ORD 1993 | F21: Eq. 3-5, p. 3-5, non-passerines
A22: Bird, Passerine | B22: Food consumption, alpha parameter for allometric equation | C22: 0.398 | D22: BW(g),FC(g) | E22: U.S. EPA/ORD 1993 | F22: Eq. 3-4, p. 3-4, passerines
A23: Bird, Passerine | B23: Food consumption, beta parameter for allometric equation | C23: 0.85 | D23: BW(g),FC(g) | E23: U.S. EPA/ORD 1993 | F23: Eq. 3-4, p. 3-4, passerines
A24: Bird, piscivorous | B24: Body weight | C24: 2.4 | D24: kg | E24: Sibley 2000 | F24: p. 60. Great Blue Heron
A25: Bird, piscivorous | B25: Food consumption, alpha parameter for allometric equation | C25: 0.495 | D25: BW(g), FC(g) | E25: U.S. EPA/ORD 1993 | F25: Eq. 3-6, p. 3-5, seabird
A26: Bird, piscivorous | B26: Food consumption, beta parameter for allometric equation | C26: 0.704 | D26: BW(g), FC(g) | E26: U.S. EPA/ORD 1993 | F26: Eq. 3-6, p. 3-5, seabird
A27: Bird, piscivorous | B27: Kilocalories, alpha parameter for allometric equation | C27: 1.916 | D27: BW(g),KCal(kcal/day) | E27: U.S. EPA/ORD 1993 | F27: Eq. 3-38, p. 3-23, seabird
A28: Bird, piscivorous | B28: Kilocalories, beta parameter for allometric equation | C28: 0.704 | D28: BW(g),KCal(kcal/day) | E28: U.S. EPA/ORD 1993 | F28: Eq. 3-38, p. 3-23, seabird
A29: Bird, piscivorous | B29: Water consumption, alpha parameter for allometric equation | C29: 0.059 | D29: BW(kg), WC(L) | E29: U.S. EPA/ORD 1993 | F29: Eq. 3-15, p. 3-8
A30: Bird, piscivorous | B30: Water consumption, beta parameter for allometric equation | C30: 0.67 | D30: BW(kg), WC(L) | E30: U.S. EPA/ORD 1993 | F30: Eq. 3-15, p. 3-8
A31: Bird, small | B31: Body weight | C31: 0.01 | D31: kg | E31: Default | F31: N/A
A32: Bird, small | B32: Kilocalories, alpha parameter for allometric equation | C32: 3.12 | D32: BW(g),KCal(kcal/day) | E32: U.S. EPA/ORD 1993 | F32: Equation 3-36, passerines
A33: Bird, small | B33: Kilocalories, beta parameter for allometric equation | C33: 0.605 | D33: BW(g),KCal(kcal/day) | E33: U.S. EPA/ORD 1993 | F33: Equation 3-36, passerines
A34: Bird, small | B34: Water consumption, alpha parameter for allometric equation | C34: 0.059 | D34: BW(kg), WC(L) | E34: U.S. EPA/ORD 1993 | F34: Eq. 3-15, p. 3-8
A35: Bird, small | B35: Water consumption, beta parameter for allometric equation | C35: 0.67 | D35: BW(kg), WC(L) | E35: U.S. EPA/ORD 1993 | F35: Eq. 3-15, p. 3-8
A36: Honeybee | B36: Body weight | C36: 0.000116 | D36: kg | E36: Winston 1987 | F36: p. 54. Arithmetic average of range: 81 to 151 mg/bee.
A37: Honeybee | B37: Surface Area, Whole body | C37: 1.42 | D37: cm2 | E37: Humphery and Dykes 2008 | F37: Based on a bee with a body length of 1.44 cm.
A38: Mammal, Nos | B38: Food consumption, alpha parameter for allometric equation | C38: 0.235 | D38: BW(g),FC(g) | E38: U.S. EPA/ORD 1993 | F38: Eq. 3-7 ,p. 3-6, all mammals
A39: Mammal, Nos | B39: Food consumption, beta parameter for allometric equation | C39: 0.822 | D39: BW(g),FC(g) | E39: U.S. EPA/ORD 1993 | F39: Eq. 3-7 ,p. 3-6, all mammals
A40: Mammal, 400 g | B40: Body weight | C40: 0.4 | D40: kg | E40: Default | F40: N/A
A41: Mammal, 400 g | B41: Food consumption, alpha parameter for allometric equation | C41: 0.621 | D41: BW(g),FC(g) | E41: U.S. EPA/ORD 1993 | F41: Eq. 3-8, p. 3-6, equation for rodents
A42: Mammal, 400 g | B42: Food consumption, beta parameter for allometric equation | C42: 0.564 | D42: BW(g),FC(g) | E42: U.S. EPA/ORD 1993 | F42: Eq. 3-8, p. 3-6, equation for rodents
A43: Mammal, 400 g | B43: Kilocalories, alpha parameter for allometric equation | C43: 2.514 | D43: BW(g),KCal(kcal/day) | E43: U.S. EPA/ORD 1993 | F43: Equation 3-48, rodent
A44: Mammal, 400 g | B44: Kilocalories, beta parameter for allometric equation | C44: 0.507 | D44: BW(g),KCal(kcal/day) | E44: U.S. EPA/ORD 1993 | F44: Equation 3-48, rodent
A45: Mammal, 400 g | B45: Water consumption, alpha parameter for allometric equation | C45: 0.099 | D45: BW(kg),WC(L) | E45: U.S. EPA/ORD 1993 | F45: Eq. 3-17, p. 3-10, all mammals
A46: Mammal, 400 g | B46: Water consumption, beta parameter for allometric equation | C46: 0.9 | D46: BW(kg),WC(L) | E46: U.S. EPA/ORD 1993 | F46: Eq. 3-17, p. 3-10, all mammals
A47: Mammal, carnivorous | B47: Body weight | C47: 5 | D47: kg | E47: U.S. EPA/ORD 1993 | F47: p. 2-221. Central value for red fox with a range of 3 to 7 kg.
A48: Mammal, carnivorous | B48: Kilocalories, alpha parameter for allometric equation | C48: 0.6167 | D48: BW(g),KCal(kcal/day) | E48: U.S. EPA/ORD 1993 | F48: Equation 3-47, non-herbivore
A49: Mammal, carnivorous | B49: Kilocalories, beta parameter for allometric equation | C49: 0.862 | D49: BW(g),KCal(kcal/day) | E49: U.S. EPA/ORD 1993 | F49: Equation 3-47, non-herbivore
A50: Mammal, carnivorous | B50: Water consumption, alpha parameter for allometric equation | C50: 0.099 | D50: BW(kg),WC(L) | E50: U.S. EPA/ORD 1993 | F50: Eq. 3-17, p. 3-10, all mammals
A51: Mammal, carnivorous | B51: Water consumption, beta parameter for allometric equation | C51: 0.9 | D51: BW(kg), WC(L) | E51: U.S. EPA/ORD 1993 | F51: Eq. 3-17, p. 3-10, all mammals
A52: Mammal, large carnivorous | B52: Body weight | C52: 70 | D52: kg | E52: Reid 2006 | F52: pp. 451-453. Black bear or small grizzly.
A53: Mammal, large carnivorous | B53: Kilocalories, alpha parameter for allometric equation | C53: 0.6167 | D53: BW(g),KCal(kcal/day) | E53: U.S. EPA/ORD 1993 | F53: Equation 3-47, non-herbivore
A54: Mammal, large carnivorous | B54: Kilocalories, beta parameter for allometric equation | C54: 0.862 | D54: BW(g),KCal(kcal/day) | E54: U.S. EPA/ORD 1993 | F54: Equation 3-47, non-herbivore
A55: Mammal, large carnivorous | B55: Water consumption, alpha parameter for allometric equation | C55: 0.099 | D55: BW(kg),WC(L) | E55: U.S. EPA/ORD 1993 | F55: Eq. 3-17, p. 3-10, all mammals
A56: Mammal, large carnivorous | B56: Water consumption, beta parameter for allometric equation | C56: 0.9 | D56: BW(kg), WC(L) | E56: U.S. EPA/ORD 1993 | F56: Eq. 3-17, p. 3-10, all mammals
A57: Mammal, herbivorous | B57: Food consumption, alpha parameter for allometric equation | C57: 0.577 | D57: BW(g),FC(g) | E57: U.S. EPA/ORD 1993 | F57: Eq. 3-9, p. 3-6, equation for herbivores
A58: Mammal, herbivorous | B58: Food consumption, beta parameter for allometric equation | C58: 0.727 | D58: BW(g),FC(g) | E58: U.S. EPA/ORD 1993 | F58: Eq. 3-9, p. 3-6, equation for herbivores
A59: Mammal, herbivorous | B59: Kilocalories, alpha parameter for allometric equation | C59: 1.518 | D59: BW(g),KCal(kcal/day) | E59: U.S. EPA/ORD 1993 | F59: Equation 3-46, herbivores
A60: Mammal, herbivorous | B60: Kilocalories, beta parameter for allometric equation | C60: 0.73 | D60: BW(g),KCal(kcal/day) | E60: U.S. EPA/ORD 1993 | F60: Equation 3-46, herbivores
A61: Mammal, large | B61: Body weight | C61: 70 | D61: kg | E61: Default | F61: N/A
A62: Mammal, large | B62: Kilocalories, alpha parameter for allometric equation | C62: 1.518 | D62: BW(g),KCal(kcal/day) | E62: U.S. EPA/ORD 1993 | F62: p. 3-6, Eq. 3-10, herbivores
A63: Mammal, large | B63: Kilocalories, beta parameter for allometric equation | C63: 0.73 | D63: BW(g),KCal(kcal/day) | E63: U.S. EPA/ORD 1993 | F63: p. 3-6, Eq. 3-10, herbivores
A64: Mammal, large | B64: Water consumption, alpha parameter for allometric equation | C64: 0.099 | D64: BW(kg),WC(L) | E64: U.S. EPA/ORD 1993 | F64: Eq. 3-17, p. 3-10, all mammals
A65: Mammal, large | B65: Water consumption, beta parameter for allometric equation | C65: 0.9 | D65: BW(kg), WC(L) | E65: U.S. EPA/ORD 1993 | F65: Eq. 3-17, p. 3-10, all mammals
A66: Mammal, rabbit | B66: Body weight | C66: 1.3 | D66: kg | E66: Default | F66: N/A
A67: Mammal, rabbit | B67: Surface Area, alpha parameter for allometric equation | C67: 0.11 | D67: BW(kg),SA(m2) | E67: U.S. EPA/ORD 1993 | F67: p. 3-14, Eq. 3-22, for all mammals
A68: Mammal, rabbit | B68: Surface Area, beta parameter for allometric equation | C68: 0.65 | D68: BW(kg),SA(m2) | E68: U.S. EPA/ORD 1993 | F68: p. 3-14, Eq. 3-22, for all mammals
A69: Mammal, rodent | B69: Food consumption, alpha parameter for allometric equation | C69: 0.621 | D69: BW(g),FC(g) | E69: U.S. EPA/ORD 1993 | F69: Eq. 3-8, p. 3-6, equation for rodents
A70: Mammal, rodent | B70: Food consumption, beta parameter for allometric equation | C70: 0.584 | D70: BW(g),FC(g) | E70: U.S. EPA/ORD 1993 | F70: Eq. 3-8,p. 3-6, equation for rodents
A71: Mammal, small | B71: Body weight | C71: 0.02 | D71: kg | E71: Default | F71: N/A
A72: Mammal, small | B72: Caloric content (wet weight) | C72: 1.7 | D72: kcal/g (wet weight) | E72: U.S. EPA/ORD 1993 | F72: Table 4-1, p. 4-13. Value for small mammals. Wet weight.
A73: Mammal, small | B73: Food consumption, alpha parameter for allometric equation | C73: 0.621 | D73: BW(g),FC(g) | E73: U.S. EPA/ORD 1993 | F73: Eq. 3-8, p. 3-6, equation for rodents
A74: Mammal, small | B74: Food consumption, beta parameter for allometric equation | C74: 0.564 | D74: BW(g),FC(g) | E74: U.S. EPA/ORD 1993 | F74: Eq. 3-8, p. 3-6, equation for rodents
A75: Mammal, small | B75: Kilocalories, alpha parameter for allometric equation | C75: 2.514 | D75: BW(g),KCal(kcal/day) | E75: U.S. EPA/ORD 1993 | F75: Equation 3-48, rodent
A76: Mammal, small | B76: Kilocalories, beta parameter for allometric equation | C76: 0.507 | D76: BW(g),KCal(kcal/day) | E76: U.S. EPA/ORD 1993 | F76: Equation 3-48, rodent
A77: Mammal, small | B77: Surface Area, alpha parameter for allometric equation | C77: 0.11 | D77: BW(kg),SA(m2) | E77: U.S. EPA/ORD 1993 | F77: p. 3-14, Eq. 3-22, for all mammals
A78: Mammal, small | B78: Surface Area, beta parameter for allometric equation | C78: 0.65 | D78: BW(kg),SA(m2) | E78: U.S. EPA/ORD 1993 | F78: p. 3-14, Eq. 3-22, for all mammals
A79: Mammal, small | B79: Water consumption, alpha parameter for allometric equation | C79: 0.099 | D79: BW(kg),WC(L) | E79: U.S. EPA/ORD 1993 | F79: Eq. 3-17, p. 3-10, all mammals
A80: Mammal, small | B80: Water consumption, beta parameter for allometric equation | C80: 0.9 | D80: BW(kg),WC(L) | E80: U.S. EPA/ORD 1993 | F80: Eq. 3-17, p. 3-10, all mammals

Sheet A02c
A1: General reference values and exposure factors used in worksheets.
A3: Receptor | B3: Factor | C3: Value | D3: Units | E3: Reference | F3: Reference Note
A4: Small Insects | B4: Caloric content (wet weight) | C4: 1.5 | D4: kcal/g (wet weight) | E4: U.S. EPA/ORD 1993 | F4: Table 4-1, p. 4-13. Value for beetles. Wet weight
A5: Fish | B5: Caloric content (wet weight) | C5: 1.2 | D5: kcal/g (wet weight) | E5: U.S. EPA/ORD 1993 | F5: Table 4-1, p. 4-13. Value for bony fish. Wet weight
A6: Vegetation | B6: Caloric content (dry weight) | C6: 2.26 | D6: kcal/g | E6: U.S. EPA/ORD 1993 | F6: p. 3-5, Table 3-1
A7: Vegetation | B7: Water content (proportion) | C7: 0.85 | D7: unitless | E7: U.S. EPA/ORD 1993 | F7: p. 4-14
A8: VegRR | B8: Broadleaf/forage plants and small insects, central estimate | C8: 45 | D8: mg chem/kg veg | E8: Fletcher et al. 1994 | F8: Broadleaf/forage plants and small insects
A9: VegRR | B9: Broadleaf/forage plants and small insects, upper range | C9: 135 | D9: mg chem/kg veg | E9: Fletcher et al. 1994 | F9: Broadleaf/forage plants and small insects
A10: VegRR | B10: Fruits, pods, seeds, and large insects, central estimate | C10: 7 | D10: mg chem/kg veg | E10: Fletcher et al. 1994 | F10: Fruits, pods, seeds, and large insects
A11: VegRR | B11: Fruits, pods, seeds, and large insects, upper range | C11: 15 | D11: mg chem/kg veg | E11: Fletcher et al. 1994 | F11: Fruits, pods, seeds, and large insects
A12: VegRR | B12: Broadleaf plants and small insects, granular applications, central estimate | C12: 1.8 | D12: mg chem/kg veg | E12: SERA 2005 | F12: Broadleaf forage plants and contaminated insects after granular application
A13: VegRR | B13: Broadleaf plants and small insects, granular applications, upper range | C13: 5.4 | D13: mg chem/kg veg | E13: SERA 2005 | F13: Broadleaf forage plants and contaminated insects after granular application
A14: VegRR | B14: Fruits, granular applications, central estimate | C14: 0.28 | D14: mg chem/kg veg | E14: SERA 2005 | F14: Fruit after granular application
A15: VegRR | B15: Fruits, granular applications, upper range | C15: 0.6 | D15: mg chem/kg veg | E15: SERA 2005 | F15: Fruit after granular application
A16: VegRR | B16: Short grass, granular applications, lower range | C16: 1.2 | D16: mg chem/kg veg | E16: SERA 2005 | F16: Short grass after granular application
A17: VegRR | B17: Short grass, granular applications, upper range | C17: 9.6 | D17: mg chem/kg veg | E17: SERA 2005 | F17: Short grass after granular application
A18: VegRR | B18: Tall grass, granular applications, central estimate | C18: 1.44 | D18: mg chem/kg veg | E18: SERA 2005 | F18: Tall grass after granular application
A19: VegRR | B19: Tall grass, granular applications, upper range | C19: 4.4 | D19: mg chem/kg veg | E19: SERA 2005 | F19: Tall grass after granular application
A20: VegRR | B20: Short grass, central estimate | C20: 85 | D20: mg chem/kg veg | E20: Fletcher et al. 1994 | F20: Short grass
A21: VegRR | B21: Short grass, lower range | C21: 30 | D21: mg chem/kg veg | E21: SERA 2007 | F21: Short grass
A22: VegRR | B22: Short grass, upper range | C22: 240 | D22: mg chem/kg veg | E22: Fletcher et al. 1994 | F22: Short grass
A23: VegRR | B23: Tall grass, central estimate | C23: 36 | D23: mg chem/kg veg | E23: Fletcher et al. 1994 | F23: Tall grass
A24: VegRR | B24: Tall grass, upper range | C24: 110 | D24: mg chem/kg veg | E24: Fletcher et al. 1994 | F24: Tall grass

Sheet A02d
A1: General reference values and exposure factors used in worksheets.
A3: Receptor | B3: Factor | C3: Value | D3: Units | E3: Reference | F3: Reference Note
A4: Conversion Factors | B4: acrefoot2gal | C4: 325900 | D4: gal/acre-foot | E4: Budavari 1989 | F4: N/A
A5: Conversion Factors | B5: liters per gal | C5: 3.785 | D5: L/gal | E5: Budavari 1989 | F5: N/A
A6: Conversion Factors | B6: pound per milligram | C6: 453600 | D6: mg/lb | E6: Budavari 1989 | F6: N/A
A7: Conversion Factors | B7: lbac2mgcm2 | C7: 0.01121 | D7: mg/cm2 per lb/acre | E7: Budavari 1989 | F7: N/A
A8: Conversion Factors | B8: lbac2ugcm2 | C8: 11.21 | D8: ug/cm2 per lb/acre | E8: Budavari 1989 | F8: N/A
A9: Conversion Factors | B9: conversion for milligrams to pounds | C9: 2.204e-06 | D9: lb/mg | E9: Budavari 1989 | F9: N/A
A10: Conversion Factors | B10: conversion for milliliters to gallons | C10: 3785 | D10: ml/gal | E10: Budavari 1989 | F10: N/A
A11: Misc | B11: Liquid adhering to skin | C11: 0.008 | D11: mL/cm2 | E11: Mason and Johnson 1987 | F11: Weight of liquid adhering to surface of skin after a spill
A12: Misc | B12: Dislodgeable residue as proportion | C12: 0.1 | D12: none | E12: Harris and Solomon 1992 | F12: Estimate of dislodgeable residue as a proportion of application rate shortly after application based on 2,4-D.
A13: Standard Pond | B13: Depth | C13: 1 | D13: m | E13: Default | F13: Depth of pond
A14: Standard Pond | B14: Surface Area | C14: 1000 | D14: m^2 | E14: Default | F14: Surface Area
A15: Standard Pond | B15: Volume of Spill | C15: 200 | D15: gallons | E15: Default | F15: Volume of spill
A16: VegRR | B16: Broadleaf/forage plants and small insects, lower range | C16: 15 | D16: mg chem/kg veg | E16: SERA 2007 | F16: Broadleaf/forage plants and small insects
A17: VegRR | B17: Fruits, pods, seeds, and large insects, lower range | C17: 3.2 | D17: mg chem/kg veg | E17: SERA 2007 | F17: Fruits, pods, seeds, and large insects
A18: VegRR | B18: Broadleaf plants and small insects, granular applications, lower range | C18: 0.6 | D18: mg chem/kg veg | E18: SERA 2007 | F18: Broadleaf/forage plants after granular application
A19: VegRR | B19: Fruits, granular applications, lower range | C19: 0.13 | D19: mg chem/kg veg | E19: SERA 2007 | F19: Fruit after granular application
A20: VegRR | B20: Short grass, granular applications, central estimate | C20: 3.4 | D20: mg chem/kg veg | E20: SERA 2005 | F20: Short grass after granular application
A21: VegRR | B21: Short grass, granular applications, lower range | C21: 1.2 | D21: mg chem/kg veg | E21: SERA 2007 | F21: Short grass after granular application
A22: VegRR | B22: Tall grass, granular applications, lower range | C22: 0.48 | D22: mg chem/kg veg | E22: SERA 2007 | F22: Tall grass after granular application
A23: VegRR | B23: Short grass, lower range | C23: 30 | D23: mg chem/kg veg | E23: Fletcher et al. 1994 | F23: Short grass
A24: VegRR | B24: Tall grass, lower range | C24: 12 | D24: mg chem/kg veg | E24: SERA 2007 | F24: Tall grass

Sheet A03
A1: Food items for terrestrial animals
A3: Receptor | B3: Consumer | C3: Qualifier | D3: Modifier | E3: Value | F3: Units | G3: Reference | H3: Reference Note
A4: Adult Female | B4: Fish | C4: Amount | D4: central estimate | E4: 0.01 | F4: kg/day | G4: U.S. EPA/ORD 1996 | H4: p. 10-51, average of means from four studies rounded to one significant place.
A5: Adult Female | B5: Fish | C5: Amount | D5: upper range | E5: 0.158 | F5: kg/day | G5: Ruffle et al. 1994 | H5: N/A
A6: Adult Female | B6: Fruit | C6: Proportion of body weight | D6: central estimate | E6: 0.00168 | F6: kg fruit/kg bw/day | G6: U.S. EPA/ORD 1996 | H6: Table 9-3, p. 9-11, mean value.
A7: Adult Female | B7: Fruit | C7: Proportion of body weight | D7: lower range | E7: 0.00168 | F7: kg fruit/kg bw/day | G7: U.S. EPA/ORD 1996 | H7: Table 9-3, p. 9-11. The 5th percentile is given as zero. For these worksheets, the central estimate is used for the lower bound.
A8: Adult Female | B8: Fruit | C8: Proportion of body weight | D8: upper range | E8: 0.01244 | F8: kg fruit/kg bw/day | G8: U.S. EPA/ORD 1996 | H8: Table 9-3, p. 9-11, 95th percentile value.
A9: Adult Female | B9: Vegetation, home grown | C9: Proportion of body weight | D9: central estimate | E9: 0.00076 | F9: kg veg/kg bw/day | G9: U.S. EPA/ORD 1996 | H9: Table 12-15, p. 9-14, mean for individuals between 20 and 39 years old.
A10: Adult Female | B10: Vegetation, home grown | C10: Proportion of body weight | D10: lower range | E10: 8e-05 | F10: kg veg/kg bw/day | G10: U.S. EPA/ORD 1996 | H10: Table 12-15, p. 9-14, 5th percentile for individuals between 20 and 39 years old.
A11: Adult Female | B11: Vegetation, home grown | C11: Proportion of body weight | D11: upper range | E11: 0.00492 | F11: kg veg/kg bw/day | G11: U.S. EPA/ORD 1996 | H11: Table 12-15, p. 9-14, 95th percentile for individuals between 20 and 39 years old.
A12: Adult Female | B12: Vegetation | C12: Amount | D12: Extreme | E12: 0.454 | F12: kg food | G12: U.S. EPA/ORD 1996 | H12: 1 lb. The approximate mid range of the above typical and upper limits based on the 64 kg body weight.
A13: Adult Female | B13: Vegetation | C13: Proportion of body weight | D13: central estimate | E13: 0.0036 | F13: kg veg/kg bw/day | G13: U.S. EPA/ORD 1996 | H13: Table 9-12, p. 9-12, mean.
A14: Adult Female | B14: Vegetation | C14: Proportion of body weight | D14: lower range | E14: 0.00075 | F14: kg veg/kg bw/day | G14: U.S. EPA/ORD 1996 | H14: Table 9-12, p. 9-12, 5th percentile.
A15: Adult Female | B15: Vegetation | C15: Proportion of body weight | D15: upper range | E15: 0.01 | F15: kg veg/kg bw/day | G15: U.S. EPA/ORD 1996 | H15: Table 9-12, p. 9-12, 95th percentile.
A16: Adult Female | B16: Water | C16: Amount | D16: central estimate | E16: 2 | F16: L/day | G16: U.S. EPA/ORD 1996 | H16: p. 3-28, Table 3-30, midpoint of mean (1.4 L/day) and 90th percentile (2.4 L/day) rounded to one significant place.
A17: Adult Female | B17: Water | C17: Amount | D17: lower range | E17: 1.4 | F17: L/day | G17: U.S. EPA/ORD 1996 | H17: p. 3-28, Table 3-30, mean
A18: Adult Female | B18: Water | C18: Amount | D18: upper range | E18: 2.4 | F18: L/day | G18: U.S. EPA/ORD 1996 | H18: p. 3-28, Table 3-30, 90th percentile
A19: Adult Male | B19: Fish | C19: Amount | D19: central estimate | E19: 0.01 | F19: kg/day | G19: U.S. EPA/ORD 1996 | H19: p. 10-51, average of means from four studies rounded to one significant place.
A20: Adult Male | B20: Fish | C20: Amount | D20: upper range | E20: 0.158 | F20: kg/day | G20: Ruffle et al. 1994 | H20: N/A
A21: Adult Male | B21: Fruit | C21: Proportion of body weight | D21: central estimate | E21: 0.00168 | F21: unitless | G21: U.S. EPA/ORD 1996 | H21: Table 9-3, p. 9-11, mean value.
A22: Adult Male | B22: Fruit | C22: Proportion of body weight | D22: lower range | E22: 0.00168 | F22: unitless | G22: U.S. EPA/ORD 1996 | H22: Table 9-3, p. 9-11. The 5th percentile is given as zero. For these worksheets, the central estimate is used for the lower bound.
A23: Adult Male | B23: Fruit | C23: Proportion of body weight | D23: upper range | E23: 0.01244 | F23: unitless | G23: U.S. EPA/ORD 1996 | H23: Table 9-3, p. 9-11, 95th percentile value.
A24: Adult Male | B24: Vegetation, home grown | C24: Proportion of body weight | D24: central estimate | E24: 0.00076 | F24: unitless | G24: U.S. EPA/ORD 1996 | H24: Table 12-15, p. 9-14, mean for individuals between 20 and 39 years old.
A25: Adult Male | B25: Vegetation, home grown | C25: Proportion of body weight | D25: lower range | E25: 8e-05 | F25: unitless | G25: U.S. EPA/ORD 1996 | H25: Table 12-15, p. 9-14, 5th percentile for individuals between 20 and 39 years old.
A26: Adult Male | B26: Vegetation, home grown | C26: Proportion of body weight | D26: upper range | E26: 0.00492 | F26: unitless | G26: U.S. EPA/ORD 1996 | H26: Table 12-15, p. 9-14, 95th percentile for individuals between 20 and 39 years old.
A27: Adult Male | B27: Vegetation | C27: Amount | D27: Extreme | E27: 0.454 | F27: kg/day | G27: U.S. EPA/ORD 1996 | H27: 1 lb. The approximate mid range of the above typical and upper limits based on the 64 kg body weight.
A28: Adult Male | B28: Vegetation | C28: Proportion of body weight | D28: central estimate | E28: 0.0036 | F28: unitless | G28: U.S. EPA/ORD 1996 | H28: Table 9-12, p. 9-12, mean.
A29: Adult Male | B29: Vegetation | C29: Proportion of body weight | D29: lower range | E29: 0.00075 | F29: unitless | G29: U.S. EPA/ORD 1996 | H29: Table 9-12, p. 9-12, 5th percentile.
A30: Adult Male | B30: Vegetation | C30: Proportion of body weight | D30: upper range | E30: 0.01 | F30: unitless | G30: U.S. EPA/ORD 1996 | H30: Table 9-12, p. 9-12, 95th percentile.
A31: Adult Male | B31: Water | C31: Amount | D31: central estimate | E31: 2 | F31: L/day | G31: U.S. EPA/ORD 1996 | H31: p. 3-28, Table 3-30, midpoint of mean (1.4 L/day) and 90th percentile (2.4 L/day) rounded to one significant place.
A32: Adult Male | B32: Water | C32: Amount | D32: lower range | E32: 1.4 | F32: L/day | G32: U.S. EPA/ORD 1996 | H32: p. 3-28, Table 3-30, mean
A33: Adult Male | B33: Water | C33: Amount | D33: upper range | E33: 2.4 | F33: L/day | G33: U.S. EPA/ORD 1996 | H33: p. 3-28, Table 3-30, 90th percentile
A34: Subsistence Populations | B34: Fish | C34: Amount | D34: central estimate | E34: 0.081 | F34: kg/day | G34: U.S. EPA/ORD 1996 | H34: p. 10-51, median value of 94 individuals
A35: Subsistence Populations | B35: Fish | C35: Amount | D35: upper range | E35: 0.77 | F35: kg/day | G35: U.S. EPA/ORD 1993 | H35: p. 10-51, highest value of 94 individuals
A36: Bird, NOS | B36: Fish | C36: Kilocalories | D36: FoodVal | E36: 3.87 | F36: Kcal/gram (dw) | G36: U.S. EPA/ORD 1993 | H36: Table 3-1, p. 3-5
A37: Bird, NOS | B37: Fish | C37: Wat | D37: FoodVal | E37: 0.7 | F37: Unitless | G37: Ali et al. 2005 | H37: N/A
A38: Bird, NOS | B38: Fruit | C38: Kilocalories | D38: FoodVal | E38: 1.1 | F38: Kcal/gram (dw) | G38: U.S. EPA/ORD 1993 | H38: Gross caloric value of 2.2 kcal/g dw (U.S. EPA/ORD 1993, Table 4-2) with assim fact of 0.51
A39: Bird, NOS | B39: Fruit | C39: Wat | D39: FoodVal | E39: 0.77 | F39: Unitless | G39: U.S. EPA/ORD 1993 | H39: Table 4-2, p. 4-14
A40: Bird, NOS | B40: Insect | C40: Kilocalories | D40: FoodVal | E40: 4.3 | F40: Kcal/gram (dw) | G40: U.S. EPA/ORD 1993 | H40: Table 4-2, p. 4-14
A41: Bird, NOS | B41: Insect | C41: Wat | D41: FoodVal | E41: 0.7 | F41: Unitless | G41: Chapman 1998 | H41: Typrical range 60-80%
A42: Bird, NOS | B42: Vegetation | C42: Kilocalories | D42: FoodVal | E42: 2 | F42: Kcal/gram (dw) | G42: U.S. EPA/ORD 1993 | H42: gross caloric value of 4.2 kcal/g dw for dicot leaves (U.S. EPA/ORD 1993, Table 4-2) with assim fact of 0.47
A43: Bird, NOS | B43: Vegetation | C43: Wat | D43: FoodVal | E43: 0.85 | F43: Unitless | G43: U.S. EPA/ORD 1993 | H43: Table 4-2, p. 4-14
A44: Child | B44: Water | C44: Amount | D44: central estimate | E44: 1 | F44: L/day | G44: U.S. EPA/ORD 1996 | H44: p. 3-28, Table 3-30, midpoint of mean (0.61L/day) and 90th percentile (1.5 L/day) rounded to one significant place.
A45: Child | B45: Water | C45: Amount | D45: lower range | E45: 0.61 | F45: L/day | G45: U.S. EPA/ORD 1996 | H45: p. 3-28, Table 3-30, mean
A46: Child | B46: Water | C46: Amount | D46: upper range | E46: 1.5 | F46: L/day | G46: U.S. EPA/ORD 1996 | H46: p. 3-28, Table 3-30, 90th percentile
A47: Herbivorous Insect | B47: Broadleaf/Small Insects | C47: Proportion of body weight | D47: central estimate | E47: 1.3 | F47: kg food/kg bw/day | G47: Waldbauer 1968 | H47: N/A
A48: Herbivorous Insect | B48: Broadleaf/Small Insects | C48: Proportion of body weight | D48: lower range | E48: 0.6 | F48: kg food/kg bw/day | G48: Reichle et al. 1973 | H48: N/A
A49: Herbivorous Insect | B49: Broadleaf/Small Insects | C49: Proportion of body weight | D49: upper range | E49: 2.2 | F49: kg food/kg bw/day | G49: Waldbauer 1968 | H49: N/A
A50: Herbivorous Insect | B50: Fruit | C50: Proportion of body weight | D50: central estimate | E50: 1.3 | F50: kg food/kg bw/day | G50: Waldbauer 1968 | H50: N/A
A51: Herbivorous Insect | B51: Fruit | C51: Proportion of body weight | D51: lower range | E51: 0.6 | F51: kg food/kg bw/day | G51: Reichle et al. 1973 | H51: N/A
A52: Herbivorous Insect | B52: Fruit | C52: Proportion of body weight | D52: upper range | E52: 2.2 | F52: kg food/kg bw/day | G52: Waldbauer 1968 | H52: N/A
A53: Herbivorous Insect | B53: Short grass | C53: Proportion of body weight | D53: central estimate | E53: 1.3 | F53: kg food/kg bw/day | G53: Waldbauer 1968 | H53: N/A
A54: Herbivorous Insect | B54: Short grass | C54: Proportion of body weight | D54: lower range | E54: 0.6 | F54: kg food/kg bw/day | G54: Reichle et al. 1973 | H54: N/A
A55: Herbivorous Insect | B55: Short grass | C55: Proportion of body weight | D55: upper range | E55: 2.2 | F55: kg food/kg bw/day | G55: Waldbauer 1968 | H55: N/A
A56: Herbivorous Insect | B56: Tall Grass | C56: Proportion of body weight | D56: central estimate | E56: 1.3 | F56: kg food/kg bw/day | G56: Waldbauer 1968 | H56: N/A
A57: Herbivorous Insect | B57: Tall Grass | C57: Proportion of body weight | D57: lower range | E57: 0.6 | F57: kg food/kg bw/day | G57: Reichle et al. 1973 | H57: N/A
A58: Herbivorous Insect | B58: Tall Grass | C58: Proportion of body weight | D58: upper range | E58: 2.2 | F58: kg food/kg bw/day | G58: Waldbauer 1968 | H58: N/A
A59: Mammal, Nos | B59: Fish | C59: Kilocalories | D59: FoodVal | E59: 4.47 | F59: Kcal/gram (dw) | G59: U.S. EPA/ORD 1993 | H59: Table 3-1, p. 3-5
A60: Mammal, Nos | B60: Fish | C60: Wat | D60: FoodVal | E60: 0.7 | F60: Unitless | G60: Ali et al. 2005 | H60: N/A
A61: Mammal, Nos | B61: Fruit | C61: Kilocalories | D61: FoodVal | E61: 1.1 | F61: Kcal/gram (dw) | G61: U.S. EPA/ORD 1993 | H61: Gross caloric value of 2.2 kcal/g dw (U.S. EPA/ORD 1993, Table 4-2) with assim fact of 0.51
A62: Mammal, Nos | B62: Fruit | C62: Wat | D62: FoodVal | E62: 0.77 | F62: Unitless | G62: U.S. EPA/ORD 1993 | H62: Table 4-2, p. 4-14
A63: Mammal, Nos | B63: Insect | C63: Kilocalories | D63: FoodVal | E63: 4.47 | F63: Kcal/gram (dw) | G63: U.S. EPA/ORD 1993 | H63: Table 4-2, p. 4-14
A64: Mammal, Nos | B64: Insect | C64: Wat | D64: FoodVal | E64: 0.7 | F64: Unitless | G64: Chapman 1998 | H64: Typrical range 60-80%
A65: Mammal, Nos | B65: Vegetation | C65: Kilocalories | D65: FoodVal | E65: 2.26 | F65: Kcal/gram (dw) | G65: U.S. EPA/ORD 1993 | H65: Table 3-1, p. 3-5
A66: Mammal, Nos | B66: Vegetation | C66: Wat | D66: FoodVal | E66: 0.85 | F66: Unitless | G66: U.S. EPA/ORD 1993 | H66: Table 4-2, p. 4-14

Sheet B01
A1: Chemical and Physical Properties for Chlorophacinone
A3: Property | B3: Receptor | C3: Value | D3: Units | E3: Document Reference
A4: Bioconcentration Factor (BCF), edible, acute | B4: N/A | C4: 2.408 | D4: L/kg fish | E4: Section 3.2.3.5.
A5: Bioconcentration Factor (BCF), edible, chronic | B5: N/A | C5: 2.408 | D5: L/kg fish | E5: Section 3.2.3.5.
A6: Bioconcentration Factor (BCF), whole fish, acute | B6: N/A | C6: 2.408 | D6: L/kg fish | E6: Section 3.2.3.5.
A7: Bioconcentration Factor (BCF), whole fish, chronic | B7: N/A | C7: 2.408 | D7: L/kg fish | E7: Section 3.2.3.5.
A8: Kow (Octanol-water partition coefficient) | B8: N/A | C8: 94.5 | D8: unitless | E8: Table 1
A9: Molecular weight | B9: N/A | C9: 374.83 | D9: grams/mole | E9: N/A
A10: Water Solubility | B10: N/A | C10: 3.43 | D10: mg/L | E10: N/A
A11: First order dermal absorption rate (ka), central estimate | B11: N/A | C11: 0.0007 | D11: per hour | E11: N/A
A12: First order dermal absorption rate (ka), lower range | B12: N/A | C12: 0.00025 | D12: per hour | E12: N/A
A13: First order dermal absorption rate (ka), upper range | B13: N/A | C13: 0.0019 | D13: per hour | E13: N/A
A14: Dermal permeability (Kp), central estimate | B14: N/A | C14: 0.00023 | D14: cm/hour | E14: N/A
A15: Dermal permeability (Kp), lower range | B15: N/A | C15: 0.00014 | D15: cm/hour | E15: N/A
A16: Dermal permeability (Kp), upper range | B16: N/A | C16: 0.00039 | D16: cm/hour | E16: N/A
A17: Halftime, central estimate | B17: Fruit | C17: 1 | D17: days | E17: Not used
A18: Halftime, lower range | B18: Fruit | C18: 1 | D18: days | E18: Not used
A19: Halftime, upper range | B19: Fruit | C19: 1 | D19: days | E19: Not used
A20: Halftime, central estimate | B20: Vegetation | C20: 1 | D20: days | E20: Not used
A21: Halftime, lower range | B21: Vegetation | C21: 1 | D21: days | E21: Not used
A22: Halftime, upper range | B22: Vegetation | C22: 1 | D22: days | E22: Not used

Sheet B02
A1: Toxicity values for Chlorophacinone
A3: Receptor | B3: Receptor | C3: Qualifier | D3: Endpoint | E3: Value | F3: Units | G3: Document Reference
A4: Human | B4: acute | C4: N/A | D4: Reference Dose (RfD) | E4: 0.003 | F4: mg/kg bw | G4: N/A
A5: Human | B5: chronic | C5: N/A | D5: Reference Dose (RfD) | E5: 5e-05 | F5: mg/kg bw/day | G5: N/A
A6: Mammal, Nos | B6: acute | C6: N/A | D6: NOAEL | E6: 0.03 | F6: mg/kg bw | G6: N/A
A7: Mammal, Nos | B7: chronic | C7: N/A | D7: NOAEL | E7: 0.005 | F7: mg/kg bw/day | G7: N/A
A8: Bird, NOS | B8: acute | C8: N/A | D8: NOAEL | E8: 0.6 | F8: mg/kg bw | G8: N/A
A9: Bird, NOS | B9: chronic | C9: N/A | D9: NOAEL | E9: 0.07 | F9: mg/kg bw/day | G9: N/A
A10: Aquatic invertebrate | B10: acute | C10: tolerant species | D10: NOAEC | E10: 0.28 | F10: mg/L | G10: N/A
A11: Fish | B11: acute | C11: sensitive species | D11: NOAEC | E11: 0.12 | F11: mg/L | G11: N/A
A12: Fish | B12: acute | C12: tolerant species | D12: NOAEC | E12: 0.36 | F12: mg/L | G12: N/A

Sheet B03a
A1: Calculation of Zero-Order Dermal Permeability Rate (Kp) in cm/hour
A2: Short Title | B2: Calculation of Kp | E2: ChemDrmKp
A3: Parameter/Assumption | B3: Code / Range | C3: Equation/ Value | D3: Units | E3: Reference/Designation
A4: Molecular weight | B4: MW | C4: ='B01'!$C$9 -> 374.83 | D4: g/mole
A5: Ko/w | B5: Kow | C5: ='B01'!$C$8 -> 94.5 | D5: unitless
A6: Vector a[] | B6: a[1] | C6: 1
B7: a[2] | C7: =C4 -> 374.83
B8: a[3] | C8: =LOG10(C5) -> 1.975431809
A9: Transpose of a[] (a') | B9: =$C$6 -> 1 | C9: =$C$7 -> 374.83 | D9: =$C$8 -> 1.975431809
A10: X'X Cross Product Matrix | B10: X'X
B11: 0.055931 | C11: -9.41546e-05 | D11: -0.0103443
B12: -9.41546e-05 | C12: 5.978e-07 | D12: -2.22508e-05
B13: -0.0103443 | C13: -2.22508e-05 | D13: 0.00740677
A14: a'X'X a | B14: a'X'X a | C14: =MMULT(B9:D9,MMULT(B11:D13, C6:C8)) -> 0.02441997486
A15: Coefficients for model
A16: Intercept | B16: K0 | C16: -2.72576
A17: Coeff for MW | B17: K1 | C17: -0.006151
A18: Coeff for Log10(Kow) | B18: K2 | C18: 0.706648
A19: Standard deviation of model | B19: s | C19: 0.727129
A20: Critical value at 0.025 with 87 d.f. | B20: t0.025 | C20: 1.96
A21: Log10 of Estimated dermal permeability rate (Kp) | B21: Log(Kp) = | C21: K0 + K1 MW + K2 Log10(Kow)
B22: Central | C22: =$C$16 + ($C$17*$C$4) + ($C$18*LOG10($C$5)) -> -3.635404393 | E22: Eq
B23: Lower 95% CI | C23: =$C$22 - ($C$20 * $C$19 * ($C$14^0.5)) -> -3.858114612 | E23: Eq
B24: Upper 95% CI | C24: =$C$22 + ($C$20 * $C$19 * ($C$14^0.5)) -> -3.412694175 | E24: Eq
A25: Estimated dermal permeability rate (Kp) | B25: Kp = | C25: 10Log(Kp)
B26: Central | C26: =10^C22 -> 0.0002315237812 | D26: cm/hour | E26: Eq
B27: Lower 95% CI | C27: =10^C23 -> 0.0001386389908 | E27: Eq
B28: Upper 95% CI | C28: =10^C24 -> 0.0003866391478 | E28: Eq

Sheet B03b
A1: Calculation of First-Order Dermal Absorption Rate
A2: Short Title | B2: Calculation of ka | E2: ChemDrmKa
A3: Parameter/Assumption | B3: Code / Range | C3: Equation/ Value | D3: Units | E3: Reference/Designation
A4: Molecular weight | B4: MW | C4: ='B01'!$C$9 -> 374.83 | D4: g/mole
A5: Ko/w | B5: Kow | C5: ='B01'!$C$8 -> 94.5 | D5: unitless
A6: Vector a[] | B6: a[1] | C6: 1
B7: a[2] | C7: =C4 -> 374.83
B8: a[3] | C8: =LOG10(C5) -> 1.975431809
A9: Transpose of a[] (a') | B9: =$C$6 -> 1 | C9: =$C$7 -> 374.83 | D9: =$C$8 -> 1.975431809
A10: X'X Cross Product Matrix | B10: X'X
B11: 0.307537 | C11: -0.00103089 | D11: 0.00822769
B12: -0.00103089 | C12: 4.377e-06 | D12: -9.44359e-05
B13: 0.00822769 | C13: -9.44359e-05 | D13: 0.0085286
A14: a'X'X a | B14: a'X'X a | C14: =MMULT(B9:D9,MMULT(B11:D13, C6:C8)) -> 0.07561525341
A15: Coefficients for model
A16: Intercept | B16: K0 | C16: -1.49615
A17: Coeff for MW | B17: K1 | C17: -0.005657
A18: Coeff for Log10(Kow) | B18: K2 | C18: 0.233255
A19: Standard deviation of model | B19: s | C19: 0.787218
A20: Critical value at 0.025 with 26 d.f. | B20: t0.025 | C20: 2.056
A21: Log10 of Estimated first-order absorption rate | B21: Log(ka) = | C21: K0 + K1 MW + K2 Log10(Kow)
B22: Central | C22: =$C$16 + ($C$17*$C$4) + ($C$18*LOG10($C$5)) -> -3.155783964 | E22: Eq
B23: Lower 95% CI | C23: =$C$22 - ($C$20 * $C$19 * ($C$14^0.5)) -> -3.600848338 | E23: Eq
B24: Upper 95% CI | C24: =$C$22 + ($C$20 * $C$19 * ($C$14^0.5)) -> -2.710719589 | E24: Eq
A25: Estimated first-order absorption rate | B25: ka = | C25: 10Log(ka)
B26: Central | C26: =10^C22 -> 0.0006985798209 | D26: hour-1 | E26: Eq
B27: Lower 95% CI | C27: =10^C23 -> 0.0002506984577 | E27: Eq
B28: Upper 95% CI | C28: =10^C24 -> 0.001946616548 | E28: Eq

Sheet B04Rt
A1: Estimates of Water Contamination Rates -- i.e., the concentration in ambient water per pound applied per acre
A2: Parameter/Assumption | B2: Code / Range | C2: Equation/ Value | D2: Units | E2: WCRV6
A3: Short-term peak concentrations | B3: Peak | E3: WCRV6
B4: Central | C4: 0.002 | D4: mg/L
B5: Lower | C5: 0.0002
B6: Upper | C6: 0.01
A7: Longer-term average concentrations | B7: Average
B8: Central | C8: 5e-05 | D8: mg/L
B9: Lower | C9: 2e-06
B10: Upper | C10: 0.0003
A11: User Specified Gleams-Driver File: | B11: None

Sheet B04a
A1: Expected Concentrations in Surface Water | E1: EECRtV6
A2: Parameter/Assumption | B2: Code / Range | C2: Equation/ Value | D2: Units | E2: EECRtV6
A3: Application Rate | B3: ApRt | C3: ='A01'!ApRt_C -> 0.000625 | D3: lb/acre | E3: Worksheet A01
A4: Water Contamination Rates
A5: Short-term peak water contamination rates (WCR) | B5: Peak
B6: Central | C6: =B04Rt!$C$4 -> 0.002 | D6: mg/L
B7: Lower | C7: =B04Rt!$C$5 -> 0.0002
B8: Upper | C8: =B04Rt!$C$6 -> 0.01
A9: Longer-term average water contamination rates (WCR) | B9: Average
B10: Central | C10: =B04Rt!$C$8 -> 5e-05 | D10: mg/L
B11: Lower | C11: =B04Rt!$C$9 -> 2e-06
B12: Upper | C12: =B04Rt!$C$10 -> 0.0003
A13: EECs in Surface Water
A14: Short-term peak concentrations | B14: Peak
B15: Central | C15: =$C$3*C6 -> 1.25e-06 | D15: mg/L | E15: Eq
B16: Lower | C16: =$C$3*C7 -> 1.25e-07 | E16: Eq
B17: Upper | C17: 6.25e-06 | E17: Eq
A18: Longer-term average concentrations | B18: Average
B19: Central | C19: =$C$3*C10 -> 3.125e-08 | D19: mg/L | E19: Eq
B20: Lower | C20: =$C$3*C11 -> 1.25e-09 | E20: Eq
B21: Upper | C21: 1.875e-07 | E21: Eq

Sheet B04b
A1: Pond: Concentration of pesticide (granular formulation) in pond water after an accidental spill
A2: Short Title | B2: Pond Spill | E2: PondSpillGranV6
A3: Receptor | B3: Pond
A4: Duration | B4: Acute
A5: Parameter/Assumption | B5: Code / Range | C5: Equation/ Value | D5: Units | E5: Reference/Designation
A6: Surface Area of Pond | B6: SA | C6: ='A01'!C$16 -> 1000 | D6: m2 | E6: Worksheet A01
A7: Depth of Pond | B7: Depth | C7: ='A01'!C$17 -> 1 | D7: meter | E7: Worksheet A01
A8: Volume of Pond | B8: VPM | C8: =C6*C7 -> 1000 | D8: m3 | E8: Eq
B9: VPL | C9: =1000*C8 -> 1000000 | D9: liters | E9: Eq
A10: Pounds of compound spilled into water | B10: Lbs
B11: Central | C11: ='A01'!C$28 -> 0.0015 | D11: lbs a.i. or a.e | E11: Worksheet A01
B12: Lower | C12: ='A01'!C$29 -> 0.001 | E12: Worksheet A01
B13: Upper | C13: ='A01'!C$30 -> 0.002 | E13: Worksheet A01
A14: mg per lb | B14: MgLbs | C14: 453600 | D14: mg/lbs
A15: Toxic Equivalency Factor for formulation: (See risk assessment if this has a value other than 1.) | B15: TEF
B16: Central | C16: ='A01'!C$24 -> 1 | D16: unitless | E16: Worksheet A01
B17: Lower | C17: ='A01'!C$25 -> 1 | E17: Worksheet A01
B18: Upper | C18: ='A01'!C$26 -> 1 | E18: Worksheet A01
A19: Concentration in pond water | B19: ConcWat | C19: Lbs × TEF x MgLbs ÷ VPL
B20: Central | C20: =C11*C16*C$14/C$9 -> 0.0006804 | D20: mg/L | E20: Eq
B21: Lower | C21: =C12*C17*C$14/C$9 -> 0.0004536 | E21: Eq
B22: Upper | C22: =C13*C18*C$14/C$9 -> 0.0009072 | E22: Eq

Sheet C01a
A1: Exposure estimates based on Pesticide Handlers Exposure Database (PHED) Method
A2: Short Title | B2: General Exposure | E2: WkPHED
A3: Receptor | B3: Worker
A4: Duration | B4: Acute
A5: Parameter/Assumption | B5: Code / Range | C5: Equation/ Value | D5: Units | E5: Reference/Equation
A6: Body Weight | B6: BW | C6: =A02a!$C$39 -> 70 | E6: ICRP 1975
A7: Amount a.i. handled per day (a.e. for weak acids): | B7: Amnt
B8: Central | C8: ='A01'!WrkAmntHndl_C -> 7.5e-05 | D8: lb a.i. | E8: Worksheet A01
B9: Lower | C9: ='A01'!WrkAmntHndl_L -> 3.75e-05 | E9: Worksheet A01
B10: Upper | C10: ='A01'!WrkAmntHndl_U -> 0.00015 | E10: Worksheet A01
A11: Dermal Exposure Rate: | B11: DermRate
B12: Central | C12: 71 | D12: mg per lb handled | E12: Worksheet A01
B13: Lower | C13: 71 | E13: Worksheet A01
B14: Upper | C14: 71 | E14: Worksheet A01
A15: PPE Factor for Dermal Exposure: | B15: DermPPE
B16: Central | C16: 0 | D16: Proportion | E16: Scenario parameter
B17: Upper | C17: 0 | E17: Scenario parameter
B18: Lower | C18: 0 | E18: Scenario parameter
A19: Amount Deposited on Skin | B19: DermAmnt | C19: Amnt × DermRate × (1-DermPPE)
B20: Central | C20: =C8*C12*(1-C16) -> 0.005325 | D20: mg/day | E20: Eq.
B21: Lower | C21: =C9*C13*(1-C17) -> 0.0026625 | E21: Eq.
B22: Upper | C22: =C10*C14*(1-C18) -> 0.01065 | E22: Eq.
A23: First-order dermal absorption rates | B23: ka
B24: Central | C24: ='B01'!$C$11 -> 0.0007 | D24: hour-1
B25: Lower | C25: ='B01'!$C$12 -> 0.00025
B26: Upper | C26: ='B01'!$C$13 -> 0.0019
A27: Period of exposure | B27: T | C27: 8 | D27: hours | E27: Scenario parameter
A28: Proportion absorbed by skin over period T | B28: Prop | C28: 1-exp(-ka T)
B29: Central | C29: =1-EXP(-C24*C$27) -> 0.005584349228 | D29: Proportion | E29: Eq.
B30: Lower | C30: =1-EXP(-C25*C$27) -> 0.001998001333 | E30: Eq.
B31: Upper | C31: =1-EXP(-C26*C$27) -> 0.01508506308 | E31: Eq.
A32: Absorbed Dermal Dose | B32: DermAbs | C32: Amnt × Prop
B33: Central | C33: =C20*C29 -> 2.973665964e-05 | D33: mg | E33: Eq.
B34: Lower | C34: =C21*C30 -> 5.319678548e-06 | D34: mg | E34: Eq.
B35: Upper | C35: =C22*C31 -> 0.0001606559218 | D35: mg | E35: Eq.
A36: Inhalation Exposure Rate: | B36: InhExpRate
B37: Central | C37: 0.47 | D37: mg/lb handled | E37: Worksheet A01
B38: Lower | C38: 0.47 | E38: Worksheet A01
B39: Upper | C39: 0.47 | E39: Worksheet A01
A40: PPE Factor for Inhalation Exposure: | B40: InhPPE
B41: Central | C41: 0 | D41: Proportion | E41: Scenario parameter
B42: Upper | C42: 0 | E42: Scenario parameter
B43: Lower | C43: 0 | E43: Scenario parameter
A44: Inhalation Absorption Rate: | B44: InhRate | C44: 1 | D44: Proportion
A45: Absorbed Inhalation Dose | B45: InhAbs | C45: Amnt × InhExpRate × (1-InhPPE)
B46: Central | C46: =C8*C37*C$44 -> 3.525e-05 | D46: mg | E46: Eq.
B47: Lower | C47: =C9*C38*C$44 -> 1.7625e-05 | E47: Eq.
B48: Upper | C48: =C10*C39*C$44 -> 7.05e-05 | E48: Eq.
A49: Total Absorbed dose | B49: Dose | C49: (DermAbs + InhAbs) ÷ BW
B50: Central | C50: =(C33+C46)/C$6 -> 9.28380852e-07 | D50: mg/kg bw/day | E50: Eq
B51: Lower | C51: =(C34+C47)/C$6 -> 3.277811221e-07 | E51: Eq
B52: Upper | C52: =(C35+C48)/C$6 -> 3.302227455e-06 | E52: Eq

Sheet C01b
A1: Exposure estimates based on Pesticide Handlers Exposure Database (PHED) Method
A2: Short Title | B2: Poor Hygiene | E2: WkPHED
A3: Receptor | B3: Worker
A4: Duration | B4: Acute
A5: Parameter/Assumption | B5: Code / Range | C5: Equation/ Value | D5: Units | E5: Reference/Equation
A6: Body Weight | B6: BW | C6: =A02a!$C$39 -> 70 | E6: ICRP 1975
A7: Amount a.i. handled per day (a.e. for weak acids): | B7: Amnt
B8: Central | C8: ='A01'!WrkAmntHndl_C -> 7.5e-05 | D8: lb a.i. | E8: Worksheet A01
B9: Lower | C9: ='A01'!WrkAmntHndl_L -> 3.75e-05 | E9: Worksheet A01
B10: Upper | C10: ='A01'!WrkAmntHndl_U -> 0.00015 | E10: Worksheet A01
A11: Dermal Exposure Rate: | B11: DermRate
B12: Central | C12: ='C01a'!C$12 -> 71 | D12: mg per lb handled | E12: Worksheet A01
B13: Lower | C13: ='C01a'!C$13 -> 71 | E13: Worksheet A01
B14: Upper | C14: ='C01a'!C$14 -> 71 | E14: Worksheet A01
A15: PPE Factor for Dermal Exposure: | B15: DermPPE
B16: Central | C16: 0 | D16: Proportion | E16: Scenario parameter
B17: Upper | C17: 0 | E17: Scenario parameter
B18: Lower | C18: 0 | E18: Scenario parameter
A19: Amount Deposited on Skin | B19: DermAmnt | C19: Amnt × DermRate × (1-DermPPE)
B20: Central | C20: =C8*C12*(1-C16) -> 0.005325 | D20: mg/day | E20: Eq.
B21: Lower | C21: =C9*C13*(1-C17) -> 0.0026625 | E21: Eq.
B22: Upper | C22: =C10*C14*(1-C18) -> 0.01065 | E22: Eq.
A23: First-order dermal absorption rates | B23: ka
B24: Central | C24: ='B01'!$C$11 -> 0.0007 | D24: hour-1
B25: Lower | C25: ='B01'!$C$12 -> 0.00025
B26: Upper | C26: ='B01'!$C$13 -> 0.0019
A27: Period of exposure | B27: T | C27: 24 | D27: hours | E27: Scenario parameter
A28: Proportion absorbed by skin over period T | B28: Prop | C28: 1-exp(-ka T)
B29: Central | C29: =1-EXP(-C24*C$27) -> 0.01665966696 | D29: Proportion | E29: Eq.
B30: Lower | C30: =1-EXP(-C25*C$27) -> 0.005982035946 | E30: Eq.
B31: Upper | C31: =1-EXP(-C26*C$27) -> 0.04457594461 | E31: Eq.
A32: Absorbed Dermal Dose | B32: DermAbs | C32: Amnt × Prop
B33: Central | C33: =C20*C29 -> 8.871272658e-05 | D33: mg | E33: Eq.
B34: Lower | C34: =C21*C30 -> 1.592717071e-05 | D34: mg | E34: Eq.
B35: Upper | C35: =C22*C31 -> 0.0004747338101 | D35: mg | E35: Eq.
A36: Inhalation Exposure Rate: | B36: InhExpRate
B37: Central | C37: ='C01a'!C$37 -> 0.47 | D37: mg/lb handled | E37: Worksheet A01
B38: Lower | C38: ='C01a'!C$38 -> 0.47 | E38: Worksheet A01
B39: Upper | C39: ='C01a'!C$39 -> 0.47 | E39: Worksheet A01
A40: PPE Factor for Inhalation Exposure: | B40: InhPPE
B41: Central | C41: 0 | D41: Proportion | E41: Scenario parameter
B42: Upper | C42: 0 | E42: Scenario parameter
B43: Lower | C43: 0 | E43: Scenario parameter
A44: Inhalation Absorption Rate: | B44: InhRate | C44: 1 | D44: Proportion
A45: Absorbed Inhalation Dose | B45: InhAbs | C45: Amnt × InhExpRate × (1-InhPPE)
B46: Central | C46: =C8*C37*C$44 -> 3.525e-05 | D46: mg | E46: Eq.
B47: Lower | C47: =C9*C38*C$44 -> 1.7625e-05 | E47: Eq.
B48: Upper | C48: =C10*C39*C$44 -> 7.05e-05 | E48: Eq.
A49: Total Absorbed dose | B49: Dose | C49: (DermAbs + InhAbs) ÷ BW
B50: Central | C50: =(C33+C46)/C$6 -> 1.770896094e-06 | D50: mg/kg bw/day | E50: Eq
B51: Lower | C51: =(C34+C47)/C$6 -> 4.793167244e-07 | E51: Eq
B52: Upper | C52: =(C35+C48)/C$6 -> 7.78905443e-06 | E52: Eq

Sheet C02a
A1: Dermal Exposure Assessment for a Granular Exposure Using Zero-Order Absorption, Worker, Surface Area, Hands, for 1 minute(s)
A2: Short Title | B2: Contaminated Gloves, 1 minute | E2: DrmZrGran
A3: Receptor | B3: Worker
A4: Duration | B4: Acute
A5: Surface Contaminated | B5: Surface Area, Hands
A6: Parameter/Assumption | B6: Code / Range | C6: Equation/ Value | D6: Units | E6: Reference/Designation
A7: Surface Area | B7: SA | C7: =A02a!$C$40 -> 840 | D7: cm2 | E7: U.S. EPA/ORD 1992
A8: Duration of Exposure | B8: T_min | C8: 1 | D8: minutes | E8: Scenario parameter
B9: T_hr | C9: =C8/60 -> 0.01666666667 | D9: hours | E9: Eq
A10: Body weight | B10: BW | C10: =A02a!$C$39 -> 70 | D10: kg | E10: ICRP 1975
A11: Water Solubility (mg/mL) | B11: WS | C11: ='B01'!$C$10/1000 -> 0.00343 | D11: mg/mL
A12: Toxic Equivalency Factor for formulation: (See risk assessment if this has a value other than 1.) | B12: TEF
B13: Central | C13: ='A01'!C$24 -> 1 | D13: Unitless | E13: Worksheet A01
B14: Lower | C14: ='A01'!C$25 -> 1 | E14: Worksheet A01
B15: Upper | C15: ='A01'!C$26 -> 1 | E15: Worksheet A01
A16: Dermal permeability | B16: Kp
B17: Central | C17: ='B01'!$C$14 -> 0.00023 | D17: cm/hour
B18: Lower | C18: ='B01'!$C$15 -> 0.00014
B19: Upper | C19: ='B01'!$C$16 -> 0.00039
A20: Absorbed Dose | B20: Dose | C20: Kp × WS × T_hr × SA x TEF ÷ BW
B21: Central | C21: =C17*C$11*C$9*C$7*C13/C$10 -> 1.5778e-07 | D21: mg/kg | E21: Eq
B22: Lower | C22: =C18*C$11*C$9*C$7*C14/C$10 -> 9.604e-08 | D22: mg/kg | E22: Eq
B23: Upper | C23: =C19*C$11*C$9*C$7*C15/C$10 -> 2.6754e-07 | D23: mg/kg | E23: Eq

Sheet C02b
A1: Dermal Exposure Assessment for a Granular Exposure Using Zero-Order Absorption, Worker, Surface Area, Hands, for 60 minute(s)
A2: Short Title | B2: Contaminated Gloves, 1 hour | E2: DrmZrGran
A3: Receptor | B3: Worker
A4: Duration | B4: Acute
A5: Surface Contaminated | B5: Surface Area, Hands
A6: Parameter/Assumption | B6: Code / Range | C6: Equation/ Value | D6: Units | E6: Reference/Designation
A7: Surface Area | B7: SA | C7: =A02a!$C$40 -> 840 | D7: cm2 | E7: U.S. EPA/ORD 1992
A8: Duration of Exposure | B8: T_min | C8: 60 | D8: minutes | E8: Scenario parameter
B9: T_hr | C9: =C8/60 -> 1 | D9: hours | E9: Eq
A10: Body weight | B10: BW | C10: =A02a!$C$39 -> 70 | D10: kg | E10: ICRP 1975
A11: Water Solubility (mg/mL) | B11: WS | C11: ='B01'!$C$10/1000 -> 0.00343 | D11: mg/mL
A12: Toxic Equivalency Factor for formulation: (See risk assessment if this has a value other than 1.) | B12: TEF
B13: Central | C13: ='A01'!C$24 -> 1 | D13: Unitless | E13: Worksheet A01
B14: Lower | C14: ='A01'!C$25 -> 1 | E14: Worksheet A01
B15: Upper | C15: ='A01'!C$26 -> 1 | E15: Worksheet A01
A16: Dermal permeability | B16: Kp
B17: Central | C17: ='B01'!$C$14 -> 0.00023 | D17: cm/hour
B18: Lower | C18: ='B01'!$C$15 -> 0.00014
B19: Upper | C19: ='B01'!$C$16 -> 0.00039
A20: Absorbed Dose | B20: Dose | C20: Kp × WS × T_hr × SA x TEF ÷ BW
B21: Central | C21: =C17*C$11*C$9*C$7*C13/C$10 -> 9.4668e-06 | D21: mg/kg | E21: Eq
B22: Lower | C22: =C18*C$11*C$9*C$7*C14/C$10 -> 5.7624e-06 | D22: mg/kg | E22: Eq
B23: Upper | C23: =C19*C$11*C$9*C$7*C15/C$10 -> 1.60524e-05 | D23: mg/kg | E23: Eq

Sheet C02c
A1: Dermal Exposure Assessment for a Granular Exposure Using Zero-Order Absorption, Worker, Surface Area, Hands, for 480 minute(s)
A2: Short Title | B2: Contaminated Gloves, 1 day | E2: DrmZrGran
A3: Receptor | B3: Worker
A4: Duration | B4: Acute
A5: Surface Contaminated | B5: Surface Area, Hands
A6: Parameter/Assumption | B6: Code / Range | C6: Equation/ Value | D6: Units | E6: Reference/Designation
A7: Surface Area | B7: SA | C7: =A02a!$C$40 -> 840 | D7: cm2 | E7: U.S. EPA/ORD 1992
A8: Duration of Exposure | B8: T_min | C8: 480 | D8: minutes | E8: Scenario parameter
B9: T_hr | C9: =C8/60 -> 8 | D9: hours | E9: Eq
A10: Body weight | B10: BW | C10: =A02a!$C$39 -> 70 | D10: kg | E10: ICRP 1975
A11: Water Solubility (mg/mL) | B11: WS | C11: ='B01'!$C$10/1000 -> 0.00343 | D11: mg/mL
A12: Toxic Equivalency Factor for formulation: (See risk assessment if this has a value other than 1.) | B12: TEF
B13: Central | C13: ='A01'!C$24 -> 1 | D13: Unitless | E13: Worksheet A01
B14: Lower | C14: ='A01'!C$25 -> 1 | E14: Worksheet A01
B15: Upper | C15: ='A01'!C$26 -> 1 | E15: Worksheet A01
A16: Dermal permeability | B16: Kp
B17: Central | C17: ='B01'!$C$14 -> 0.00023 | D17: cm/hour
B18: Lower | C18: ='B01'!$C$15 -> 0.00014
B19: Upper | C19: ='B01'!$C$16 -> 0.00039
A20: Absorbed Dose | B20: Dose | C20: Kp × WS × T_hr × SA x TEF ÷ BW
B21: Central | C21: =C17*C$11*C$9*C$7*C13/C$10 -> 7.57344e-05 | D21: mg/kg | E21: Eq
B22: Lower | C22: =C18*C$11*C$9*C$7*C14/C$10 -> 4.60992e-05 | D22: mg/kg | E22: Eq
B23: Upper | C23: =C19*C$11*C$9*C$7*C15/C$10 -> 0.0001284192 | D23: mg/kg | E23: Eq

Sheet D01
A1: Consumption of Bait by a Small Child
A2: Short Title | B2: Consumption of bait by child | E2: BaitChild
A3: Receptor | B3: Child
A4: Duration | B4: Acute
A5: Material consumed | B5: Bait
A6: Parameter/Assumption | B6: Code / Range | C6: Equation/ Value | D6: Units | E6: Reference/Designation
A7: Proportion a.i. in bait | B7: PerCentAI | C7: ='A01'!PerCentAI -> 5e-05 | D7: proportion a.i. | E7: Worksheet A01
A8: Body weight | B8: BW | C8: 13.5 | D8: kg | E8: Scenario parameter
A9: Amount consumed (mouthful) | B9: Amnt
B10: Central | C10: 8.2 | D10: grams | E10: Ratnapalan et al. 2003
B11: Lower | C11: 5.5
B12: Upper | C12: 10.9
A13: Toxic Equivalency Factor for formulation: (See risk assessment if this has a value other than 1.) | B13: TEF
B14: Central | C14: ='A01'!C$24 -> 1 | D14: Unitless | E14: Worksheet A01
B15: Lower | C15: ='A01'!C$25 -> 1 | E15: Worksheet A01
B16: Upper | C16: ='A01'!C$26 -> 1 | E16: Worksheet A01
A17: Dose | B17: Dose | C17: Amnt × PerCentAI × 1000 mg/g × TEF / BW
B18: Central | C18: =C$7* C10* 1000 * C14/C$8 -> 0.03037037037 | D18: mg/kg bw | E18: Eq
B19: Lower | C19: =C$7* C11* 1000 * C15/C$8 -> 0.02037037037 | E19: Eq
B20: Upper | C20: =C$7* C12* 1000 * C16/C$8 -> 0.04037037037 | E20: Eq

Sheet D02
A1: Consumption of contaminated water by Child, Accidental Spill
A2: Short Title | B2: Accidental Spill | E2: WatAmntV6
A3: Receptor | B3: Child
A4: Duration | B4: Acute | E4: Scenario parameter
A5: Parameter/Assumption | B5: Code / Range | C5: Equation/ Value | D5: Units | E5: Reference/Designation
A6: Concentration in water | B6: ConcWat
B7: Central | C7: =B04b!Acute_C -> 0.0006804 | D7: mg/L | E7: ='B04b'!Acute_C
B8: Lower | C8: =B04b!Acute_L -> 0.0004536 | E8: ='B04b'!Acute_L
B9: Upper | C9: =B04b!Acute_U -> 0.0009072 | E9: ='B04b'!Acute_U
A10: Receptor
A11: Amount of water consumed in one day | B11: Amnt
B12: Central | C12: ='A03'!$E$44 -> 1 | D12: liters/day | E12: U.S. EPA/ORD 1996
B13: Lower | C13: ='A03'!$E$45 -> 0.61 | E13: U.S. EPA/ORD 1996
B14: Upper | C14: ='A03'!$E$46 -> 1.5 | E14: U.S. EPA/ORD 1996
A15: Body weight | B15: BW | C15: =A02a!$C$28 -> 13.3 | D15: kg | E15: U.S. EPA/ORD 1996
A16: Dose | B16: Dose | C16: ConcWat × Amnt ÷ BW
B17: Central | C17: =C7*C12/C$15 -> 5.115789474e-05 | D17: mg/kg | E17: Eq
B18: Lower | C18: =C8*C13/C$15 -> 2.080421053e-05 | D18: mg/kg | E18: Eq
B19: Upper | C19: =C9*C14/C$15 -> 0.0001023157895 | D19: mg/kg | E19: Eq

Sheet D03a
A1: Consumption of Contaminated Fish (Accidental Spill), Adult Male, acute exposure
A2: Short Title | B2: Fish consumption | E2: FishAmntV6
A3: Receptor | B3: Adult Male
A4: Duration | B4: acute
A5: Parameter/Assumption | B5: Code / Range | C5: Equation/ Value | D5: Units | E5: Reference/Designation
A6: Water
A7: Concentration in water | B7: ConcWat | C7: ApR × WCR
B8: Central | C8: =B04b!Acute_C -> 0.0006804 | D8: mg/L | E8: ='B04b'!Acute_C
B9: Lower | C9: =B04b!Acute_L -> 0.0004536 | E9: ='B04b'!Acute_L
B10: Upper | C10: =B04b!Acute_U -> 0.0009072 | E10: ='B04b'!Acute_U
A11: Fish
A12: Bioconcentration factor | B12: BCF
B13: Central | C13: ='B01'!$C$4 -> 2.408 | D13: L/kg
B14: Lower | C14: ='B01'!$C$4 -> 2.408
B15: Upper | C15: ='B01'!$C$4 -> 2.408
A16: Concentration in fish | B16: ConcFish | C16: ConcWat × BCF
B17: Central | C17: =C8*C13 -> 0.0016384032 | D17: mg/kg | E17: Eq
B18: Lower | C18: =C9*C14 -> 0.0010922688 | E18: Eq
B19: Upper | C19: =C10*C15 -> 0.0021845376 | E19: Eq
A20: Receptor
A21: Amount of fish consumed | B21: Amnt
B22: Central | C22: ='A03'!$E$20 -> 0.158 | D22: kg/day | E22: Ruffle et al. 1994
B23: Lower | C23: ='A03'!$E$20 -> 0.158 | E23: Ruffle et al. 1994
B24: Upper | C24: ='A03'!$E$20 -> 0.158 | E24: Ruffle et al. 1994
A25: Toxic Equivalency Factor for formulation: (See risk assessment if this has a value other than 1.) | B25: TEF
B26: Central | C26: ='A01'!C$24 -> 1 | D26: Unitless | E26: Worksheet A01
B27: Lower | C27: ='A01'!C$25 -> 1 | E27: Worksheet A01
B28: Upper | C28: ='A01'!C$26 -> 1 | E28: Worksheet A01
A29: Body weight | B29: BW | C29: =A02a!$C$8 -> 70 | D29: kg | E29: ICRP 1975
A30: Dose | B30: Dose | C30: ConcFish× Amnt x TEF ÷ BW
B31: Central | C31: =C17*C22*C26/C$29 -> 3.69811008e-06 | D31: mg/kg | E31: Eq
B32: Lower | C32: =C18*C23*C27/C$29 -> 2.46540672e-06 | D32: mg/kg | E32: Eq
B33: Upper | C33: =C19*C24*C28/C$29 -> 4.93081344e-06 | D33: mg/kg | E33: Eq
E34: FishAmntV6

Sheet D03b
A1: Consumption of Contaminated Fish (Accidental Spill), Subsistence Populations, acute exposure
A2: Short Title | B2: Fish consumption | E2: FishAmntV6
A3: Receptor | B3: Subsistence Populations
A4: Duration | B4: acute
A5: Parameter/Assumption | B5: Code / Range | C5: Equation/ Value | D5: Units | E5: Reference/Designation
A6: Water
A7: Concentration in water | B7: ConcWat | C7: ApR × WCR
B8: Central | C8: =B04b!Acute_C -> 0.0006804 | D8: mg/L | E8: ='B04b'!Acute_C
B9: Lower | C9: =B04b!Acute_L -> 0.0004536 | E9: ='B04b'!Acute_L
B10: Upper | C10: =B04b!Acute_U -> 0.0009072 | E10: ='B04b'!Acute_U
A11: Fish
A12: Bioconcentration factor | B12: BCF
B13: Central | C13: ='B01'!$C$4 -> 2.408 | D13: L/kg
B14: Lower | C14: ='B01'!$C$4 -> 2.408
B15: Upper | C15: ='B01'!$C$4 -> 2.408
A16: Concentration in fish | B16: ConcFish | C16: ConcWat × BCF
B17: Central | C17: =C8*C13 -> 0.0016384032 | D17: mg/kg | E17: Eq
B18: Lower | C18: =C9*C14 -> 0.0010922688 | E18: Eq
B19: Upper | C19: =C10*C15 -> 0.0021845376 | E19: Eq
A20: Receptor
A21: Amount of fish consumed | B21: Amnt
B22: Central | C22: ='A03'!$E$35 -> 0.77 | D22: kg/day | E22: U.S. EPA/ORD 1993
B23: Lower | C23: ='A03'!$E$35 -> 0.77 | E23: U.S. EPA/ORD 1993
B24: Upper | C24: ='A03'!$E$35 -> 0.77 | E24: U.S. EPA/ORD 1993
A25: Toxic Equivalency Factor for formulation: (See risk assessment if this has a value other than 1.) | B25: TEF
B26: Central | C26: ='A01'!C$24 -> 1 | D26: Unitless | E26: Worksheet A01
B27: Lower | C27: ='A01'!C$25 -> 1 | E27: Worksheet A01
B28: Upper | C28: ='A01'!C$26 -> 1 | E28: Worksheet A01
A29: Body weight | B29: BW | C29: =A02a!$C$9 -> 70 | D29: kg | E29: ICRP 1975
A30: Dose | B30: Dose | C30: ConcFish× Amnt x TEF ÷ BW
B31: Central | C31: =C17*C22*C26/C$29 -> 1.80224352e-05 | D31: mg/kg | E31: Eq
B32: Lower | C32: =C18*C23*C27/C$29 -> 1.20149568e-05 | D32: mg/kg | E32: Eq
B33: Upper | C33: =C19*C24*C28/C$29 -> 2.40299136e-05 | D33: mg/kg | E33: Eq
E34: FishAmntV6

Sheet D04
A1: Swimming Exposure Assessment Using Zero-Order Absorption, Adult Female, Surface Area, Whole body, for 60 minute(s)
A2: Short Title | B2: Swimming | E2: DrmZrSwm
A3: Receptor | B3: Adult Female
A4: Duration | B4: Acute
A5: Surface Contaminated | B5: Surface Area, Whole body
A6: Parameter/Assumption | B6: Code / Range | C6: Equation/ Value | D6: Units | E6: Reference/Designation
A7: Application Rate | B7: ApRt | C7: ='A01'!ApRt_C -> 0.000625 | D7: lb/acre | E7: Worksheet A01
A8: Surface Area | B8: SA | C8: =A02a!$C$7 -> 16900 | D8: cm2 | E8: U.S. EPA/ORD 1997
A9: Duration of Exposure | B9: T_min | C9: ='A01'!C$22 -> 60 | D9: minutes | E9: Worksheet A01
B10: T_hr | C10: =C9/60 -> 1 | D10: hours | E10: Eq
A11: Body weight | B11: BW | C11: =A02a!$C$4 -> 64 | D11: kg | E11: U.S. EPA/ORD 1985
A12: Water contamination rate | B12: WCR
B13: Central | C13: =B04Rt!$C$4 -> 0.002 | D13: mg/L per lb/acre
B14: Lower | C14: =B04Rt!$C$5 -> 0.0002
B15: Upper | C15: =B04Rt!$C$6 -> 0.01
A16: Concentration in water in mg/mL | B16: ConcWat | C16: ApR × WCR / 1000
B17: Central | C17: =C$7*C13/1000 -> 1.25e-09 | D17: mg/mL | E17: Eq
B18: Lower | C18: =C$7*C14/1000 -> 1.25e-10 | E18: Eq
B19: Upper | C19: =C$7*C15/1000 -> 6.25e-09 | E19: Eq
A20: Toxic Equivalency Factor for formulation: (See risk assessment if this has a value other than 1.) | B20: TEF
B21: Central | C21: ='A01'!C$24 -> 1 | D21: Unitless | E21: Worksheet A01
B22: Lower | C22: ='A01'!C$25 -> 1 | E22: Worksheet A01
B23: Upper | C23: ='A01'!C$26 -> 1 | E23: Worksheet A01
A24: Dermal permeability | B24: Kp
B25: Central | C25: ='B01'!$C$14 -> 0.00023 | D25: cm/hour
B26: Lower | C26: ='B01'!$C$15 -> 0.00014
B27: Upper | C27: ='B01'!$C$16 -> 0.00039
A28: Absorbed Dose | B28: Dose | C28: Kp × Conc × T_hr × SA × TEF ÷ BW
B29: Central | C29: =C25*C17*C$10*C$8*C21/C$11 -> 7.591796875e-11 | D29: mg/kg
B30: Lower | C30: =C26*C18*C$10*C$8*C22/C$11 -> 4.62109375e-12 | D30: mg/kg
B31: Upper | C31: =C27*C19*C$10*C$8*C23/C$11 -> 6.436523437e-10 | D31: mg/kg

Sheet D05
A1: Consumption of contaminated water by Child, Peak Conentrations
A2: Short Title | B2: Peak Conentrations | E2: WatAmntV6
A3: Receptor | B3: Child
A4: Duration | B4: Acute | E4: Scenario parameter
A5: Parameter/Assumption | B5: Code / Range | C5: Equation/ Value | D5: Units | E5: Reference/Designation
A6: Concentration in water | B6: ConcWat
B7: Central | C7: =B04a!Acute_C -> 1.25e-06 | D7: mg/L | E7: ='B04a'!Acute_C
B8: Lower | C8: =B04a!Acute_L -> 1.25e-07 | E8: ='B04a'!Acute_L
B9: Upper | C9: =B04a!Acute_U -> 6.25e-06 | E9: ='B04a'!Acute_U
A10: Receptor
A11: Amount of water consumed in one day | B11: Amnt
B12: Central | C12: ='A03'!$E$44 -> 1 | D12: liters/day | E12: U.S. EPA/ORD 1996
B13: Lower | C13: ='A03'!$E$45 -> 0.61 | E13: U.S. EPA/ORD 1996
B14: Upper | C14: ='A03'!$E$46 -> 1.5 | E14: U.S. EPA/ORD 1996
A15: Body weight | B15: BW | C15: =A02a!$C$28 -> 13.3 | D15: kg | E15: U.S. EPA/ORD 1996
A16: Dose | B16: Dose | C16: ConcWat × Amnt ÷ BW
B17: Central | C17: =C7*C12/C$15 -> 9.398496241e-08 | D17: mg/kg | E17: Eq
B18: Lower | C18: =C8*C13/C$15 -> 5.733082707e-09 | D18: mg/kg | E18: Eq
B19: Upper | C19: =C9*C14/C$15 -> 7.04887218e-07 | D19: mg/kg | E19: Eq

Sheet D06a
A1: Consumption of Contaminated Fish (Peak Exposure), Adult Male, acute exposure
A2: Short Title | B2: Fish consumption | E2: FishAmntV6
A3: Receptor | B3: Adult Male
A4: Duration | B4: acute
A5: Parameter/Assumption | B5: Code / Range | C5: Equation/ Value | D5: Units | E5: Reference/Designation
A6: Water
A7: Concentration in water | B7: ConcWat | C7: ApR × WCR
B8: Central | C8: =B04a!Acute_C -> 1.25e-06 | D8: mg/L | E8: ='B04a'!Acute_C
B9: Lower | C9: =B04a!Acute_L -> 1.25e-07 | E9: ='B04a'!Acute_L
B10: Upper | C10: =B04a!Acute_U -> 6.25e-06 | E10: ='B04a'!Acute_U
A11: Fish
A12: Bioconcentration factor | B12: BCF
B13: Central | C13: ='B01'!$C$4 -> 2.408 | D13: L/kg
B14: Lower | C14: ='B01'!$C$4 -> 2.408
B15: Upper | C15: ='B01'!$C$4 -> 2.408
A16: Concentration in fish | B16: ConcFish | C16: ConcWat × BCF
B17: Central | C17: =C8*C13 -> 3.01e-06 | D17: mg/kg | E17: Eq
B18: Lower | C18: =C9*C14 -> 3.01e-07 | E18: Eq
B19: Upper | C19: =C10*C15 -> 1.505e-05 | E19: Eq
A20: Receptor
A21: Amount of fish consumed | B21: Amnt
B22: Central | C22: ='A03'!$E$20 -> 0.158 | D22: kg/day | E22: Ruffle et al. 1994
B23: Lower | C23: ='A03'!$E$20 -> 0.158 | E23: Ruffle et al. 1994
B24: Upper | C24: ='A03'!$E$20 -> 0.158 | E24: Ruffle et al. 1994
A25: Toxic Equivalency Factor for formulation: (See risk assessment if this has a value other than 1.) | B25: TEF
B26: Central | C26: ='A01'!C$24 -> 1 | D26: Unitless | E26: Worksheet A01
B27: Lower | C27: ='A01'!C$25 -> 1 | E27: Worksheet A01
B28: Upper | C28: ='A01'!C$26 -> 1 | E28: Worksheet A01
A29: Body weight | B29: BW | C29: =A02a!$C$8 -> 70 | D29: kg | E29: ICRP 1975
A30: Dose | B30: Dose | C30: ConcFish× Amnt x TEF ÷ BW
B31: Central | C31: =C17*C22*C26/C$29 -> 6.794e-09 | D31: mg/kg | E31: Eq
B32: Lower | C32: =C18*C23*C27/C$29 -> 6.794e-10 | D32: mg/kg | E32: Eq
B33: Upper | C33: =C19*C24*C28/C$29 -> 3.397e-08 | D33: mg/kg | E33: Eq
E34: FishAmntV6

Sheet D06b
A1: Consumption of Contaminated Fish (Peak Exposure), Subsistence Populations, acute exposure
A2: Short Title | B2: Fish consumption | E2: FishAmntV6
A3: Receptor | B3: Subsistence Populations
A4: Duration | B4: acute
A5: Parameter/Assumption | B5: Code / Range | C5: Equation/ Value | D5: Units | E5: Reference/Designation
A6: Water
A7: Concentration in water | B7: ConcWat | C7: ApR × WCR
B8: Central | C8: =B04a!Acute_C -> 1.25e-06 | D8: mg/L | E8: ='B04a'!Acute_C
B9: Lower | C9: =B04a!Acute_L -> 1.25e-07 | E9: ='B04a'!Acute_L
B10: Upper | C10: =B04a!Acute_U -> 6.25e-06 | E10: ='B04a'!Acute_U
A11: Fish
A12: Bioconcentration factor | B12: BCF
B13: Central | C13: ='B01'!$C$4 -> 2.408 | D13: L/kg
B14: Lower | C14: ='B01'!$C$4 -> 2.408
B15: Upper | C15: ='B01'!$C$4 -> 2.408
A16: Concentration in fish | B16: ConcFish | C16: ConcWat × BCF
B17: Central | C17: =C8*C13 -> 3.01e-06 | D17: mg/kg | E17: Eq
B18: Lower | C18: =C9*C14 -> 3.01e-07 | E18: Eq
B19: Upper | C19: =C10*C15 -> 1.505e-05 | E19: Eq
A20: Receptor
A21: Amount of fish consumed | B21: Amnt
B22: Central | C22: ='A03'!$E$35 -> 0.77 | D22: kg/day | E22: U.S. EPA/ORD 1993
B23: Lower | C23: ='A03'!$E$35 -> 0.77 | E23: U.S. EPA/ORD 1993
B24: Upper | C24: ='A03'!$E$35 -> 0.77 | E24: U.S. EPA/ORD 1993
A25: Toxic Equivalency Factor for formulation: (See risk assessment if this has a value other than 1.) | B25: TEF
B26: Central | C26: ='A01'!C$24 -> 1 | D26: Unitless | E26: Worksheet A01
B27: Lower | C27: ='A01'!C$25 -> 1 | E27: Worksheet A01
B28: Upper | C28: ='A01'!C$26 -> 1 | E28: Worksheet A01
A29: Body weight | B29: BW | C29: =A02a!$C$9 -> 70 | D29: kg | E29: ICRP 1975
A30: Dose | B30: Dose | C30: ConcFish× Amnt x TEF ÷ BW
B31: Central | C31: =C17*C22*C26/C$29 -> 3.311e-08 | D31: mg/kg | E31: Eq
B32: Lower | C32: =C18*C23*C27/C$29 -> 3.311e-09 | D32: mg/kg | E32: Eq
B33: Upper | C33: =C19*C24*C28/C$29 -> 1.6555e-07 | D33: mg/kg | E33: Eq
E34: FishAmntV6

Sheet D07
A1: Consumption of contaminated water by Adult Male, Longer-term Conentrations
A2: Short Title | B2: Longer-term Conentrations | E2: WatAmntV6
A3: Receptor | B3: Adult Male
A4: Duration | B4: Chronic | E4: Scenario parameter
A5: Parameter/Assumption | B5: Code / Range | C5: Equation/ Value | D5: Units | E5: Reference/Designation
A6: Concentration in water | B6: ConcWat
B7: Central | C7: =B04a!Chronic_C -> 3.125e-08 | D7: mg/L | E7: ='B04a'!Chronic_C
B8: Lower | C8: =B04a!Chronic_L -> 1.25e-09 | E8: ='B04a'!Chronic_L
B9: Upper | C9: =B04a!Chronic_U -> 1.875e-07 | E9: ='B04a'!Chronic_U
A10: Receptor
A11: Amount of water consumed in one day | B11: Amnt
B12: Central | C12: ='A03'!$E$31 -> 2 | D12: liters/day | E12: U.S. EPA/ORD 1996
B13: Lower | C13: ='A03'!$E$32 -> 1.4 | E13: U.S. EPA/ORD 1996
B14: Upper | C14: ='A03'!$E$33 -> 2.4 | E14: U.S. EPA/ORD 1996
A15: Body weight | B15: BW | C15: =A02a!$C$8 -> 70 | D15: kg | E15: ICRP 1975
A16: Dose | B16: Dose | C16: ConcWat × Amnt ÷ BW
B17: Central | C17: =C7*C12/C$15 -> 8.928571429e-10 | D17: mg/kg | E17: Eq
B18: Lower | C18: =C8*C13/C$15 -> 2.5e-11 | D18: mg/kg | E18: Eq
B19: Upper | C19: =C9*C14/C$15 -> 6.428571429e-09 | D19: mg/kg | E19: Eq

Sheet D08a
A1: Consumption of Contaminated Fish (Longer-term), Adult Male, chronic exposure
A2: Short Title | B2: Fish consumption | E2: FishAmntV6
A3: Receptor | B3: Adult Male
A4: Duration | B4: chronic
A5: Parameter/Assumption | B5: Code / Range | C5: Equation/ Value | D5: Units | E5: Reference/Designation
A6: Water
A7: Concentration in water | B7: ConcWat | C7: ApR × WCR
B8: Central | C8: =B04a!Chronic_C -> 3.125e-08 | D8: mg/L | E8: ='B04a'!Chronic_C
B9: Lower | C9: =B04a!Chronic_L -> 1.25e-09 | E9: ='B04a'!Chronic_L
B10: Upper | C10: =B04a!Chronic_U -> 1.875e-07 | E10: ='B04a'!Chronic_U
A11: Fish
A12: Bioconcentration factor | B12: BCF
B13: Central | C13: ='B01'!$C$5 -> 2.408 | D13: L/kg
B14: Lower | C14: ='B01'!$C$5 -> 2.408
B15: Upper | C15: ='B01'!$C$5 -> 2.408
A16: Concentration in fish | B16: ConcFish | C16: ConcWat × BCF
B17: Central | C17: =C8*C13 -> 7.525e-08 | D17: mg/kg | E17: Eq
B18: Lower | C18: =C9*C14 -> 3.01e-09 | E18: Eq
B19: Upper | C19: =C10*C15 -> 4.515e-07 | E19: Eq
A20: Receptor
A21: Amount of fish consumed | B21: Amnt
B22: Central | C22: ='A03'!$E$19 -> 0.01 | D22: kg/day | E22: U.S. EPA/ORD 1996
B23: Lower | C23: ='A03'!$E$19 -> 0.01 | E23: U.S. EPA/ORD 1996
B24: Upper | C24: ='A03'!$E$19 -> 0.01 | E24: U.S. EPA/ORD 1996
A25: Toxic Equivalency Factor for formulation: (See risk assessment if this has a value other than 1.) | B25: TEF
B26: Central | C26: ='A01'!C$24 -> 1 | D26: Unitless | E26: Worksheet A01
B27: Lower | C27: ='A01'!C$25 -> 1 | E27: Worksheet A01
B28: Upper | C28: ='A01'!C$26 -> 1 | E28: Worksheet A01
A29: Body weight | B29: BW | C29: =A02a!$C$8 -> 70 | D29: kg | E29: ICRP 1975
A30: Dose | B30: Dose | C30: ConcFish× Amnt x TEF ÷ BW
B31: Central | C31: =C17*C22*C26/C$29 -> 1.075e-11 | D31: mg/kg | E31: Eq
B32: Lower | C32: =C18*C23*C27/C$29 -> 4.3e-13 | D32: mg/kg | E32: Eq
B33: Upper | C33: =C19*C24*C28/C$29 -> 6.45e-11 | D33: mg/kg | E33: Eq
E34: FishAmntV6

Sheet D08b
A1: Consumption of Contaminated Fish (Longer-term), Subsistence Populations, chronic exposure
A2: Short Title | B2: Fish consumption | E2: FishAmntV6
A3: Receptor | B3: Subsistence Populations
A4: Duration | B4: chronic
A5: Parameter/Assumption | B5: Code / Range | C5: Equation/ Value | D5: Units | E5: Reference/Designation
A6: Water
A7: Concentration in water | B7: ConcWat | C7: ApR × WCR
B8: Central | C8: =B04a!Chronic_C -> 3.125e-08 | D8: mg/L | E8: ='B04a'!Chronic_C
B9: Lower | C9: =B04a!Chronic_L -> 1.25e-09 | E9: ='B04a'!Chronic_L
B10: Upper | C10: =B04a!Chronic_U -> 1.875e-07 | E10: ='B04a'!Chronic_U
A11: Fish
A12: Bioconcentration factor | B12: BCF
B13: Central | C13: ='B01'!$C$5 -> 2.408 | D13: L/kg
B14: Lower | C14: ='B01'!$C$5 -> 2.408
B15: Upper | C15: ='B01'!$C$5 -> 2.408
A16: Concentration in fish | B16: ConcFish | C16: ConcWat × BCF
B17: Central | C17: =C8*C13 -> 7.525e-08 | D17: mg/kg | E17: Eq
B18: Lower | C18: =C9*C14 -> 3.01e-09 | E18: Eq
B19: Upper | C19: =C10*C15 -> 4.515e-07 | E19: Eq
A20: Receptor
A21: Amount of fish consumed | B21: Amnt
B22: Central | C22: ='A03'!$E$34 -> 0.081 | D22: kg/day | E22: U.S. EPA/ORD 1996
B23: Lower | C23: ='A03'!$E$34 -> 0.081 | E23: U.S. EPA/ORD 1996
B24: Upper | C24: ='A03'!$E$34 -> 0.081 | E24: U.S. EPA/ORD 1996
A25: Toxic Equivalency Factor for formulation: (See risk assessment if this has a value other than 1.) | B25: TEF
B26: Central | C26: ='A01'!C$24 -> 1 | D26: Unitless | E26: Worksheet A01
B27: Lower | C27: ='A01'!C$25 -> 1 | E27: Worksheet A01
B28: Upper | C28: ='A01'!C$26 -> 1 | E28: Worksheet A01
A29: Body weight | B29: BW | C29: =A02a!$C$9 -> 70 | D29: kg | E29: ICRP 1975
A30: Dose | B30: Dose | C30: ConcFish× Amnt x TEF ÷ BW
B31: Central | C31: =C17*C22*C26/C$29 -> 8.7075e-11 | D31: mg/kg | E31: Eq
B32: Lower | C32: =C18*C23*C27/C$29 -> 3.483e-12 | D32: mg/kg | E32: Eq
B33: Upper | C33: =C19*C24*C28/C$29 -> 5.2245e-10 | D33: mg/kg | E33: Eq
E34: FishAmntV6

Sheet E01
A1: Worksheet E01: Summary of Worker Exposure Assessments
A2: Application Rate: | B2: ='A01'!ApRt_C -> 0.000625 | C2: lb a.i./acre | F2: E01aV5-1Rodent
A3: Scenario | B3: Receptor | C3: mg/kg/day or mg/kg/event | F3: Detail Worksheet
C4: Central | D4: Lower | E4: Upper
A5: Accidental/Incidental Exposures
A6: Contaminated Gloves, 1 min. | B6: Worker | C6: ='C02a'!Dose_C -> 1.5778e-07 | D6: ='C02a'!Dose_L -> 9.604e-08 | E6: ='C02a'!Dose_U -> 2.6754e-07 | F6: C02a
A7: Contaminated Gloves, 1 hour | B7: Worker | C7: ='C02b'!Dose_C -> 9.4668e-06 | D7: ='C02b'!Dose_L -> 5.7624e-06 | E7: ='C02b'!Dose_U -> 1.60524e-05 | F7: C02b
A8: Contaminated Gloves, 1 day | B8: Worker | C8: ='C02c'!Dose_C -> 7.57344e-05 | D8: ='C02c'!Dose_L -> 4.60992e-05 | E8: ='C02c'!Dose_U -> 0.0001284192 | F8: C02c
A9: Poor Hygiene, 1 day | B9: Worker | C9: ='C01b'!Dose_C -> 1.770896094e-06 | D9: ='C01b'!Dose_L -> 4.793167244e-07 | E9: ='C01b'!Dose_U -> 7.78905443e-06 | F9: C01b
A10: General Exposures
A11: Good Hygiene | B11: Worker | C11: ='C01a'!Dose_C -> 9.28380852e-07 | D11: ='C01a'!Dose_L -> 3.277811221e-07 | E11: ='C01a'!Dose_U -> 3.302227455e-06 | F11: C01a

Sheet E02
A1: Worksheet E01: Summary of Worker Hazard Quotients (Toxicity)
A2: Application Rate: | B2: ='A01'!ApRt_C -> 0.000625 | C2: lb a.i./acre | F2: E01aV5-1Rodent
A3: Scenario | B3: Receptor | C3: Hazard Quotients | F3: Toxicity Value
C4: Central | D4: Lower | E4: Upper
A5: Accidental/Incidental Exposures
A6: Contaminated Gloves, 1 min. | B6: Worker | C6: ='C02a'!$C$21/$F$6 -> 5.259333333e-05 | D6: ='C02a'!$C$22/$F$6 -> 3.201333333e-05 | E6: ='C02a'!$C$23/$F$6 -> 8.918e-05 | F6: ='B02'!$E$4 -> 0.003
A7: Contaminated Gloves, 1 hour | B7: Worker | C7: ='C02b'!$C$21/$F$7 -> 0.0031556 | D7: ='C02b'!$C$22/$F$7 -> 0.0019208 | E7: ='C02b'!$C$23/$F$7 -> 0.0053508 | F7: ='B02'!$E$4 -> 0.003
A8: Contaminated Gloves, 1 day | B8: Worker | C8: ='C02c'!$C$21/$F$8 -> 0.0252448 | D8: ='C02c'!$C$22/$F$8 -> 0.0153664 | E8: ='C02c'!$C$23/$F$8 -> 0.0428064 | F8: ='B02'!$E$4 -> 0.003
A9: Poor Hygiene, 1 day | B9: Worker | C9: ='C01b'!$C$50/$F$9 -> 0.000590298698 | D9: ='C01b'!$C$51/$F$9 -> 0.0001597722415 | E9: ='C01b'!$C$52/$F$9 -> 0.002596351477 | F9: ='B02'!$E$4 -> 0.003
A10: General Exposures
A11: Acute Toxicity | B11: Worker | C11: ='C01a'!$C$50/$F$11 -> 0.000309460284 | D11: ='C01a'!$C$51/$F$11 -> 0.000109260374 | E11: ='C01a'!$C$52/$F$11 -> 0.001100742485 | F11: ='B02'!$E$4 -> 0.003
A12: Chronic Toxicity | B12: Worker | C12: ='C01a'!$C$50/$F$12 -> 0.01856761704 | D12: ='C01a'!$C$51/$F$12 -> 0.006555622442 | E12: ='C01a'!$C$52/$F$12 -> 0.0660445491 | F12: ='B02'!$E$5 -> 5e-05

Sheet E03
A1: Worksheet E03: Summary of Exposure Assessments for the General Public
A2: Application Rate: | B2: ='A01'!ApRt_C -> 0.000625 | C2: lb a.i./acre | F2: E03aV5Rodent
A3: Scenario | B3: Receptor | C3: mg/kg/day or mg/kg/event | F3: Detail Worksheet
C4: Central | D4: Lower | E4: Upper
A5: Accidental Acute Exposures (dose in mg/kg/event)
A6: Consumption of Bait | B6: Child | C6: ='D01'!Dose_C -> 0.03037037037 | D6: ='D01'!Dose_L -> 0.02037037037 | E6: ='D01'!Dose_U -> 0.04037037037 | F6: D01
A7: Water consumption (spill) | B7: Child | C7: ='D02'!Dose_C -> 5.115789474e-05 | D7: ='D02'!Dose_L -> 2.080421053e-05 | E7: ='D02'!Dose_U -> 0.0001023157895 | F7: D02
A8: Fish consumption (spill) | B8: Adult Male | C8: =D03a!Dose_C -> 3.69811008e-06 | D8: =D03a!Dose_L -> 2.46540672e-06 | E8: =D03a!Dose_U -> 4.93081344e-06 | F8: D03a
A9: Fish consumption (spill) | B9: Subsistence Populations | C9: =D03b!Dose_C -> 1.80224352e-05 | D9: =D03b!Dose_L -> 1.20149568e-05 | E9: =D03b!Dose_U -> 2.40299136e-05 | F9: D03b
A10: Non-Accidental Acute Exposures (dose in mg/kg/event)
A11: Swimming, one hour | B11: Adult Female | C11: ='D04'!Dose_C -> 7.591796875e-11 | D11: ='D04'!Dose_L -> 4.62109375e-12 | E11: ='D04'!Dose_U -> 6.436523437e-10 | F11: D04
A12: Water consumption | B12: Child | C12: ='D05'!Dose_C -> 9.398496241e-08 | D12: ='D05'!Dose_L -> 5.733082707e-09 | E12: ='D05'!Dose_U -> 7.04887218e-07 | F12: D05
A13: Fish consumption | B13: Adult Male | C13: =D06a!Dose_C -> 6.794e-09 | D13: =D06a!Dose_L -> 6.794e-10 | E13: =D06a!Dose_U -> 3.397e-08 | F13: D06a
A14: Fish consumption | B14: Subsistence Populations | C14: =D06b!Dose_C -> 3.311e-08 | D14: =D06b!Dose_L -> 3.311e-09 | E14: =D06b!Dose_U -> 1.6555e-07 | F14: D06b
A15: Chronic/Longer Term Exposures (dose in mg/kg/day)
A16: Water consumption | B16: Adult Male | C16: ='D07'!Dose_C -> 8.928571429e-10 | D16: ='D07'!Dose_L -> 2.5e-11 | E16: ='D07'!Dose_U -> 6.428571429e-09 | F16: D07
A17: Fish consumption | B17: Adult Male | C17: =D08a!Dose_C -> 1.075e-11 | D17: =D08a!Dose_L -> 4.3e-13 | E17: =D08a!Dose_U -> 6.45e-11 | F17: D08a
A18: Fish consumption | B18: Subsistence Populations | C18: =D08b!Dose_C -> 8.7075e-11 | D18: =D08b!Dose_L -> 3.483e-12 | E18: =D08b!Dose_U -> 5.2245e-10 | F18: D08b

Sheet E04
A1: Worksheet E03: Summary of Hazard Quotients (Toxicity) for the General Public
A2: Application Rate: | B2: ='A01'!ApRt_C -> 0.000625 | C2: lb a.i./acre | F2: E03aV5Rodent
A3: Scenario | B3: Receptor | C3: Hazard Quotients | F3: Toxicity Value
C4: Central | D4: Lower | E4: Upper
A5: Accidental Acute Exposures (dose in mg/kg/event)
A6: Consumption of Bait | B6: Child | C6: ='D01'!$C$18/$F$6 -> 10.12345679 | D6: ='D01'!$C$19/$F$6 -> 6.790123457 | E6: ='D01'!$C$20/$F$6 -> 13.45679012 | F6: ='B02'!$E$4 -> 0.003
A7: Water consumption (spill) | B7: Child | C7: ='D02'!$C$17/$F$7 -> 0.01705263158 | D7: ='D02'!$C$18/$F$7 -> 0.006934736842 | E7: ='D02'!$C$19/$F$7 -> 0.03410526316 | F7: ='B02'!$E$4 -> 0.003
A8: Fish consumption (spill) | B8: Adult Male | C8: =D03a!$C$31/$F$8 -> 0.00123270336 | D8: =D03a!$C$32/$F$8 -> 0.00082180224 | E8: =D03a!$C$33/$F$8 -> 0.00164360448 | F8: ='B02'!$E$4 -> 0.003
A9: Fish consumption (spill) | B9: Subsistence Populations | C9: =D03b!$C$31/$F$9 -> 0.0060074784 | D9: =D03b!$C$32/$F$9 -> 0.0040049856 | E9: =D03b!$C$33/$F$9 -> 0.0080099712 | F9: ='B02'!$E$4 -> 0.003
A10: Non-Accidental Acute Exposures (dose in mg/kg/event)
A11: Swimming, one hour | B11: Adult Female | C11: ='D04'!$C$29/$F$11 -> 2.530598958e-08 | D11: ='D04'!$C$30/$F$11 -> 1.540364583e-09 | E11: ='D04'!$C$31/$F$11 -> 2.145507812e-07 | F11: ='B02'!$E$4 -> 0.003
A12: Water consumption | B12: Child | C12: ='D05'!$C$17/$F$12 -> 3.13283208e-05 | D12: ='D05'!$C$18/$F$12 -> 1.911027569e-06 | E12: ='D05'!$C$19/$F$12 -> 0.000234962406 | F12: ='B02'!$E$4 -> 0.003
A13: Fish consumption | B13: Adult Male | C13: =D06a!$C$31/$F$13 -> 2.264666667e-06 | D13: =D06a!$C$32/$F$13 -> 2.264666667e-07 | E13: =D06a!$C$33/$F$13 -> 1.132333333e-05 | F13: ='B02'!$E$4 -> 0.003
A14: Fish consumption | B14: Subsistence Populations | C14: =D06b!$C$31/$F$14 -> 1.103666667e-05 | D14: =D06b!$C$32/$F$14 -> 1.103666667e-06 | E14: =D06b!$C$33/$F$14 -> 5.518333333e-05 | F14: ='B02'!$E$4 -> 0.003
A15: Chronic/Longer Term Exposures (dose in mg/kg/day)
A16: Water consumption | B16: Adult Male | C16: ='D07'!$C$17/$F$16 -> 1.785714286e-05 | D16: ='D07'!$C$18/$F$16 -> 5e-07 | E16: ='D07'!$C$19/$F$16 -> 0.0001285714286 | F16: ='B02'!$E$5 -> 5e-05
A17: Fish consumption | B17: Adult Male | C17: =D08a!$C$31/$F$17 -> 2.15e-07 | D17: =D08a!$C$32/$F$17 -> 8.6e-09 | E17: =D08a!$C$33/$F$17 -> 1.29e-06 | F17: ='B02'!$E$5 -> 5e-05
A18: Fish consumption | B18: Subsistence Populations | C18: =D08b!$C$31/$F$18 -> 1.7415e-06 | D18: =D08b!$C$32/$F$18 -> 6.966e-08 | E18: =D08b!$C$33/$F$18 -> 1.0449e-05 | F18: ='B02'!$E$5 -> 5e-05

Sheet F01a
A1: Consumption of Contaminated Bait, Mouse, Accidental Spill
A2: Short Title | B2: Mouse, Accidental Spill | E2: BaitAlloBW_Ac
A3: Receptor | B3: Mouse | E3: Scenario parameter
A4: Duration | B4: Acute
A5: Material consumed | B5: Bait
A6: Parameter/Assumption | B6: Code / Range | C6: Equation/ Value | D6: Units | E6: Reference/Designation
A7: Percent a.i. in bait | B7: PerCentAI | C7: ='A01'!PerCentAI -> 5e-05 | D7: percent | E7: Worksheet A01
A8: Body weight | B8: BW | C8: 0.02 | D8: kg | E8: Scenario parameter
A9: Allometric coefficients for food consumption per day in grams and BW in grams
B10: alpha | C10: =A02b!$C$69 -> 0.621 | E10: U.S. EPA/ORD 1993
B11: beta | C11: =A02b!$C$70 -> 0.584 | E11: U.S. EPA/ORD 1993
A12: Amount of food consumed per day | B12: Amnt | C12: =C10*((C8*1000)^C11) -> 3.571849221 | D12: grams | E12: Eq
A13: Proportion of diet as bait | B13: PropC
B14: Central | C14: ='A01'!C36 -> 0.3 | D14: Unitless | E14: Worksheet A01
B15: Lower | C15: ='A01'!C37 -> 0.03 | E15: Worksheet A01
B16: Upper | C16: ='A01'!C38 -> 1 | E16: Worksheet A01
A17: Consumption of Bait (unadjusted for a.i.) | B17: Bait | C17: (Amnt x PropC )
B18: Central | C18: =C$12*C14 -> 1.071554766 | D18: grams of bait
B19: Lower | C19: =C$12*C15 -> 0.1071554766
B20: Upper | C20: =C$12*C16 -> 3.571849221
A21: Amount of a.i. consumed | B21: AmntAI | C21: Bait x PerCentAI x 1000 mg/g)
B22: Central | C22: =C$7*C18*1000 -> 0.05357773831 | D22: mg a.i. | E22: Eq
B23: Lower | C23: =C$7*C19*1000 -> 0.005357773831 | E23: Eq
B24: Upper | C24: =C$7*C20*1000 -> 0.178592461 | E24: Eq
A25: Dose | B25: Dose | C25: AmntAI / BW
B26: Central | C26: =C22/C$8 -> 2.678886916 | D26: mg/kg bw | E26: Eq
B27: Lower | C27: =C23/C$8 -> 0.2678886916 | E27: Eq
B28: Upper | C28: =C24/C$8 -> 8.929623052 | E28: Eq

Sheet F01b
A1: Consumption of Contaminated Bait, Squirrel, Accidental Spill
A2: Short Title | B2: Squirrel | E2: BaitAlloBW_Ac
A3: Receptor | B3: Squirrel | E3: Scenario parameter
A4: Duration | B4: Acute
A5: Material consumed | B5: Bait
A6: Parameter/Assumption | B6: Code / Range | C6: Equation/ Value | D6: Units | E6: Reference/Designation
A7: Percent a.i. in bait | B7: PerCentAI | C7: ='A01'!PerCentAI -> 5e-05 | D7: percent | E7: Worksheet A01
A8: Body weight | B8: BW | C8: 0.15 | D8: kg | E8: Scenario parameter
A9: Allometric coefficients for food consumption per day in grams and BW in grams
B10: alpha | C10: =A02b!$C$69 -> 0.621 | E10: U.S. EPA/ORD 1993
B11: beta | C11: =A02b!$C$70 -> 0.584 | E11: U.S. EPA/ORD 1993
A12: Amount of food consumed per day | B12: Amnt | C12: =C10*((C8*1000)^C11) -> 11.58587652 | D12: grams | E12: Eq
A13: Proportion of diet as bait | B13: PropC
B14: Central | C14: ='A01'!C36 -> 0.3 | D14: Unitless | E14: Worksheet A01
B15: Lower | C15: ='A01'!C37 -> 0.03 | E15: Worksheet A01
B16: Upper | C16: ='A01'!C38 -> 1 | E16: Worksheet A01
A17: Consumption of Bait (unadjusted for a.i.) | B17: Bait | C17: (Amnt x PropC )
B18: Central | C18: =C$12*C14 -> 3.475762955 | D18: grams of bait
B19: Lower | C19: =C$12*C15 -> 0.3475762955
B20: Upper | C20: =C$12*C16 -> 11.58587652
A21: Amount of a.i. consumed | B21: AmntAI | C21: Bait x PerCentAI x 1000 mg/g)
B22: Central | C22: =C$7*C18*1000 -> 0.1737881478 | D22: mg a.i. | E22: Eq
B23: Lower | C23: =C$7*C19*1000 -> 0.01737881478 | E23: Eq
B24: Upper | C24: =C$7*C20*1000 -> 0.5792938259 | E24: Eq
A25: Dose | B25: Dose | C25: AmntAI / BW
B26: Central | C26: =C22/C$8 -> 1.158587652 | D26: mg/kg bw | E26: Eq
B27: Lower | C27: =C23/C$8 -> 0.1158587652 | E27: Eq
B28: Upper | C28: =C24/C$8 -> 3.861958839 | E28: Eq

Sheet F01c
A1: Consumption of Contaminated Bait, Passerine, Accidental Spill
A2: Short Title | B2: Passerine, Accidental Spill | E2: BaitAlloBW_Ac
A3: Receptor | B3: Small Passerine | E3: Scenario parameter
A4: Duration | B4: Acute
A5: Material consumed | B5: Bait
A6: Parameter/Assumption | B6: Code / Range | C6: Equation/ Value | D6: Units | E6: Reference/Designation
A7: Percent a.i. in bait | B7: PerCentAI | C7: ='A01'!PerCentAI -> 5e-05 | D7: percent | E7: Worksheet A01
A8: Body weight | B8: BW | C8: 0.02 | D8: kg | E8: Scenario parameter
A9: Allometric coefficients for food consumption per day in grams and BW in grams
B10: alpha | C10: =A02b!$C$22 -> 0.398 | E10: U.S. EPA/ORD 1993
B11: beta | C11: =A02b!$C$23 -> 0.85 | E11: U.S. EPA/ORD 1993
A12: Amount of food consumed per day | B12: Amnt | C12: =C10*((C8*1000)^C11) -> 5.078770267 | D12: grams | E12: Eq
A13: Proportion of diet as bait | B13: PropC
B14: Central | C14: ='A01'!C36 -> 0.3 | D14: Unitless | E14: Scenario parameter
B15: Lower | C15: ='A01'!C37 -> 0.03 | E15: Scenario parameter
B16: Upper | C16: ='A01'!C38 -> 1 | E16: Scenario parameter
A17: Consumption of Bait (unadjusted for a.i.) | B17: Bait | C17: (Amnt x PropC )
B18: Central | C18: =C$12*C14 -> 1.52363108 | D18: grams of bait
B19: Lower | C19: =C$12*C15 -> 0.152363108
B20: Upper | C20: =C$12*C16 -> 5.078770267
A21: Amount of a.i. consumed | B21: AmntAI | C21: Bait x PerCentAI x 1000 mg/g)
B22: Central | C22: =C$7*C18*1000 -> 0.076181554 | D22: mg a.i. | E22: Eq
B23: Lower | C23: =C$7*C19*1000 -> 0.0076181554 | E23: Eq
B24: Upper | C24: =C$7*C20*1000 -> 0.2539385133 | E24: Eq
A25: Dose | B25: Dose | C25: AmntAI / BW
B26: Central | C26: =C22/C$8 -> 3.8090777 | D26: mg/kg bw | E26: Eq
B27: Lower | C27: =C23/C$8 -> 0.38090777 | E27: Eq
B28: Upper | C28: =C24/C$8 -> 12.69692567 | E28: Eq

Sheet F01d
A1: Consumption of Contaminated Bait, Mallard, Accidental Spill
A2: Short Title | B2: Mallard, Accidental Spill | E2: BaitAlloBW_Ac
A3: Receptor | B3: Mallard | E3: Scenario parameter
A4: Duration | B4: Acute
A5: Material consumed | B5: Bait
A6: Parameter/Assumption | B6: Code / Range | C6: Equation/ Value | D6: Units | E6: Reference/Designation
A7: Percent a.i. in bait | B7: PerCentAI | C7: ='A01'!PerCentAI -> 5e-05 | D7: percent | E7: Worksheet A01
A8: Body weight | B8: BW | C8: 1 | D8: kg | E8: Scenario parameter
A9: Allometric coefficients for food consumption per day in grams and BW in grams
B10: alpha | C10: =A02b!$C$20 -> 0.301 | E10: U.S. EPA/ORD 1993
B11: beta | C11: =A02b!$C$21 -> 0.751 | E11: U.S. EPA/ORD 1993
A12: Amount of food consumed per day | B12: Amnt | C12: =C10*((C8*1000)^C11) -> 53.89723621 | D12: grams | E12: Eq
A13: Proportion of diet as bait | B13: PropC
B14: Central | C14: ='A01'!C36 -> 0.3 | D14: Unitless | E14: Scenario parameter
B15: Lower | C15: ='A01'!C37 -> 0.03 | E15: Scenario parameter
B16: Upper | C16: ='A01'!C38 -> 1 | E16: Scenario parameter
A17: Consumption of Bait (unadjusted for a.i.) | B17: Bait | C17: (Amnt x PropC )
B18: Central | C18: =C$12*C14 -> 16.16917086 | D18: grams of bait
B19: Lower | C19: =C$12*C15 -> 1.616917086
B20: Upper | C20: =C$12*C16 -> 53.89723621
A21: Amount of a.i. consumed | B21: AmntAI | C21: Bait x PerCentAI x 1000 mg/g)
B22: Central | C22: =C$7*C18*1000 -> 0.8084585431 | D22: mg a.i. | E22: Eq
B23: Lower | C23: =C$7*C19*1000 -> 0.08084585431 | E23: Eq
B24: Upper | C24: =C$7*C20*1000 -> 2.69486181 | E24: Eq
A25: Dose | B25: Dose | C25: AmntAI / BW
B26: Central | C26: =C22/C$8 -> 0.8084585431 | D26: mg/kg bw | E26: Eq
B27: Lower | C27: =C23/C$8 -> 0.08084585431 | E27: Eq
B28: Upper | C28: =C24/C$8 -> 2.69486181 | E28: Eq

Sheet F01e
A1: Consumption of Contaminated Bait, Pigeon, Accidental Spill
A2: Short Title | B2: Pigeon, Accidental Spill | E2: BaitAlloBW_Ac
A3: Receptor | B3: Pigeon | E3: Scenario parameter
A4: Duration | B4: Acute
A5: Material consumed | B5: Bait
A6: Parameter/Assumption | B6: Code / Range | C6: Equation/ Value | D6: Units | E6: Reference/Designation
A7: Percent a.i. in bait | B7: PerCentAI | C7: ='A01'!PerCentAI -> 5e-05 | D7: percent | E7: Worksheet A01
A8: Body weight | B8: BW | C8: 0.35 | D8: kg | E8: Scenario parameter
A9: Allometric coefficients for food consumption per day in grams and BW in grams
B10: alpha | C10: =A02b!$C$20 -> 0.301 | E10: U.S. EPA/ORD 1993
B11: beta | C11: =A02b!$C$21 -> 0.751 | E11: U.S. EPA/ORD 1993
A12: Amount of food consumed per day | B12: Amnt | C12: =C10*((C8*1000)^C11) -> 24.49974685 | D12: grams | E12: Eq
A13: Proportion of diet as bait | B13: PropC
B14: Central | C14: ='A01'!C36 -> 0.3 | D14: Unitless | E14: Scenario parameter
B15: Lower | C15: ='A01'!C37 -> 0.03 | E15: Scenario parameter
B16: Upper | C16: ='A01'!C38 -> 1 | E16: Scenario parameter
A17: Consumption of Bait (unadjusted for a.i.) | B17: Bait | C17: (Amnt x PropC )
B18: Central | C18: =C$12*C14 -> 7.349924055 | D18: grams of bait
B19: Lower | C19: =C$12*C15 -> 0.7349924055
B20: Upper | C20: =C$12*C16 -> 24.49974685
A21: Amount of a.i. consumed | B21: AmntAI | C21: Bait x PerCentAI x 1000 mg/g)
B22: Central | C22: =C$7*C18*1000 -> 0.3674962027 | D22: mg a.i. | E22: Eq
B23: Lower | C23: =C$7*C19*1000 -> 0.03674962027 | E23: Eq
B24: Upper | C24: =C$7*C20*1000 -> 1.224987342 | E24: Eq
A25: Dose | B25: Dose | C25: AmntAI / BW
B26: Central | C26: =C22/C$8 -> 1.049989151 | D26: mg/kg bw | E26: Eq
B27: Lower | C27: =C23/C$8 -> 0.1049989151 | E27: Eq
B28: Upper | C28: =C24/C$8 -> 3.499963836 | E28: Eq

Sheet F01f
A1: Consumption of Contaminated Bait, Quail, Accidental Spill
A2: Short Title | B2: Quail, Accidental Spill | E2: BaitAlloBW_Ac
A3: Receptor | B3: Quail | E3: Scenario parameter
A4: Duration | B4: Acute
A5: Material consumed | B5: Bait
A6: Parameter/Assumption | B6: Code / Range | C6: Equation/ Value | D6: Units | E6: Reference/Designation
A7: Percent a.i. in bait | B7: PerCentAI | C7: ='A01'!PerCentAI -> 5e-05 | D7: percent | E7: Worksheet A01
A8: Body weight | B8: BW | C8: 0.2 | D8: kg | E8: Scenario parameter
A9: Allometric coefficients for food consumption per day in grams and BW in grams
B10: alpha | C10: =A02b!$C$20 -> 0.301 | E10: U.S. EPA/ORD 1993
B11: beta | C11: =A02b!$C$21 -> 0.751 | E11: U.S. EPA/ORD 1993
A12: Amount of food consumed per day | B12: Amnt | C12: =C10*((C8*1000)^C11) -> 16.09311158 | D12: grams | E12: Eq
A13: Proportion of diet as bait | B13: PropC
B14: Central | C14: 0.02 | D14: Unitless | E14: Scenario parameter
B15: Lower | C15: 0.002 | E15: Scenario parameter
B16: Upper | C16: 0.2 | E16: Scenario parameter
A17: Consumption of Bait (unadjusted for a.i.) | B17: Bait | C17: (Amnt x PropC )
B18: Central | C18: =C$12*C14 -> 0.3218622315 | D18: grams of bait
B19: Lower | C19: =C$12*C15 -> 0.03218622315
B20: Upper | C20: =C$12*C16 -> 3.218622315
A21: Amount of a.i. consumed | B21: AmntAI | C21: Bait x PerCentAI x 1000 mg/g)
B22: Central | C22: =C$7*C18*1000 -> 0.01609311158 | D22: mg a.i. | E22: Eq
B23: Lower | C23: =C$7*C19*1000 -> 0.001609311158 | E23: Eq
B24: Upper | C24: =C$7*C20*1000 -> 0.1609311158 | E24: Eq
A25: Dose | B25: Dose | C25: AmntAI / BW
B26: Central | C26: =C22/C$8 -> 0.08046555788 | D26: mg/kg bw | E26: Eq
B27: Lower | C27: =C23/C$8 -> 0.008046555788 | E27: Eq
B28: Upper | C28: =C24/C$8 -> 0.8046555788 | E28: Eq

Sheet F01g
A1: Consumption of Contaminated Bait, Deer, Accidental Spill
A2: Short Title | B2: Deer, Accidental Spill | E2: BaitAlloBW_Ac
A3: Receptor | B3: Deer | E3: Scenario parameter
A4: Duration | B4: Acute
A5: Material consumed | B5: Bait
A6: Parameter/Assumption | B6: Code / Range | C6: Equation/ Value | D6: Units | E6: Reference/Designation
A7: Percent a.i. in bait | B7: PerCentAI | C7: ='A01'!PerCentAI -> 5e-05 | D7: percent | E7: Worksheet A01
A8: Body weight | B8: BW | C8: 70 | D8: kg | E8: Scenario parameter
A9: Allometric coefficients for food consumption per day in grams and BW in grams
B10: alpha | C10: =A02b!$C$57 -> 0.577 | E10: U.S. EPA/ORD 1993
B11: beta | C11: =A02b!$C$58 -> 0.727 | E11: U.S. EPA/ORD 1993
A12: Amount of food consumed per day | B12: Amnt | C12: =C10*((C8*1000)^C11) -> 1921.153597 | D12: grams | E12: Eq
A13: Proportion of diet as bait | B13: PropC
B14: Central | C14: 0.02 | D14: Unitless | E14: Scenario parameter
B15: Lower | C15: 0.002 | E15: Scenario parameter
B16: Upper | C16: 0.2 | E16: Scenario parameter
A17: Consumption of Bait (unadjusted for a.i.) | B17: Bait | C17: (Amnt x PropC )
B18: Central | C18: =C$12*C14 -> 38.42307194 | D18: grams of bait
B19: Lower | C19: =C$12*C15 -> 3.842307194
B20: Upper | C20: =C$12*C16 -> 384.2307194
A21: Amount of a.i. consumed | B21: AmntAI | C21: Bait x PerCentAI x 1000 mg/g)
B22: Central | C22: =C$7*C18*1000 -> 1.921153597 | D22: mg a.i. | E22: Eq
B23: Lower | C23: =C$7*C19*1000 -> 0.1921153597 | E23: Eq
B24: Upper | C24: =C$7*C20*1000 -> 19.21153597 | E24: Eq
A25: Dose | B25: Dose | C25: AmntAI / BW
B26: Central | C26: =C22/C$8 -> 0.02744505138 | D26: mg/kg bw | E26: Eq
B27: Lower | C27: =C23/C$8 -> 0.002744505138 | E27: Eq
B28: Upper | C28: =C24/C$8 -> 0.2744505138 | E28: Eq

Sheet F02a
A1: Consumption of Contaminated Bait, Mouse, Misapplication
A2: Short Title | B2: Mouse, Misapplication | E2: BaitAlloBW_Ac
A3: Receptor | B3: Mouse | E3: Scenario parameter
A4: Duration | B4: Acute
A5: Material consumed | B5: Bait
A6: Parameter/Assumption | B6: Code / Range | C6: Equation/ Value | D6: Units | E6: Reference/Designation
A7: Percent a.i. in bait | B7: PerCentAI | C7: ='A01'!PerCentAI -> 5e-05 | D7: percent | E7: Worksheet A01
A8: Body weight | B8: BW | C8: 0.02 | D8: kg | E8: Scenario parameter
A9: Allometric coefficients for food consumption per day in grams and BW in grams
B10: alpha | C10: =A02b!$C$69 -> 0.621 | E10: U.S. EPA/ORD 1993
B11: beta | C11: =A02b!$C$70 -> 0.584 | E11: U.S. EPA/ORD 1993
A12: Amount of food consumed per day | B12: Amnt | C12: =C10*((C8*1000)^C11) -> 3.571849221 | D12: grams | E12: Eq
A13: Proportion of diet as bait | B13: PropC
B14: Central | C14: ='A01'!C40 -> 0.03 | D14: Unitless | E14: Worksheet A01
B15: Lower | C15: ='A01'!C41 -> 0.003 | E15: Worksheet A01
B16: Upper | C16: ='A01'!C42 -> 0.1 | E16: Worksheet A01
A17: Consumption of Bait (unadjusted for a.i.) | B17: Bait | C17: (Amnt x PropC )
B18: Central | C18: =C$12*C14 -> 0.1071554766 | D18: grams of bait
B19: Lower | C19: =C$12*C15 -> 0.01071554766
B20: Upper | C20: =C$12*C16 -> 0.3571849221
A21: Amount of a.i. consumed | B21: AmntAI | C21: Bait x PerCentAI x 1000 mg/g)
B22: Central | C22: =C$7*C18*1000 -> 0.005357773831 | D22: mg a.i. | E22: Eq
B23: Lower | C23: =C$7*C19*1000 -> 0.0005357773831 | E23: Eq
B24: Upper | C24: =C$7*C20*1000 -> 0.0178592461 | E24: Eq
A25: Dose | B25: Dose | C25: AmntAI / BW
B26: Central | C26: =C22/C$8 -> 0.2678886916 | D26: mg/kg bw | E26: Eq
B27: Lower | C27: =C23/C$8 -> 0.02678886916 | E27: Eq
B28: Upper | C28: =C24/C$8 -> 0.8929623052 | E28: Eq

Sheet F02b
A1: Consumption of Contaminated Bait, Squirrel, Misapplication
A2: Short Title | B2: Squirrel, Misapplication | E2: BaitAlloBW_Ac
A3: Receptor | B3: Squirrel | E3: Scenario parameter
A4: Duration | B4: Acute
A5: Material consumed | B5: Bait
A6: Parameter/Assumption | B6: Code / Range | C6: Equation/ Value | D6: Units | E6: Reference/Designation
A7: Percent a.i. in bait | B7: PerCentAI | C7: ='A01'!PerCentAI -> 5e-05 | D7: percent | E7: Worksheet A01
A8: Body weight | B8: BW | C8: 0.15 | D8: kg | E8: Scenario parameter
A9: Allometric coefficients for food consumption per day in grams and BW in grams
B10: alpha | C10: =A02b!$C$69 -> 0.621 | E10: U.S. EPA/ORD 1993
B11: beta | C11: =A02b!$C$70 -> 0.584 | E11: U.S. EPA/ORD 1993
A12: Amount of food consumed per day | B12: Amnt | C12: =C10*((C8*1000)^C11) -> 11.58587652 | D12: grams | E12: Eq
A13: Proportion of diet as bait | B13: PropC
B14: Central | C14: ='A01'!C40 -> 0.03 | D14: Unitless | E14: Worksheet A01
B15: Lower | C15: ='A01'!C41 -> 0.003 | E15: Worksheet A01
B16: Upper | C16: ='A01'!C42 -> 0.1 | E16: Worksheet A01
A17: Consumption of Bait (unadjusted for a.i.) | B17: Bait | C17: (Amnt x PropC )
B18: Central | C18: =C$12*C14 -> 0.3475762955 | D18: grams of bait
B19: Lower | C19: =C$12*C15 -> 0.03475762955
B20: Upper | C20: =C$12*C16 -> 1.158587652
A21: Amount of a.i. consumed | B21: AmntAI | C21: Bait x PerCentAI x 1000 mg/g)
B22: Central | C22: =C$7*C18*1000 -> 0.01737881478 | D22: mg a.i. | E22: Eq
B23: Lower | C23: =C$7*C19*1000 -> 0.001737881478 | E23: Eq
B24: Upper | C24: =C$7*C20*1000 -> 0.05792938259 | E24: Eq
A25: Dose | B25: Dose | C25: AmntAI / BW
B26: Central | C26: =C22/C$8 -> 0.1158587652 | D26: mg/kg bw | E26: Eq
B27: Lower | C27: =C23/C$8 -> 0.01158587652 | E27: Eq
B28: Upper | C28: =C24/C$8 -> 0.3861958839 | E28: Eq

Sheet F02c
A1: Consumption of Contaminated Bait, Skunk, Misapplication
A2: Short Title | B2: Skunk, Misapplication | E2: BaitAlloBW_Ac
A3: Receptor | B3: Skunk | E3: Scenario parameter
A4: Duration | B4: Acute
A5: Material consumed | B5: Bait
A6: Parameter/Assumption | B6: Code / Range | C6: Equation/ Value | D6: Units | E6: Reference/Designation
A7: Percent a.i. in bait | B7: PerCentAI | C7: ='A01'!PerCentAI -> 5e-05 | D7: percent | E7: Worksheet A01
A8: Body weight | B8: BW | C8: 2 | D8: kg | E8: Scenario parameter
A9: Allometric coefficients for food consumption per day in grams and BW in grams
B10: alpha | C10: =A02b!$C$69 -> 0.621 | E10: U.S. EPA/ORD 1993
B11: beta | C11: =A02b!$C$70 -> 0.584 | E11: U.S. EPA/ORD 1993
A12: Amount of food consumed per day | B12: Amnt | C12: =C10*((C8*1000)^C11) -> 52.58878265 | D12: grams | E12: Eq
A13: Proportion of diet as bait | B13: PropC
B14: Central | C14: ='A01'!C40 -> 0.03 | D14: Unitless | E14: Worksheet A01
B15: Lower | C15: ='A01'!C41 -> 0.003 | E15: Worksheet A01
B16: Upper | C16: ='A01'!C42 -> 0.1 | E16: Worksheet A01
A17: Consumption of Bait (unadjusted for a.i.) | B17: Bait | C17: (Amnt x PropC )
B18: Central | C18: =C$12*C14 -> 1.577663479 | D18: grams of bait
B19: Lower | C19: =C$12*C15 -> 0.1577663479
B20: Upper | C20: =C$12*C16 -> 5.258878265
A21: Amount of a.i. consumed | B21: AmntAI | C21: Bait x PerCentAI x 1000 mg/g)
B22: Central | C22: =C$7*C18*1000 -> 0.07888317397 | D22: mg a.i. | E22: Eq
B23: Lower | C23: =C$7*C19*1000 -> 0.007888317397 | E23: Eq
B24: Upper | C24: =C$7*C20*1000 -> 0.2629439132 | E24: Eq
A25: Dose | B25: Dose | C25: AmntAI / BW
B26: Central | C26: =C22/C$8 -> 0.03944158698 | D26: mg/kg bw | E26: Eq
B27: Lower | C27: =C23/C$8 -> 0.003944158698 | E27: Eq
B28: Upper | C28: =C24/C$8 -> 0.1314719566 | E28: Eq

Sheet F02d
A1: Consumption of Contaminated Bait, Passerine, Misapplication
A2: Short Title | B2: Passerine, Misapplication | E2: BaitAlloBW_Ac
A3: Receptor | B3: Small Passerine | E3: Scenario parameter
A4: Duration | B4: Acute
A5: Material consumed | B5: Bait
A6: Parameter/Assumption | B6: Code / Range | C6: Equation/ Value | D6: Units | E6: Reference/Designation
A7: Percent a.i. in bait | B7: PerCentAI | C7: ='A01'!PerCentAI -> 5e-05 | D7: percent | E7: Worksheet A01
A8: Body weight | B8: BW | C8: 0.02 | D8: kg | E8: Scenario parameter
A9: Allometric coefficients for food consumption per day in grams and BW in grams
B10: alpha | C10: =A02b!$C$22 -> 0.398 | E10: U.S. EPA/ORD 1993
B11: beta | C11: =A02b!$C$23 -> 0.85 | E11: U.S. EPA/ORD 1993
A12: Amount of food consumed per day | B12: Amnt | C12: =C10*((C8*1000)^C11) -> 5.078770267 | D12: grams | E12: Eq
A13: Proportion of diet as bait | B13: PropC
B14: Central | C14: ='A01'!C40 -> 0.03 | D14: Unitless | E14: Worksheet A01
B15: Lower | C15: ='A01'!C41 -> 0.003 | E15: Worksheet A01
B16: Upper | C16: ='A01'!C42 -> 0.1 | E16: Worksheet A01
A17: Consumption of Bait (unadjusted for a.i.) | B17: Bait | C17: (Amnt x PropC )
B18: Central | C18: =C$12*C14 -> 0.152363108 | D18: grams of bait
B19: Lower | C19: =C$12*C15 -> 0.0152363108
B20: Upper | C20: =C$12*C16 -> 0.5078770267
A21: Amount of a.i. consumed | B21: AmntAI | C21: Bait x PerCentAI x 1000 mg/g)
B22: Central | C22: =C$7*C18*1000 -> 0.0076181554 | D22: mg a.i. | E22: Eq
B23: Lower | C23: =C$7*C19*1000 -> 0.00076181554 | E23: Eq
B24: Upper | C24: =C$7*C20*1000 -> 0.02539385133 | E24: Eq
A25: Dose | B25: Dose | C25: AmntAI / BW
B26: Central | C26: =C22/C$8 -> 0.38090777 | D26: mg/kg bw | E26: Eq
B27: Lower | C27: =C23/C$8 -> 0.038090777 | E27: Eq
B28: Upper | C28: =C24/C$8 -> 1.269692567 | E28: Eq

Sheet F02e
A1: Consumption of Contaminated Bait, Mallard, Misapllication
A2: Short Title | B2: Mallard, Misapllication | E2: BaitAlloBW_Ac
A3: Receptor | B3: Mallard | E3: Scenario parameter
A4: Duration | B4: Acute
A5: Material consumed | B5: Bait
A6: Parameter/Assumption | B6: Code / Range | C6: Equation/ Value | D6: Units | E6: Reference/Designation
A7: Percent a.i. in bait | B7: PerCentAI | C7: ='A01'!PerCentAI -> 5e-05 | D7: percent | E7: Worksheet A01
A8: Body weight | B8: BW | C8: 1 | D8: kg | E8: Scenario parameter
A9: Allometric coefficients for food consumption per day in grams and BW in grams
B10: alpha | C10: =A02b!$C$20 -> 0.301 | E10: U.S. EPA/ORD 1993
B11: beta | C11: =A02b!$C$21 -> 0.751 | E11: U.S. EPA/ORD 1993
A12: Amount of food consumed per day | B12: Amnt | C12: =C10*((C8*1000)^C11) -> 53.89723621 | D12: grams | E12: Eq
A13: Proportion of diet as bait | B13: PropC
B14: Central | C14: ='A01'!C40 -> 0.03 | D14: Unitless | E14: Worksheet A01
B15: Lower | C15: ='A01'!C41 -> 0.003 | E15: Worksheet A01
B16: Upper | C16: ='A01'!C42 -> 0.1 | E16: Worksheet A01
A17: Consumption of Bait (unadjusted for a.i.) | B17: Bait | C17: (Amnt x PropC )
B18: Central | C18: =C$12*C14 -> 1.616917086 | D18: grams of bait
B19: Lower | C19: =C$12*C15 -> 0.1616917086
B20: Upper | C20: =C$12*C16 -> 5.389723621
A21: Amount of a.i. consumed | B21: AmntAI | C21: Bait x PerCentAI x 1000 mg/g)
B22: Central | C22: =C$7*C18*1000 -> 0.08084585431 | D22: mg a.i. | E22: Eq
B23: Lower | C23: =C$7*C19*1000 -> 0.008084585431 | E23: Eq
B24: Upper | C24: =C$7*C20*1000 -> 0.269486181 | E24: Eq
A25: Dose | B25: Dose | C25: AmntAI / BW
B26: Central | C26: =C22/C$8 -> 0.08084585431 | D26: mg/kg bw | E26: Eq
B27: Lower | C27: =C23/C$8 -> 0.008084585431 | E27: Eq
B28: Upper | C28: =C24/C$8 -> 0.269486181 | E28: Eq

Sheet F02f
A1: Consumption of Contaminated Bait, Pigeon, Misapplication
A2: Short Title | B2: Pigeon, Misapplication | E2: BaitAlloBW_Ac
A3: Receptor | B3: Pigeon | E3: Scenario parameter
A4: Duration | B4: Acute
A5: Material consumed | B5: Bait
A6: Parameter/Assumption | B6: Code / Range | C6: Equation/ Value | D6: Units | E6: Reference/Designation
A7: Percent a.i. in bait | B7: PerCentAI | C7: ='A01'!PerCentAI -> 5e-05 | D7: percent | E7: Worksheet A01
A8: Body weight | B8: BW | C8: 0.35 | D8: kg | E8: Scenario parameter
A9: Allometric coefficients for food consumption per day in grams and BW in grams
B10: alpha | C10: =A02b!$C$20 -> 0.301 | E10: U.S. EPA/ORD 1993
B11: beta | C11: =A02b!$C$21 -> 0.751 | E11: U.S. EPA/ORD 1993
A12: Amount of food consumed per day | B12: Amnt | C12: =C10*((C8*1000)^C11) -> 24.49974685 | D12: grams | E12: Eq
A13: Proportion of diet as bait | B13: PropC
B14: Central | C14: ='A01'!C40 -> 0.03 | D14: Unitless | E14: Worksheet A01
B15: Lower | C15: ='A01'!C41 -> 0.003 | E15: Worksheet A01
B16: Upper | C16: ='A01'!C42 -> 0.1 | E16: Worksheet A01
A17: Consumption of Bait (unadjusted for a.i.) | B17: Bait | C17: (Amnt x PropC )
B18: Central | C18: =C$12*C14 -> 0.7349924055 | D18: grams of bait
B19: Lower | C19: =C$12*C15 -> 0.07349924055
B20: Upper | C20: =C$12*C16 -> 2.449974685
A21: Amount of a.i. consumed | B21: AmntAI | C21: Bait x PerCentAI x 1000 mg/g)
B22: Central | C22: =C$7*C18*1000 -> 0.03674962027 | D22: mg a.i. | E22: Eq
B23: Lower | C23: =C$7*C19*1000 -> 0.003674962027 | E23: Eq
B24: Upper | C24: =C$7*C20*1000 -> 0.1224987342 | E24: Eq
A25: Dose | B25: Dose | C25: AmntAI / BW
B26: Central | C26: =C22/C$8 -> 0.1049989151 | D26: mg/kg bw | E26: Eq
B27: Lower | C27: =C23/C$8 -> 0.01049989151 | E27: Eq
B28: Upper | C28: =C24/C$8 -> 0.3499963836 | E28: Eq

Sheet F02g
A1: Consumption of Contaminated Bait, Quail, Misapplication
A2: Short Title | B2: Quail, Misapplication | E2: BaitAlloBW_Ac
A3: Receptor | B3: Quail | E3: Scenario parameter
A4: Duration | B4: Acute
A5: Material consumed | B5: Bait
A6: Parameter/Assumption | B6: Code / Range | C6: Equation/ Value | D6: Units | E6: Reference/Designation
A7: Percent a.i. in bait | B7: PerCentAI | C7: ='A01'!PerCentAI -> 5e-05 | D7: percent | E7: Worksheet A01
A8: Body weight | B8: BW | C8: 0.2 | D8: kg | E8: Scenario parameter
A9: Allometric coefficients for food consumption per day in grams and BW in grams
B10: alpha | C10: =A02b!$C$20 -> 0.301 | E10: U.S. EPA/ORD 1993
B11: beta | C11: =A02b!$C$21 -> 0.751 | E11: U.S. EPA/ORD 1993
A12: Amount of food consumed per day | B12: Amnt | C12: =C10*((C8*1000)^C11) -> 16.09311158 | D12: grams | E12: Eq
A13: Proportion of diet as bait | B13: PropC
B14: Central | C14: ='A01'!C40 -> 0.03 | D14: Unitless | E14: Worksheet A01
B15: Lower | C15: ='A01'!C41 -> 0.003 | E15: Worksheet A01
B16: Upper | C16: ='A01'!C42 -> 0.1 | E16: Worksheet A01
A17: Consumption of Bait (unadjusted for a.i.) | B17: Bait | C17: (Amnt x PropC )
B18: Central | C18: =C$12*C14 -> 0.4827933473 | D18: grams of bait
B19: Lower | C19: =C$12*C15 -> 0.04827933473
B20: Upper | C20: =C$12*C16 -> 1.609311158
A21: Amount of a.i. consumed | B21: AmntAI | C21: Bait x PerCentAI x 1000 mg/g)
B22: Central | C22: =C$7*C18*1000 -> 0.02413966736 | D22: mg a.i. | E22: Eq
B23: Lower | C23: =C$7*C19*1000 -> 0.002413966736 | E23: Eq
B24: Upper | C24: =C$7*C20*1000 -> 0.08046555788 | E24: Eq
A25: Dose | B25: Dose | C25: AmntAI / BW
B26: Central | C26: =C22/C$8 -> 0.1206983368 | D26: mg/kg bw | E26: Eq
B27: Lower | C27: =C23/C$8 -> 0.01206983368 | E27: Eq
B28: Upper | C28: =C24/C$8 -> 0.4023277894 | E28: Eq

Sheet F03a
A1: Acute exposure of Small Mammal after an accidental spill of the pesticide into a pond
A2: Short Title | B2: Water consumption, accidental spill | E2: BaitWatDumpAllo
A3: Receptor | B3: Small Mammal | E3: Scenario parameter
A4: Duration | B4: Acute
A5: Parameter/Assumption | B5: Code / Range | C5: Equation/ Value | D5: Units | E5: Reference/Designation
A6: Body weight | B6: BW | C6: 0.02 | D6: kg | E6: Scenario parameter
A7: Allometric coefficients forwater consumption per day in liters and BW in kilograms
B8: alpha | C8: =A02b!$C$79 -> 0.099 | E8: U.S. EPA/ORD 1993
B9: beta | C9: =A02b!$C$80 -> 0.9 | E9: U.S. EPA/ORD 1993
A10: Amount of water consumed per day | C10: Amnt = alpha BW beta
B11: Amnt | C11: =C8*(C6^C9) -> 0.002927940121 | D11: liters | E11: Eq
A12: Surface Area of Pond | B12: SA | C12: ='A01'!C$16 -> 1000 | D12: m2 | E12: Worksheet A01
A13: Depth of Pond | B13: Depth | C13: ='A01'!C$17 -> 1 | D13: meter | E13: Worksheet A01
A14: Volume of Pond | B14: VPM | C14: =C12*C13 -> 1000 | D14: m3 | E14: Eq
B15: VPL | C15: =1000*C14 -> 1000000 | D15: liters | E15: Eq
A16: Pounds of compound spilled into water | B16: Lbs
B17: Central | C17: ='A01'!C$28 -> 0.0015 | D17: lbs | E17: Worksheet A01
B18: Lower | C18: ='A01'!C$29 -> 0.001 | E18: Worksheet A01
B19: Upper | C19: ='A01'!C$30 -> 0.002 | E19: Worksheet A01
A20: mg per lb | B20: MgLbs | C20: 453600 | D20: mg/lbs
A21: Toxic Equivalency Factor for formulation: (See risk assessment if this has a value other than 1.) | B21: TEF
B22: Central | C22: ='A01'!C$24 -> 1 | D22: unitless | E22: Worksheet A01
B23: Lower | C23: ='A01'!C$25 -> 1 | E23: Worksheet A01
B24: Upper | C24: ='A01'!C$26 -> 1 | E24: Worksheet A01
A25: Concentration in pond water | B25: ConcWat | C25: Lbs x MgLbs x TEF ÷ VPL
B26: Central | C26: =C17*C$20*C22/C$15 -> 0.0006804 | D26: mg/L | E26: Eq
B27: Lower | C27: =C18*C$20*C23/C$15 -> 0.0004536 | E27: Eq
B28: Upper | C28: =C19*C$20*C24/C$15 -> 0.0009072 | E28: Eq
A29: Absorbed Dose | B29: Dose | C29: ConcWat × Amnt ÷ BW
B30: Central | C30: =C26*C$11/C$6 -> 9.96085229e-05 | D30: mg/kg | E30: Eq
B31: Lower | C31: =C27*C$11/C$6 -> 6.640568193e-05 | D31: mg/kg | E31: Eq
B32: Upper | C32: =C28*C$11/C$6 -> 0.0001328113639 | D32: mg/kg | E32: Eq

Sheet F03b
A1: Acute exposure of Canid after an accidental spill of the pesticide into a pond
A2: Short Title | B2: Water consumption, accidental spill | E2: BaitWatDumpAllo
A3: Receptor | B3: Canid | E3: Scenario parameter
A4: Duration | B4: Acute
A5: Parameter/Assumption | B5: Code / Range | C5: Equation/ Value | D5: Units | E5: Reference/Designation
A6: Body weight | B6: BW | C6: 5 | D6: kg | E6: Scenario parameter
A7: Allometric coefficients forwater consumption per day in liters and BW in kilograms
B8: alpha | C8: =A02b!$C$50 -> 0.099 | E8: U.S. EPA/ORD 1993
B9: beta | C9: =A02b!$C$51 -> 0.9 | E9: U.S. EPA/ORD 1993
A10: Amount of water consumed per day | C10: Amnt = alpha BW beta
B11: Amnt | C11: =C8*(C6^C9) -> 0.4214132616 | D11: liters | E11: Eq
A12: Surface Area of Pond | B12: SA | C12: ='A01'!C$16 -> 1000 | D12: m2 | E12: Worksheet A01
A13: Depth of Pond | B13: Depth | C13: ='A01'!C$17 -> 1 | D13: meter | E13: Worksheet A01
A14: Volume of Pond | B14: VPM | C14: =C12*C13 -> 1000 | D14: m3 | E14: Eq
B15: VPL | C15: =1000*C14 -> 1000000 | D15: liters | E15: Eq
A16: Pounds of compound spilled into water | B16: Lbs
B17: Central | C17: ='A01'!C$28 -> 0.0015 | D17: lbs | E17: Worksheet A01
B18: Lower | C18: ='A01'!C$29 -> 0.001 | E18: Worksheet A01
B19: Upper | C19: ='A01'!C$30 -> 0.002 | E19: Worksheet A01
A20: mg per lb | B20: MgLbs | C20: 453600 | D20: mg/lbs
A21: Toxic Equivalency Factor for formulation: (See risk assessment if this has a value other than 1.) | B21: TEF
B22: Central | C22: ='A01'!C$24 -> 1 | D22: unitless | E22: Worksheet A01
B23: Lower | C23: ='A01'!C$25 -> 1 | E23: Worksheet A01
B24: Upper | C24: ='A01'!C$26 -> 1 | E24: Worksheet A01
A25: Concentration in pond water | B25: ConcWat | C25: Lbs x MgLbs x TEF ÷ VPL
B26: Central | C26: =C17*C$20*C22/C$15 -> 0.0006804 | D26: mg/L | E26: Eq
B27: Lower | C27: =C18*C$20*C23/C$15 -> 0.0004536 | E27: Eq
B28: Upper | C28: =C19*C$20*C24/C$15 -> 0.0009072 | E28: Eq
A29: Absorbed Dose | B29: Dose | C29: ConcWat × Amnt ÷ BW
B30: Central | C30: =C26*C$11/C$6 -> 5.734591665e-05 | D30: mg/kg | E30: Eq
B31: Lower | C31: =C27*C$11/C$6 -> 3.82306111e-05 | D31: mg/kg | E31: Eq
B32: Upper | C32: =C28*C$11/C$6 -> 7.646122219e-05 | D32: mg/kg | E32: Eq

Sheet F03c
A1: Acute exposure of Large Mammal after an accidental spill of the pesticide into a pond
A2: Short Title | B2: Water consumption, accidental spill | E2: BaitWatDumpAllo
A3: Receptor | B3: Large Mammal | E3: Scenario parameter
A4: Duration | B4: Acute
A5: Parameter/Assumption | B5: Code / Range | C5: Equation/ Value | D5: Units | E5: Reference/Designation
A6: Body weight | B6: BW | C6: 70 | D6: kg | E6: Scenario parameter
A7: Allometric coefficients forwater consumption per day in liters and BW in kilograms
B8: alpha | C8: =A02b!$C$64 -> 0.099 | E8: U.S. EPA/ORD 1993
B9: beta | C9: =A02b!$C$65 -> 0.9 | E9: U.S. EPA/ORD 1993
A10: Amount of water consumed per day | C10: Amnt = alpha BW beta
B11: Amnt | C11: =C8*(C6^C9) -> 4.531306412 | D11: liters | E11: Eq
A12: Surface Area of Pond | B12: SA | C12: ='A01'!C$16 -> 1000 | D12: m2 | E12: Worksheet A01
A13: Depth of Pond | B13: Depth | C13: ='A01'!C$17 -> 1 | D13: meter | E13: Worksheet A01
A14: Volume of Pond | B14: VPM | C14: =C12*C13 -> 1000 | D14: m3 | E14: Eq
B15: VPL | C15: =1000*C14 -> 1000000 | D15: liters | E15: Eq
A16: Pounds of compound spilled into water | B16: Lbs
B17: Central | C17: ='A01'!C$28 -> 0.0015 | D17: lbs | E17: Worksheet A01
B18: Lower | C18: ='A01'!C$29 -> 0.001 | E18: Worksheet A01
B19: Upper | C19: ='A01'!C$30 -> 0.002 | E19: Worksheet A01
A20: mg per lb | B20: MgLbs | C20: 453600 | D20: mg/lbs
A21: Toxic Equivalency Factor for formulation: (See risk assessment if this has a value other than 1.) | B21: TEF
B22: Central | C22: ='A01'!C$24 -> 1 | D22: unitless | E22: Worksheet A01
B23: Lower | C23: ='A01'!C$25 -> 1 | E23: Worksheet A01
B24: Upper | C24: ='A01'!C$26 -> 1 | E24: Worksheet A01
A25: Concentration in pond water | B25: ConcWat | C25: Lbs x MgLbs x TEF ÷ VPL
B26: Central | C26: =C17*C$20*C22/C$15 -> 0.0006804 | D26: mg/L | E26: Eq
B27: Lower | C27: =C18*C$20*C23/C$15 -> 0.0004536 | E27: Eq
B28: Upper | C28: =C19*C$20*C24/C$15 -> 0.0009072 | E28: Eq
A29: Absorbed Dose | B29: Dose | C29: ConcWat × Amnt ÷ BW
B30: Central | C30: =C26*C$11/C$6 -> 4.404429832e-05 | D30: mg/kg | E30: Eq
B31: Lower | C31: =C27*C$11/C$6 -> 2.936286555e-05 | D31: mg/kg | E31: Eq
B32: Upper | C32: =C28*C$11/C$6 -> 5.872573109e-05 | D32: mg/kg | E32: Eq

Sheet F03d
A1: Acute exposure of Small Passerine after an accidental spill of the pesticide into a pond
A2: Short Title | B2: Water consumption, accidental spill | E2: BaitWatDumpAllo
A3: Receptor | B3: Small Passerine | E3: Scenario parameter
A4: Duration | B4: Acute
A5: Parameter/Assumption | B5: Code / Range | C5: Equation/ Value | D5: Units | E5: Reference/Designation
A6: Body weight | B6: BW | C6: 0.02 | D6: kg | E6: Scenario parameter
A7: Allometric coefficients forwater consumption per day in liters and BW in kilograms
B8: alpha | C8: =A02b!$C$34 -> 0.059 | E8: U.S. EPA/ORD 1993
B9: beta | C9: =A02b!$C$35 -> 0.67 | E9: U.S. EPA/ORD 1993
A10: Amount of water consumed per day | C10: Amnt = alpha BW beta
B11: Amnt | C11: =C8*(C6^C9) -> 0.004290837907 | D11: liters | E11: Eq
A12: Surface Area of Pond | B12: SA | C12: ='A01'!C$16 -> 1000 | D12: m2 | E12: Worksheet A01
A13: Depth of Pond | B13: Depth | C13: ='A01'!C$17 -> 1 | D13: meter | E13: Worksheet A01
A14: Volume of Pond | B14: VPM | C14: =C12*C13 -> 1000 | D14: m3 | E14: Eq
B15: VPL | C15: =1000*C14 -> 1000000 | D15: liters | E15: Eq
A16: Pounds of compound spilled into water | B16: Lbs
B17: Central | C17: ='A01'!C$28 -> 0.0015 | D17: lbs | E17: Worksheet A01
B18: Lower | C18: ='A01'!C$29 -> 0.001 | E18: Worksheet A01
B19: Upper | C19: ='A01'!C$30 -> 0.002 | E19: Worksheet A01
A20: mg per lb | B20: MgLbs | C20: 453600 | D20: mg/lbs
A21: Toxic Equivalency Factor for formulation: (See risk assessment if this has a value other than 1.) | B21: TEF
B22: Central | C22: ='A01'!C$24 -> 1 | D22: unitless | E22: Worksheet A01
B23: Lower | C23: ='A01'!C$25 -> 1 | E23: Worksheet A01
B24: Upper | C24: ='A01'!C$26 -> 1 | E24: Worksheet A01
A25: Concentration in pond water | B25: ConcWat | C25: Lbs x MgLbs x TEF ÷ VPL
B26: Central | C26: =C17*C$20*C22/C$15 -> 0.0006804 | D26: mg/L | E26: Eq
B27: Lower | C27: =C18*C$20*C23/C$15 -> 0.0004536 | E27: Eq
B28: Upper | C28: =C19*C$20*C24/C$15 -> 0.0009072 | E28: Eq
A29: Absorbed Dose | B29: Dose | C29: ConcWat × Amnt ÷ BW
B30: Central | C30: =C26*C$11/C$6 -> 0.0001459743056 | D30: mg/kg | E30: Eq
B31: Lower | C31: =C27*C$11/C$6 -> 9.731620374e-05 | D31: mg/kg | E31: Eq
B32: Upper | C32: =C28*C$11/C$6 -> 0.0001946324075 | D32: mg/kg | E32: Eq

Sheet F03e
A1: Acute exposure of Canada Goose after an accidental spill of the pesticide into a pond
A2: Short Title | B2: Water consumption, accidental spill | E2: BaitWatDumpAllo
A3: Receptor | B3: Canada Goose | E3: Scenario parameter
A4: Duration | B4: Acute
A5: Parameter/Assumption | B5: Code / Range | C5: Equation/ Value | D5: Units | E5: Reference/Designation
A6: Body weight | B6: BW | C6: 4 | D6: kg | E6: Scenario parameter
A7: Allometric coefficients forwater consumption per day in liters and BW in kilograms
B8: alpha | C8: =A02b!$C$18 -> 0.059 | E8: U.S. EPA/ORD 1993
B9: beta | C9: =A02b!$C$19 -> 0.67 | E9: U.S. EPA/ORD 1993
A10: Amount of water consumed per day | C10: Amnt = alpha BW beta
B11: Amnt | C11: =C8*(C6^C9) -> 0.1493592781 | D11: liters | E11: Eq
A12: Surface Area of Pond | B12: SA | C12: ='A01'!C$16 -> 1000 | D12: m2 | E12: Worksheet A01
A13: Depth of Pond | B13: Depth | C13: ='A01'!C$17 -> 1 | D13: meter | E13: Worksheet A01
A14: Volume of Pond | B14: VPM | C14: =C12*C13 -> 1000 | D14: m3 | E14: Eq
B15: VPL | C15: =1000*C14 -> 1000000 | D15: liters | E15: Eq
A16: Pounds of compound spilled into water | B16: Lbs
B17: Central | C17: ='A01'!C$28 -> 0.0015 | D17: lbs | E17: Worksheet A01
B18: Lower | C18: ='A01'!C$29 -> 0.001 | E18: Worksheet A01
B19: Upper | C19: ='A01'!C$30 -> 0.002 | E19: Worksheet A01
A20: mg per lb | B20: MgLbs | C20: 453600 | D20: mg/lbs
A21: Toxic Equivalency Factor for formulation: (See risk assessment if this has a value other than 1.) | B21: TEF
B22: Central | C22: ='A01'!C$24 -> 1 | D22: unitless | E22: Worksheet A01
B23: Lower | C23: ='A01'!C$25 -> 1 | E23: Worksheet A01
B24: Upper | C24: ='A01'!C$26 -> 1 | E24: Worksheet A01
A25: Concentration in pond water | B25: ConcWat | C25: Lbs x MgLbs x TEF ÷ VPL
B26: Central | C26: =C17*C$20*C22/C$15 -> 0.0006804 | D26: mg/L | E26: Eq
B27: Lower | C27: =C18*C$20*C23/C$15 -> 0.0004536 | E27: Eq
B28: Upper | C28: =C19*C$20*C24/C$15 -> 0.0009072 | E28: Eq
A29: Absorbed Dose | B29: Dose | C29: ConcWat × Amnt ÷ BW
B30: Central | C30: =C26*C$11/C$6 -> 2.54060132e-05 | D30: mg/kg | E30: Eq
B31: Lower | C31: =C27*C$11/C$6 -> 1.693734214e-05 | D31: mg/kg | E31: Eq
B32: Upper | C32: =C28*C$11/C$6 -> 3.387468427e-05 | D32: mg/kg | E32: Eq

Sheet F04a
A1: Acute scenario for the consumption of Contaminated Fish ( Accidental Spill) by Bird, piscivorous
A2: Short Title | B2: Fish consumption, accidental spill | E2: FishKcalV6
A3: Predator | B3: Bird, piscivorous
A4: Food Item (Prey) | B4: Fish
A5: Duration | B5: Acute | E5: Scenario parameter
A6: Parameter/Assumption | B6: Code / Range | C6: Equation/ Value | D6: Units | E6: Reference/Designation
A7: Water
A8: Concentration in water | B8: ConcWat
B9: Central | C9: =B04b!Acute_C -> 0.0006804 | D9: mg/L | E9: ='B04b'!Acute_C
B10: Lower | C10: =B04b!Acute_L -> 0.0004536 | E10: ='B04b'!Acute_L
B11: Upper | C11: =B04b!Acute_U -> 0.0009072 | E11: ='B04b'!Acute_U
A12: Fish
A13: Bioconcentration factor | B13: BCF
B14: Central | C14: ='B01'!$C$6 -> 2.408 | D14: L/kg
B15: Lower | C15: ='B01'!$C$6 -> 2.408
B16: Upper | C16: ='B01'!$C$6 -> 2.408
A17: Concentration in fish | B17: ConcFish | C17: ConcWat × BCF
B18: Central | C18: =C9*C14 -> 0.0016384032 | D18: mg/kg | E18: Eq
B19: Lower | C19: =C10*C15 -> 0.0010922688 | E19: Eq
B20: Upper | C20: =C11*C16 -> 0.0021845376 | E20: Eq
A21: Receptor
A22: Body weight | B22: BW | C22: =A02b!$C$24 -> 2.4 | D22: kg | E22: Sibley 2000
A23: Allometric coefficients for caloric requirement per day in kilocalories and BW in grams
B24: alpha | C24: =A02b!$C$27 -> 1.916 | E24: U.S. EPA/ORD 1993
B25: beta | C25: =A02b!$C$28 -> 0.704 | E25: U.S. EPA/ORD 1993
A26: Caloric requirement per day | B26: KR | C26: =C24*(C22*1000)^C25 -> 459.2659192 | D26: kcal/day | E26: Eq
A27: Caloric content of commodity (dry weight) | B27: KCD | C27: ='A03'!$E$36 -> 3.87 | D27: kcal/gdw [Note 1] | E27: U.S. EPA/ORD 1993
A28: Food consumed per day (dry weight) | B28: AmntDry | C28: = KR ÷ KCD
C29: =C26/C27 -> 118.6733641 | D29: gdry/day | E29: Eq
A30: Water content of vegetation as a proportion | B30: PropWater | C30: ='A03'!$E$37 -> 0.7 | D30: gwater/gfood | E30: Ali et al. 2005
A31: Dry weight content of vegetation as a proportion | B31: PropDry | C31: = 1-PropWater
C32: =1-C30 -> 0.3 | D32: gdry/gfood | E32: Eq
A33: Amount of fish consumed per day, wet weight | B33: AmntFish | C33: = (AmntDry ÷ PropDry) ÷ (1000g/kg)
B34: Central | C34: =(C29/C32)/1000 -> 0.3955778805 | D34: kgfood/day | E34: Eq
B35: Lower | C35: =C34*0.3 -> 0.1186733641 | D35: Note 1 | E35: Eq
B36: Upper | C36: =C34*1.7 -> 0.6724823968 | D36: Note 1 | E36: Eq
A37: Proportion of diet that is contaminated | B37: Prop
B38: Central | C38: 0.3 | D38: Unitless | E38: Scenario parameter
B39: Lower | C39: 0.1 | E39: Scenario parameter
B40: Upper | C40: 1 | E40: Scenario parameter
A41: Dose
A42: Toxic Equivalency Factor for formulation: (See risk assessment if this has a value other than 1.) | B42: TEF
B43: Central | C43: ='A01'!C$24 -> 1 | D43: Unitless | E43: Worksheet A01
B44: Lower | C44: ='A01'!C$25 -> 1 | D44: Note 2 | E44: Worksheet A01
B45: Upper | C45: ='A01'!C$26 -> 1 | D45: Note 2 | E45: Worksheet A01
A46: Dose | B46: Dose | C46: = ConcFish × AmntFish × Prop ÷ BW
B47: Central | C47: =C18*C34*C38/C$22 -> 8.101450815e-05 | D47: mg/kg | E47: Eq
B48: Lower | C48: =C19*C35*C39/C$22 -> 5.40096721e-06 | D48: mg/kg | E48: Eq
B49: Upper | C49: 0.0006121096172 | D49: mg/kg | E49: Eq
E50: FishKcalV6

Sheet F04b
A1: Acute scenario for the consumption of Contaminated Fish (Peak) by Bird, piscivorous
A2: Short Title | B2: Fish consumption, accidental spill | E2: FishKcalV6
A3: Predator | B3: Bird, piscivorous
A4: Food Item (Prey) | B4: Fish
A5: Duration | B5: Acute | E5: Scenario parameter
A6: Parameter/Assumption | B6: Code / Range | C6: Equation/ Value | D6: Units | E6: Reference/Designation
A7: Water
A8: Concentration in water | B8: ConcWat
B9: Central | C9: =B04a!Acute_C -> 1.25e-06 | D9: mg/L | E9: ='B04a'!Acute_C
B10: Lower | C10: =B04a!Acute_L -> 1.25e-07 | E10: ='B04a'!Acute_L
B11: Upper | C11: =B04a!Acute_U -> 6.25e-06 | E11: ='B04a'!Acute_U
A12: Fish
A13: Bioconcentration factor | B13: BCF
B14: Central | C14: ='B01'!$C$6 -> 2.408 | D14: L/kg
B15: Lower | C15: ='B01'!$C$6 -> 2.408
B16: Upper | C16: ='B01'!$C$6 -> 2.408
A17: Concentration in fish | B17: ConcFish | C17: ConcWat × BCF
B18: Central | C18: =C9*C14 -> 3.01e-06 | D18: mg/kg | E18: Eq
B19: Lower | C19: =C10*C15 -> 3.01e-07 | E19: Eq
B20: Upper | C20: =C11*C16 -> 1.505e-05 | E20: Eq
A21: Receptor
A22: Body weight | B22: BW | C22: =A02b!$C$24 -> 2.4 | D22: kg | E22: Sibley 2000
A23: Allometric coefficients for caloric requirement per day in kilocalories and BW in grams
B24: alpha | C24: =A02b!$C$27 -> 1.916 | E24: U.S. EPA/ORD 1993
B25: beta | C25: =A02b!$C$28 -> 0.704 | E25: U.S. EPA/ORD 1993
A26: Caloric requirement per day | B26: KR | C26: =C24*(C22*1000)^C25 -> 459.2659192 | D26: kcal/day | E26: Eq
A27: Caloric content of commodity (dry weight) | B27: KCD | C27: ='A03'!$E$36 -> 3.87 | D27: kcal/gdw [Note 1] | E27: U.S. EPA/ORD 1993
A28: Food consumed per day (dry weight) | B28: AmntDry | C28: = KR ÷ KCD
C29: =C26/C27 -> 118.6733641 | D29: gdry/day | E29: Eq
A30: Water content of vegetation as a proportion | B30: PropWater | C30: ='A03'!$E$37 -> 0.7 | D30: gwater/gfood | E30: Ali et al. 2005
A31: Dry weight content of vegetation as a proportion | B31: PropDry | C31: = 1-PropWater
C32: =1-C30 -> 0.3 | D32: gdry/gfood | E32: Eq
A33: Amount of fish consumed per day, wet weight | B33: AmntFish | C33: = (AmntDry ÷ PropDry) ÷ (1000g/kg)
B34: Central | C34: =(C29/C32)/1000 -> 0.3955778805 | D34: kgfood/day | E34: Eq
B35: Lower | C35: =C34*0.3 -> 0.1186733641 | D35: Note 1 | E35: Eq
B36: Upper | C36: =C34*1.7 -> 0.6724823968 | D36: Note 1 | E36: Eq
A37: Proportion of diet that is contaminated | B37: Prop
B38: Central | C38: 0.3 | D38: Unitless | E38: Scenario parameter
B39: Lower | C39: 0.1 | E39: Scenario parameter
B40: Upper | C40: 1 | E40: Scenario parameter
A41: Dose
A42: Toxic Equivalency Factor for formulation: (See risk assessment if this has a value other than 1.) | B42: TEF
B43: Central | C43: ='A01'!C$24 -> 1 | D43: Unitless | E43: Worksheet A01
B44: Lower | C44: ='A01'!C$25 -> 1 | D44: Note 2 | E44: Worksheet A01
B45: Upper | C45: ='A01'!C$26 -> 1 | D45: Note 2 | E45: Worksheet A01
A46: Dose | B46: Dose | C46: = ConcFish × AmntFish × Prop ÷ BW
B47: Central | C47: =C18*C34*C38/C$22 -> 1.488361775e-07 | D47: mg/kg | E47: Eq
B48: Lower | C48: =C19*C35*C39/C$22 -> 1.488361775e-09 | D48: mg/kg | E48: Eq
B49: Upper | C49: 4.21702503e-06 | D49: mg/kg | E49: Eq
E50: FishKcalV6

Sheet F04c
A1: Chronic scenario for the consumption of Contaminated Fish (Longer-term) by Bird, piscivorous
A2: Short Title | B2: Fish consumption, accidental spill | E2: FishKcalV6
A3: Predator | B3: Bird, piscivorous
A4: Food Item (Prey) | B4: Fish
A5: Duration | B5: Chronic | E5: Scenario parameter
A6: Parameter/Assumption | B6: Code / Range | C6: Equation/ Value | D6: Units | E6: Reference/Designation
A7: Water
A8: Concentration in water | B8: ConcWat
B9: Central | C9: =B04a!Chronic_C -> 3.125e-08 | D9: mg/L | E9: ='B04a'!Chronic_C
B10: Lower | C10: =B04a!Chronic_L -> 1.25e-09 | E10: ='B04a'!Chronic_L
B11: Upper | C11: =B04a!Chronic_U -> 1.875e-07 | E11: ='B04a'!Chronic_U
A12: Fish
A13: Bioconcentration factor | B13: BCF
B14: Central | C14: ='B01'!$C$6 -> 2.408 | D14: L/kg
B15: Lower | C15: ='B01'!$C$6 -> 2.408
B16: Upper | C16: ='B01'!$C$6 -> 2.408
A17: Concentration in fish | B17: ConcFish | C17: ConcWat × BCF
B18: Central | C18: =C9*C14 -> 7.525e-08 | D18: mg/kg | E18: Eq
B19: Lower | C19: =C10*C15 -> 3.01e-09 | E19: Eq
B20: Upper | C20: =C11*C16 -> 4.515e-07 | E20: Eq
A21: Receptor
A22: Body weight | B22: BW | C22: =A02b!$C$24 -> 2.4 | D22: kg | E22: Sibley 2000
A23: Allometric coefficients for caloric requirement per day in kilocalories and BW in grams
B24: alpha | C24: =A02b!$C$27 -> 1.916 | E24: U.S. EPA/ORD 1993
B25: beta | C25: =A02b!$C$28 -> 0.704 | E25: U.S. EPA/ORD 1993
A26: Caloric requirement per day | B26: KR | C26: =C24*(C22*1000)^C25 -> 459.2659192 | D26: kcal/day | E26: Eq
A27: Caloric content of commodity (dry weight) | B27: KCD | C27: ='A03'!$E$36 -> 3.87 | D27: kcal/gdw [Note 1] | E27: U.S. EPA/ORD 1993
A28: Food consumed per day (dry weight) | B28: AmntDry | C28: = KR ÷ KCD
C29: =C26/C27 -> 118.6733641 | D29: gdry/day | E29: Eq
A30: Water content of vegetation as a proportion | B30: PropWater | C30: ='A03'!$E$37 -> 0.7 | D30: gwater/gfood | E30: Ali et al. 2005
A31: Dry weight content of vegetation as a proportion | B31: PropDry | C31: = 1-PropWater
C32: =1-C30 -> 0.3 | D32: gdry/gfood | E32: Eq
A33: Amount of fish consumed per day, wet weight | B33: AmntFish | C33: = (AmntDry ÷ PropDry) ÷ (1000g/kg)
B34: Central | C34: =(C29/C32)/1000 -> 0.3955778805 | D34: kgfood/day | E34: Eq
B35: Lower | C35: =C34*0.3 -> 0.1186733641 | D35: Note 1 | E35: Eq
B36: Upper | C36: =C34*1.7 -> 0.6724823968 | D36: Note 1 | E36: Eq
A37: Proportion of diet that is contaminated | B37: Prop
B38: Central | C38: 0.3 | D38: Unitless | E38: Scenario parameter
B39: Lower | C39: 0.1 | E39: Scenario parameter
B40: Upper | C40: 1 | E40: Scenario parameter
A41: Dose
A42: Toxic Equivalency Factor for formulation: (See risk assessment if this has a value other than 1.) | B42: TEF
B43: Central | C43: ='A01'!C$24 -> 1 | D43: Unitless | E43: Worksheet A01
B44: Lower | C44: ='A01'!C$25 -> 1 | D44: Note 2 | E44: Worksheet A01
B45: Upper | C45: ='A01'!C$26 -> 1 | D45: Note 2 | E45: Worksheet A01
A46: Dose | B46: Dose | C46: = ConcFish × AmntFish × Prop ÷ BW
B47: Central | C47: =C18*C34*C38/C$22 -> 3.720904438e-09 | D47: mg/kg | E47: Eq
B48: Lower | C48: =C19*C35*C39/C$22 -> 1.488361775e-11 | D48: mg/kg | E48: Eq
B49: Upper | C49: 1.265107509e-07 | D49: mg/kg | E49: Eq
E50: FishKcalV6

Sheet F05a
A1: Consumption of Contaminated Bait, Mouse, Standard Application
A2: Short Title | B2: Mouse, Standard Application | E2: BaitAlloBW_Ac
A3: Receptor | B3: Mouse | E3: Scenario parameter
A4: Duration | B4: Acute
A5: Material consumed | B5: Bait
A6: Parameter/Assumption | B6: Code / Range | C6: Equation/ Value | D6: Units | E6: Reference/Designation
A7: Percent a.i. in bait | B7: PerCentAI | C7: ='A01'!PerCentAI -> 5e-05 | D7: percent | E7: Worksheet A01
A8: Body weight | B8: BW | C8: 0.02 | D8: kg | E8: Scenario parameter
A9: Allometric coefficients for food consumption per day in grams and BW in grams
B10: alpha | C10: =A02b!$C$69 -> 0.621 | E10: U.S. EPA/ORD 1993
B11: beta | C11: =A02b!$C$70 -> 0.584 | E11: U.S. EPA/ORD 1993
A12: Amount of food consumed per day | B12: Amnt | C12: =C10*((C8*1000)^C11) -> 3.571849221 | D12: grams | E12: Eq
A13: Proportion of diet as bait | B13: PropC
B14: Central | C14: 0.002 | D14: Unitless | E14: Scenario parameter
B15: Lower | C15: 0.0002 | E15: Scenario parameter
B16: Upper | C16: 0.02 | E16: Scenario parameter
A17: Consumption of Bait (unadjusted for a.i.) | B17: Bait | C17: (Amnt x PropC )
B18: Central | C18: =C$12*C14 -> 0.007143698442 | D18: grams of bait
B19: Lower | C19: =C$12*C15 -> 0.0007143698442
B20: Upper | C20: =C$12*C16 -> 0.07143698442
A21: Amount of a.i. consumed | B21: AmntAI | C21: Bait x PerCentAI x 1000 mg/g)
B22: Central | C22: =C$7*C18*1000 -> 0.0003571849221 | D22: mg a.i. | E22: Eq
B23: Lower | C23: =C$7*C19*1000 -> 3.571849221e-05 | E23: Eq
B24: Upper | C24: =C$7*C20*1000 -> 0.003571849221 | E24: Eq
A25: Dose | B25: Dose | C25: AmntAI / BW
B26: Central | C26: =C22/C$8 -> 0.0178592461 | D26: mg/kg bw | E26: Eq
B27: Lower | C27: =C23/C$8 -> 0.00178592461 | E27: Eq
B28: Upper | C28: =C24/C$8 -> 0.178592461 | E28: Eq

Sheet F05b
A1: Consumption of Contaminated Bait, Squirrel, Standard Application
A2: Short Title | B2: Squirrel, Standard Application | E2: BaitAlloBW_Ac
A3: Receptor | B3: Squirrel | E3: Scenario parameter
A4: Duration | B4: Acute
A5: Material consumed | B5: Bait
A6: Parameter/Assumption | B6: Code / Range | C6: Equation/ Value | D6: Units | E6: Reference/Designation
A7: Percent a.i. in bait | B7: PerCentAI | C7: ='A01'!PerCentAI -> 5e-05 | D7: percent | E7: Worksheet A01
A8: Body weight | B8: BW | C8: 0.15 | D8: kg | E8: Scenario parameter
A9: Allometric coefficients for food consumption per day in grams and BW in grams
B10: alpha | C10: =A02b!$C$69 -> 0.621 | E10: U.S. EPA/ORD 1993
B11: beta | C11: =A02b!$C$70 -> 0.584 | E11: U.S. EPA/ORD 1993
A12: Amount of food consumed per day | B12: Amnt | C12: =C10*((C8*1000)^C11) -> 11.58587652 | D12: grams | E12: Eq
A13: Proportion of diet as bait | B13: PropC
B14: Central | C14: 0.002 | D14: Unitless | E14: Scenario parameter
B15: Lower | C15: 0.0002 | E15: Scenario parameter
B16: Upper | C16: 0.02 | E16: Scenario parameter
A17: Consumption of Bait (unadjusted for a.i.) | B17: Bait | C17: (Amnt x PropC )
B18: Central | C18: =C$12*C14 -> 0.02317175303 | D18: grams of bait
B19: Lower | C19: =C$12*C15 -> 0.002317175303
B20: Upper | C20: =C$12*C16 -> 0.2317175303
A21: Amount of a.i. consumed | B21: AmntAI | C21: Bait x PerCentAI x 1000 mg/g)
B22: Central | C22: =C$7*C18*1000 -> 0.001158587652 | D22: mg a.i. | E22: Eq
B23: Lower | C23: =C$7*C19*1000 -> 0.0001158587652 | E23: Eq
B24: Upper | C24: =C$7*C20*1000 -> 0.01158587652 | E24: Eq
A25: Dose | B25: Dose | C25: AmntAI / BW
B26: Central | C26: =C22/C$8 -> 0.007723917678 | D26: mg/kg bw | E26: Eq
B27: Lower | C27: =C23/C$8 -> 0.0007723917678 | E27: Eq
B28: Upper | C28: =C24/C$8 -> 0.07723917678 | E28: Eq

Sheet F05c
A1: Consumption of Contaminated Bait, Skunk, Standard Application
A2: Short Title | B2: Skunk, Standard Application | E2: BaitAlloBW_Ac
A3: Receptor | B3: Skunk | E3: Scenario parameter
A4: Duration | B4: Acute
A5: Material consumed | B5: Bait
A6: Parameter/Assumption | B6: Code / Range | C6: Equation/ Value | D6: Units | E6: Reference/Designation
A7: Percent a.i. in bait | B7: PerCentAI | C7: ='A01'!PerCentAI -> 5e-05 | D7: percent | E7: Worksheet A01
A8: Body weight | B8: BW | C8: 2 | D8: kg | E8: Scenario parameter
A9: Allometric coefficients for food consumption per day in grams and BW in grams
B10: alpha | C10: =A02b!$C$69 -> 0.621 | E10: U.S. EPA/ORD 1993
B11: beta | C11: =A02b!$C$70 -> 0.584 | E11: U.S. EPA/ORD 1993
A12: Amount of food consumed per day | B12: Amnt | C12: =C10*((C8*1000)^C11) -> 52.58878265 | D12: grams | E12: Eq
A13: Proportion of diet as bait | B13: PropC
B14: Central | C14: 0.002 | D14: Unitless | E14: Scenario parameter
B15: Lower | C15: 0.0002 | E15: Scenario parameter
B16: Upper | C16: 0.02 | E16: Scenario parameter
A17: Consumption of Bait (unadjusted for a.i.) | B17: Bait | C17: (Amnt x PropC )
B18: Central | C18: =C$12*C14 -> 0.1051775653 | D18: grams of bait
B19: Lower | C19: =C$12*C15 -> 0.01051775653
B20: Upper | C20: =C$12*C16 -> 1.051775653
A21: Amount of a.i. consumed | B21: AmntAI | C21: Bait x PerCentAI x 1000 mg/g)
B22: Central | C22: =C$7*C18*1000 -> 0.005258878265 | D22: mg a.i. | E22: Eq
B23: Lower | C23: =C$7*C19*1000 -> 0.0005258878265 | E23: Eq
B24: Upper | C24: =C$7*C20*1000 -> 0.05258878265 | E24: Eq
A25: Dose | B25: Dose | C25: AmntAI / BW
B26: Central | C26: =C22/C$8 -> 0.002629439132 | D26: mg/kg bw | E26: Eq
B27: Lower | C27: =C23/C$8 -> 0.0002629439132 | E27: Eq
B28: Upper | C28: =C24/C$8 -> 0.02629439132 | E28: Eq

Sheet F05d
A1: Consumption of Contaminated Bait, Passerine, Standard Application
A2: Short Title | B2: Passerine, Standard Application | E2: BaitAlloBW_Ac
A3: Receptor | B3: Small Passerine | E3: Scenario parameter
A4: Duration | B4: Acute
A5: Material consumed | B5: Bait
A6: Parameter/Assumption | B6: Code / Range | C6: Equation/ Value | D6: Units | E6: Reference/Designation
A7: Percent a.i. in bait | B7: PerCentAI | C7: ='A01'!PerCentAI -> 5e-05 | D7: percent | E7: Worksheet A01
A8: Body weight | B8: BW | C8: 0.02 | D8: kg | E8: Scenario parameter
A9: Allometric coefficients for food consumption per day in grams and BW in grams
B10: alpha | C10: =A02b!$C$22 -> 0.398 | E10: U.S. EPA/ORD 1993
B11: beta | C11: =A02b!$C$23 -> 0.85 | E11: U.S. EPA/ORD 1993
A12: Amount of food consumed per day | B12: Amnt | C12: =C10*((C8*1000)^C11) -> 5.078770267 | D12: grams | E12: Eq
A13: Proportion of diet as bait | B13: PropC
B14: Central | C14: 2e-05 | D14: Unitless | E14: Worksheet A01
B15: Lower | C15: 2e-06 | E15: Worksheet A01
B16: Upper | C16: 0.0002 | E16: Worksheet A01
A17: Consumption of Bait (unadjusted for a.i.) | B17: Bait | C17: (Amnt x PropC )
B18: Central | C18: =C$12*C14 -> 0.0001015754053 | D18: grams of bait
B19: Lower | C19: =C$12*C15 -> 1.015754053e-05
B20: Upper | C20: =C$12*C16 -> 0.001015754053
A21: Amount of a.i. consumed | B21: AmntAI | C21: Bait x PerCentAI x 1000 mg/g)
B22: Central | C22: =C$7*C18*1000 -> 5.078770267e-06 | D22: mg a.i. | E22: Eq
B23: Lower | C23: =C$7*C19*1000 -> 5.078770267e-07 | E23: Eq
B24: Upper | C24: =C$7*C20*1000 -> 5.078770267e-05 | E24: Eq
A25: Dose | B25: Dose | C25: AmntAI / BW
B26: Central | C26: =C22/C$8 -> 0.0002539385133 | D26: mg/kg bw | E26: Eq
B27: Lower | C27: =C23/C$8 -> 2.539385133e-05 | E27: Eq
B28: Upper | C28: =C24/C$8 -> 0.002539385133 | E28: Eq

Sheet F05e
A1: Consumption of Contaminated Bait, Mallard, Standard Application
A2: Short Title | B2: Mallard, Standard Application | E2: BaitAlloBW_Ac
A3: Receptor | B3: Mallard | E3: Scenario parameter
A4: Duration | B4: Acute
A5: Material consumed | B5: Bait
A6: Parameter/Assumption | B6: Code / Range | C6: Equation/ Value | D6: Units | E6: Reference/Designation
A7: Percent a.i. in bait | B7: PerCentAI | C7: ='A01'!PerCentAI -> 5e-05 | D7: percent | E7: Worksheet A01
A8: Body weight | B8: BW | C8: 1 | D8: kg | E8: Scenario parameter
A9: Allometric coefficients for food consumption per day in grams and BW in grams
B10: alpha | C10: =A02b!$C$20 -> 0.301 | E10: U.S. EPA/ORD 1993
B11: beta | C11: =A02b!$C$21 -> 0.751 | E11: U.S. EPA/ORD 1993
A12: Amount of food consumed per day | B12: Amnt | C12: =C10*((C8*1000)^C11) -> 53.89723621 | D12: grams | E12: Eq
A13: Proportion of diet as bait | B13: PropC
B14: Central | C14: =F05d!C$14 -> 2e-05 | D14: Unitless | E14: Worksheet A01
B15: Lower | C15: =F05d!C$15 -> 2e-06 | E15: Worksheet A01
B16: Upper | C16: =F05d!C$16 -> 0.0002 | E16: Worksheet A01
A17: Consumption of Bait (unadjusted for a.i.) | B17: Bait | C17: (Amnt x PropC )
B18: Central | C18: =C$12*C14 -> 0.001077944724 | D18: grams of bait
B19: Lower | C19: =C$12*C15 -> 0.0001077944724
B20: Upper | C20: =C$12*C16 -> 0.01077944724
A21: Amount of a.i. consumed | B21: AmntAI | C21: Bait x PerCentAI x 1000 mg/g)
B22: Central | C22: =C$7*C18*1000 -> 5.389723621e-05 | D22: mg a.i. | E22: Eq
B23: Lower | C23: =C$7*C19*1000 -> 5.389723621e-06 | E23: Eq
B24: Upper | C24: =C$7*C20*1000 -> 0.0005389723621 | E24: Eq
A25: Dose | B25: Dose | C25: AmntAI / BW
B26: Central | C26: =C22/C$8 -> 5.389723621e-05 | D26: mg/kg bw | E26: Eq
B27: Lower | C27: =C23/C$8 -> 5.389723621e-06 | E27: Eq
B28: Upper | C28: =C24/C$8 -> 0.0005389723621 | E28: Eq

Sheet F05f
A1: Consumption of Contaminated Bait, Pigeon, Standard Application
A2: Short Title | B2: Pigeon, Standard Application | E2: BaitAlloBW_Ac
A3: Receptor | B3: Pigeon | E3: Scenario parameter
A4: Duration | B4: Acute
A5: Material consumed | B5: Bait
A6: Parameter/Assumption | B6: Code / Range | C6: Equation/ Value | D6: Units | E6: Reference/Designation
A7: Percent a.i. in bait | B7: PerCentAI | C7: ='A01'!PerCentAI -> 5e-05 | D7: percent | E7: Worksheet A01
A8: Body weight | B8: BW | C8: 0.35 | D8: kg | E8: Scenario parameter
A9: Allometric coefficients for food consumption per day in grams and BW in grams
B10: alpha | C10: =A02b!$C$20 -> 0.301 | E10: U.S. EPA/ORD 1993
B11: beta | C11: =A02b!$C$21 -> 0.751 | E11: U.S. EPA/ORD 1993
A12: Amount of food consumed per day | B12: Amnt | C12: =C10*((C8*1000)^C11) -> 24.49974685 | D12: grams | E12: Eq
A13: Proportion of diet as bait | B13: PropC
B14: Central | C14: =F05d!C$14 -> 2e-05 | D14: Unitless | E14: Worksheet A01
B15: Lower | C15: =F05d!C$15 -> 2e-06 | E15: Worksheet A01
B16: Upper | C16: =F05d!C$16 -> 0.0002 | E16: Worksheet A01
A17: Consumption of Bait (unadjusted for a.i.) | B17: Bait | C17: (Amnt x PropC )
B18: Central | C18: =C$12*C14 -> 0.000489994937 | D18: grams of bait
B19: Lower | C19: =C$12*C15 -> 4.89994937e-05
B20: Upper | C20: =C$12*C16 -> 0.00489994937
A21: Amount of a.i. consumed | B21: AmntAI | C21: Bait x PerCentAI x 1000 mg/g)
B22: Central | C22: =C$7*C18*1000 -> 2.449974685e-05 | D22: mg a.i. | E22: Eq
B23: Lower | C23: =C$7*C19*1000 -> 2.449974685e-06 | E23: Eq
B24: Upper | C24: =C$7*C20*1000 -> 0.0002449974685 | E24: Eq
A25: Dose | B25: Dose | C25: AmntAI / BW
B26: Central | C26: =C22/C$8 -> 6.999927671e-05 | D26: mg/kg bw | E26: Eq
B27: Lower | C27: =C23/C$8 -> 6.999927671e-06 | E27: Eq
B28: Upper | C28: =C24/C$8 -> 0.0006999927671 | E28: Eq

Sheet F05g
A1: Consumption of Contaminated Bait, Quail, Standard Application
A2: Short Title | B2: Quail, Standard Application | E2: BaitAlloBW_Ac
A3: Receptor | B3: Quail | E3: Scenario parameter
A4: Duration | B4: Acute
A5: Material consumed | B5: Bait
A6: Parameter/Assumption | B6: Code / Range | C6: Equation/ Value | D6: Units | E6: Reference/Designation
A7: Percent a.i. in bait | B7: PerCentAI | C7: ='A01'!PerCentAI -> 5e-05 | D7: percent | E7: Worksheet A01
A8: Body weight | B8: BW | C8: 0.2 | D8: kg | E8: Scenario parameter
A9: Allometric coefficients for food consumption per day in grams and BW in grams
B10: alpha | C10: =A02b!$C$20 -> 0.301 | E10: U.S. EPA/ORD 1993
B11: beta | C11: =A02b!$C$21 -> 0.751 | E11: U.S. EPA/ORD 1993
A12: Amount of food consumed per day | B12: Amnt | C12: =C10*((C8*1000)^C11) -> 16.09311158 | D12: grams | E12: Eq
A13: Proportion of diet as bait | B13: PropC
B14: Central | C14: =F05d!C$14 -> 2e-05 | D14: Unitless | E14: Worksheet A01
B15: Lower | C15: =F05d!C$15 -> 2e-06 | E15: Worksheet A01
B16: Upper | C16: =F05d!C$16 -> 0.0002 | E16: Worksheet A01
A17: Consumption of Bait (unadjusted for a.i.) | B17: Bait | C17: (Amnt x PropC )
B18: Central | C18: =C$12*C14 -> 0.0003218622315 | D18: grams of bait
B19: Lower | C19: =C$12*C15 -> 3.218622315e-05
B20: Upper | C20: =C$12*C16 -> 0.003218622315
A21: Amount of a.i. consumed | B21: AmntAI | C21: Bait x PerCentAI x 1000 mg/g)
B22: Central | C22: =C$7*C18*1000 -> 1.609311158e-05 | D22: mg a.i. | E22: Eq
B23: Lower | C23: =C$7*C19*1000 -> 1.609311158e-06 | E23: Eq
B24: Upper | C24: =C$7*C20*1000 -> 0.0001609311158 | E24: Eq
A25: Dose | B25: Dose | C25: AmntAI / BW
B26: Central | C26: =C22/C$8 -> 8.046555788e-05 | D26: mg/kg bw | E26: Eq
B27: Lower | C27: =C23/C$8 -> 8.046555788e-06 | E27: Eq
B28: Upper | C28: =C24/C$8 -> 0.0008046555788 | E28: Eq

Sheet F06a
A1: Consumption of contaminated water by Mammal, small, Peak Concentrations
A2: Short Title | B2: Peak Concentrations | E2: WatAlloV6
A3: Receptor | B3: Mammal, small
A4: Duration | B4: Acute | E4: Scenario parameter
A5: Parameter/Assumption | B5: Code / Range | C5: Equation/ Value | D5: Units | E5: Reference/Designation
A6: Concentration in water | B6: ConcWat
B7: Central | C7: =B04a!Acute_C -> 1.25e-06 | D7: mg/L | E7: ='B04a'!Acute_C
B8: Lower | C8: =B04a!Acute_L -> 1.25e-07 | E8: ='B04a'!Acute_L
B9: Upper | C9: =B04a!Acute_U -> 6.25e-06 | E9: ='B04a'!Acute_U
A10: Receptor
A11: Body weight | B11: BW | C11: =A02b!$C$71 -> 0.02 | D11: kg | E11: Default
A12: Allometric coefficients forwater consumption per day in liters and BW in kilograms
B13: alpha | C13: =A02b!$C$79 -> 0.099 | E13: U.S. EPA/ORD 1993
B14: beta | C14: =A02b!$C$80 -> 0.9 | E14: U.S. EPA/ORD 1993
A15: Amount of water consumed per day | C15: Amnt = alpha BW beta
B16: Amnt | C16: =C13*(C11^C14) -> 0.002927940121 | D16: liters | E16: Eq
A17: Absorbed Dose | B17: Dose | C17: ConcWat × Amnt ÷ BW
B18: Central | C18: =C7*C$16/C$11 -> 1.829962575e-07 | D18: mg/kg | E18: Eq
B19: Lower | C19: =C8*C$16/C$11 -> 1.829962575e-08 | D19: mg/kg | E19: Eq
B20: Upper | C20: =C9*C$16/C$11 -> 9.149812877e-07 | D20: mg/kg | E20: Eq

Sheet F06b
A1: Consumption of contaminated water by Mammal, carnivorous, Peak Concentrations
A2: Short Title | B2: Peak Concentrations | E2: WatAlloV6
A3: Receptor | B3: Mammal, carnivorous
A4: Duration | B4: Acute | E4: Scenario parameter
A5: Parameter/Assumption | B5: Code / Range | C5: Equation/ Value | D5: Units | E5: Reference/Designation
A6: Concentration in water | B6: ConcWat
B7: Central | C7: =B04a!Acute_C -> 1.25e-06 | D7: mg/L | E7: ='B04a'!Acute_C
B8: Lower | C8: =B04a!Acute_L -> 1.25e-07 | E8: ='B04a'!Acute_L
B9: Upper | C9: =B04a!Acute_U -> 6.25e-06 | E9: ='B04a'!Acute_U
A10: Receptor
A11: Body weight | B11: BW | C11: =A02b!$C$47 -> 5 | D11: kg | E11: U.S. EPA/ORD 1993
A12: Allometric coefficients forwater consumption per day in liters and BW in kilograms
B13: alpha | C13: =A02b!$C$50 -> 0.099 | E13: U.S. EPA/ORD 1993
B14: beta | C14: =A02b!$C$51 -> 0.9 | E14: U.S. EPA/ORD 1993
A15: Amount of water consumed per day | C15: Amnt = alpha BW beta
B16: Amnt | C16: =C13*(C11^C14) -> 0.4214132616 | D16: liters | E16: Eq
A17: Absorbed Dose | B17: Dose | C17: ConcWat × Amnt ÷ BW
B18: Central | C18: =C7*C$16/C$11 -> 1.053533154e-07 | D18: mg/kg | E18: Eq
B19: Lower | C19: =C8*C$16/C$11 -> 1.053533154e-08 | D19: mg/kg | E19: Eq
B20: Upper | C20: =C9*C$16/C$11 -> 5.267665771e-07 | D20: mg/kg | E20: Eq

Sheet F06c
A1: Consumption of contaminated water by Mammal, large, Peak Concentrations
A2: Short Title | B2: Peak Concentrations | E2: WatAlloV6
A3: Receptor | B3: Mammal, large
A4: Duration | B4: Acute | E4: Scenario parameter
A5: Parameter/Assumption | B5: Code / Range | C5: Equation/ Value | D5: Units | E5: Reference/Designation
A6: Concentration in water | B6: ConcWat
B7: Central | C7: =B04a!Acute_C -> 1.25e-06 | D7: mg/L | E7: ='B04a'!Acute_C
B8: Lower | C8: =B04a!Acute_L -> 1.25e-07 | E8: ='B04a'!Acute_L
B9: Upper | C9: =B04a!Acute_U -> 6.25e-06 | E9: ='B04a'!Acute_U
A10: Receptor
A11: Body weight | B11: BW | C11: =A02b!$C$61 -> 70 | D11: kg | E11: Default
A12: Allometric coefficients forwater consumption per day in liters and BW in kilograms
B13: alpha | C13: =A02b!$C$64 -> 0.099 | E13: U.S. EPA/ORD 1993
B14: beta | C14: =A02b!$C$65 -> 0.9 | E14: U.S. EPA/ORD 1993
A15: Amount of water consumed per day | C15: Amnt = alpha BW beta
B16: Amnt | C16: =C13*(C11^C14) -> 4.531306412 | D16: liters | E16: Eq
A17: Absorbed Dose | B17: Dose | C17: ConcWat × Amnt ÷ BW
B18: Central | C18: =C7*C$16/C$11 -> 8.091618592e-08 | D18: mg/kg | E18: Eq
B19: Lower | C19: =C8*C$16/C$11 -> 8.091618592e-09 | D19: mg/kg | E19: Eq
B20: Upper | C20: =C9*C$16/C$11 -> 4.045809296e-07 | D20: mg/kg | E20: Eq

Sheet F06d
A1: Consumption of contaminated water by Bird, small, Peak ConcentrationsT
A2: Short Title | B2: Peak ConcentrationsT | E2: WatAlloV6
A3: Receptor | B3: Bird, small
A4: Duration | B4: Acute | E4: Scenario parameter
A5: Parameter/Assumption | B5: Code / Range | C5: Equation/ Value | D5: Units | E5: Reference/Designation
A6: Concentration in water | B6: ConcWat
B7: Central | C7: =B04a!Acute_C -> 1.25e-06 | D7: mg/L | E7: ='B04a'!Acute_C
B8: Lower | C8: =B04a!Acute_L -> 1.25e-07 | E8: ='B04a'!Acute_L
B9: Upper | C9: =B04a!Acute_U -> 6.25e-06 | E9: ='B04a'!Acute_U
A10: Receptor
A11: Body weight | B11: BW | C11: =A02b!$C$31 -> 0.01 | D11: kg | E11: Default
A12: Allometric coefficients forwater consumption per day in liters and BW in kilograms
B13: alpha | C13: =A02b!$C$34 -> 0.059 | E13: U.S. EPA/ORD 1993
B14: beta | C14: =A02b!$C$35 -> 0.67 | E14: U.S. EPA/ORD 1993
A15: Amount of water consumed per day | C15: Amnt = alpha BW beta
B16: Amnt | C16: =C13*(C11^C14) -> 0.002696820319 | D16: liters | E16: Eq
A17: Absorbed Dose | B17: Dose | C17: ConcWat × Amnt ÷ BW
B18: Central | C18: =C7*C$16/C$11 -> 3.371025398e-07 | D18: mg/kg | E18: Eq
B19: Lower | C19: =C8*C$16/C$11 -> 3.371025398e-08 | D19: mg/kg | E19: Eq
B20: Upper | C20: =C9*C$16/C$11 -> 1.685512699e-06 | D20: mg/kg | E20: Eq

Sheet F06e
A1: Consumption of contaminated water by Bird, large, Peak Concentrations
A2: Short Title | B2: Peak Concentrations | E2: WatAlloV6
A3: Receptor | B3: Bird, large
A4: Duration | B4: Acute | E4: Scenario parameter
A5: Parameter/Assumption | B5: Code / Range | C5: Equation/ Value | D5: Units | E5: Reference/Designation
A6: Concentration in water | B6: ConcWat
B7: Central | C7: =B04a!Acute_C -> 1.25e-06 | D7: mg/L | E7: ='B04a'!Acute_C
B8: Lower | C8: =B04a!Acute_L -> 1.25e-07 | E8: ='B04a'!Acute_L
B9: Upper | C9: =B04a!Acute_U -> 6.25e-06 | E9: ='B04a'!Acute_U
A10: Receptor
A11: Body weight | B11: BW | C11: =A02b!$C$15 -> 4 | D11: kg | E11: Default
A12: Allometric coefficients forwater consumption per day in liters and BW in kilograms
B13: alpha | C13: =A02b!$C$18 -> 0.059 | E13: U.S. EPA/ORD 1993
B14: beta | C14: =A02b!$C$19 -> 0.67 | E14: U.S. EPA/ORD 1993
A15: Amount of water consumed per day | C15: Amnt = alpha BW beta
B16: Amnt | C16: =C13*(C11^C14) -> 0.1493592781 | D16: liters | E16: Eq
A17: Absorbed Dose | B17: Dose | C17: ConcWat × Amnt ÷ BW
B18: Central | C18: =C7*C$16/C$11 -> 4.66747744e-08 | D18: mg/kg | E18: Eq
B19: Lower | C19: =C8*C$16/C$11 -> 4.66747744e-09 | D19: mg/kg | E19: Eq
B20: Upper | C20: =C9*C$16/C$11 -> 2.33373872e-07 | D20: mg/kg | E20: Eq

Sheet F07a
A1: Consumption of contaminated water by Mammal, small, Longer-term Concentrations
A2: Short Title | B2: Longer-term Concentrations | E2: WatAlloV6
A3: Receptor | B3: Mammal, small
A4: Duration | B4: Chronic | E4: Scenario parameter
A5: Parameter/Assumption | B5: Code / Range | C5: Equation/ Value | D5: Units | E5: Reference/Designation
A6: Concentration in water | B6: ConcWat
B7: Central | C7: =B04a!Chronic_C -> 3.125e-08 | D7: mg/L | E7: ='B04a'!Chronic_C
B8: Lower | C8: =B04a!Chronic_L -> 1.25e-09 | E8: ='B04a'!Chronic_L
B9: Upper | C9: =B04a!Chronic_U -> 1.875e-07 | E9: ='B04a'!Chronic_U
A10: Receptor
A11: Body weight | B11: BW | C11: =A02b!$C$71 -> 0.02 | D11: kg | E11: Default
A12: Allometric coefficients forwater consumption per day in liters and BW in kilograms
B13: alpha | C13: =A02b!$C$79 -> 0.099 | E13: U.S. EPA/ORD 1993
B14: beta | C14: =A02b!$C$80 -> 0.9 | E14: U.S. EPA/ORD 1993
A15: Amount of water consumed per day | C15: Amnt = alpha BW beta
B16: Amnt | C16: =C13*(C11^C14) -> 0.002927940121 | D16: liters | E16: Eq
A17: Absorbed Dose | B17: Dose | C17: ConcWat × Amnt ÷ BW
B18: Central | C18: =C7*C$16/C$11 -> 4.574906438e-09 | D18: mg/kg | E18: Eq
B19: Lower | C19: =C8*C$16/C$11 -> 1.829962575e-10 | D19: mg/kg | E19: Eq
B20: Upper | C20: =C9*C$16/C$11 -> 2.744943863e-08 | D20: mg/kg | E20: Eq

Sheet F07b
A1: Consumption of contaminated water by Mammal, carnivorous, Longer-term Concentrations
A2: Short Title | B2: Longer-term Concentrations | E2: WatAlloV6
A3: Receptor | B3: Mammal, carnivorous
A4: Duration | B4: Chronic | E4: Scenario parameter
A5: Parameter/Assumption | B5: Code / Range | C5: Equation/ Value | D5: Units | E5: Reference/Designation
A6: Concentration in water | B6: ConcWat
B7: Central | C7: =B04a!Chronic_C -> 3.125e-08 | D7: mg/L | E7: ='B04a'!Chronic_C
B8: Lower | C8: =B04a!Chronic_L -> 1.25e-09 | E8: ='B04a'!Chronic_L
B9: Upper | C9: =B04a!Chronic_U -> 1.875e-07 | E9: ='B04a'!Chronic_U
A10: Receptor
A11: Body weight | B11: BW | C11: =A02b!$C$47 -> 5 | D11: kg | E11: U.S. EPA/ORD 1993
A12: Allometric coefficients forwater consumption per day in liters and BW in kilograms
B13: alpha | C13: =A02b!$C$50 -> 0.099 | E13: U.S. EPA/ORD 1993
B14: beta | C14: =A02b!$C$51 -> 0.9 | E14: U.S. EPA/ORD 1993
A15: Amount of water consumed per day | C15: Amnt = alpha BW beta
B16: Amnt | C16: =C13*(C11^C14) -> 0.4214132616 | D16: liters | E16: Eq
A17: Absorbed Dose | B17: Dose | C17: ConcWat × Amnt ÷ BW
B18: Central | C18: =C7*C$16/C$11 -> 2.633832885e-09 | D18: mg/kg | E18: Eq
B19: Lower | C19: =C8*C$16/C$11 -> 1.053533154e-10 | D19: mg/kg | E19: Eq
B20: Upper | C20: =C9*C$16/C$11 -> 1.580299731e-08 | D20: mg/kg | E20: Eq

Sheet F07c
A1: Consumption of contaminated water by Mammal, large, Longer-term Concentrations
A2: Short Title | B2: Longer-term Concentrations | E2: WatAlloV6
A3: Receptor | B3: Mammal, large
A4: Duration | B4: Chronic | E4: Scenario parameter
A5: Parameter/Assumption | B5: Code / Range | C5: Equation/ Value | D5: Units | E5: Reference/Designation
A6: Concentration in water | B6: ConcWat
B7: Central | C7: =B04a!Chronic_C -> 3.125e-08 | D7: mg/L | E7: ='B04a'!Chronic_C
B8: Lower | C8: =B04a!Chronic_L -> 1.25e-09 | E8: ='B04a'!Chronic_L
B9: Upper | C9: =B04a!Chronic_U -> 1.875e-07 | E9: ='B04a'!Chronic_U
A10: Receptor
A11: Body weight | B11: BW | C11: =A02b!$C$61 -> 70 | D11: kg | E11: Default
A12: Allometric coefficients forwater consumption per day in liters and BW in kilograms
B13: alpha | C13: =A02b!$C$64 -> 0.099 | E13: U.S. EPA/ORD 1993
B14: beta | C14: =A02b!$C$65 -> 0.9 | E14: U.S. EPA/ORD 1993
A15: Amount of water consumed per day | C15: Amnt = alpha BW beta
B16: Amnt | C16: =C13*(C11^C14) -> 4.531306412 | D16: liters | E16: Eq
A17: Absorbed Dose | B17: Dose | C17: ConcWat × Amnt ÷ BW
B18: Central | C18: =C7*C$16/C$11 -> 2.022904648e-09 | D18: mg/kg | E18: Eq
B19: Lower | C19: =C8*C$16/C$11 -> 8.091618592e-11 | D19: mg/kg | E19: Eq
B20: Upper | C20: =C9*C$16/C$11 -> 1.213742789e-08 | D20: mg/kg | E20: Eq

Sheet F07d
A1: Consumption of contaminated water by Bird, small, Longer-term Concentrations
A2: Short Title | B2: Longer-term Concentrations | E2: WatAlloV6
A3: Receptor | B3: Bird, small
A4: Duration | B4: Chronic | E4: Scenario parameter
A5: Parameter/Assumption | B5: Code / Range | C5: Equation/ Value | D5: Units | E5: Reference/Designation
A6: Concentration in water | B6: ConcWat
B7: Central | C7: =B04a!Chronic_C -> 3.125e-08 | D7: mg/L | E7: ='B04a'!Chronic_C
B8: Lower | C8: =B04a!Chronic_L -> 1.25e-09 | E8: ='B04a'!Chronic_L
B9: Upper | C9: =B04a!Chronic_U -> 1.875e-07 | E9: ='B04a'!Chronic_U
A10: Receptor
A11: Body weight | B11: BW | C11: =A02b!$C$31 -> 0.01 | D11: kg | E11: Default
A12: Allometric coefficients forwater consumption per day in liters and BW in kilograms
B13: alpha | C13: =A02b!$C$34 -> 0.059 | E13: U.S. EPA/ORD 1993
B14: beta | C14: =A02b!$C$35 -> 0.67 | E14: U.S. EPA/ORD 1993
A15: Amount of water consumed per day | C15: Amnt = alpha BW beta
B16: Amnt | C16: =C13*(C11^C14) -> 0.002696820319 | D16: liters | E16: Eq
A17: Absorbed Dose | B17: Dose | C17: ConcWat × Amnt ÷ BW
B18: Central | C18: =C7*C$16/C$11 -> 8.427563496e-09 | D18: mg/kg | E18: Eq
B19: Lower | C19: =C8*C$16/C$11 -> 3.371025398e-10 | D19: mg/kg | E19: Eq
B20: Upper | C20: =C9*C$16/C$11 -> 5.056538098e-08 | D20: mg/kg | E20: Eq

Sheet F07e
A1: Consumption of contaminated water by Bird, large, Longer-term Concentrations
A2: Short Title | B2: Longer-term Concentrations | E2: WatAlloV6
A3: Receptor | B3: Bird, large
A4: Duration | B4: Chronic | E4: Scenario parameter
A5: Parameter/Assumption | B5: Code / Range | C5: Equation/ Value | D5: Units | E5: Reference/Designation
A6: Concentration in water | B6: ConcWat
B7: Central | C7: =B04a!Chronic_C -> 3.125e-08 | D7: mg/L | E7: ='B04a'!Chronic_C
B8: Lower | C8: =B04a!Chronic_L -> 1.25e-09 | E8: ='B04a'!Chronic_L
B9: Upper | C9: =B04a!Chronic_U -> 1.875e-07 | E9: ='B04a'!Chronic_U
A10: Receptor
A11: Body weight | B11: BW | C11: =A02b!$C$15 -> 4 | D11: kg | E11: Default
A12: Allometric coefficients forwater consumption per day in liters and BW in kilograms
B13: alpha | C13: =A02b!$C$18 -> 0.059 | E13: U.S. EPA/ORD 1993
B14: beta | C14: =A02b!$C$19 -> 0.67 | E14: U.S. EPA/ORD 1993
A15: Amount of water consumed per day | C15: Amnt = alpha BW beta
B16: Amnt | C16: =C13*(C11^C14) -> 0.1493592781 | D16: liters | E16: Eq
A17: Absorbed Dose | B17: Dose | C17: ConcWat × Amnt ÷ BW
B18: Central | C18: =C7*C$16/C$11 -> 1.16686936e-09 | D18: mg/kg | E18: Eq
B19: Lower | C19: =C8*C$16/C$11 -> 4.66747744e-11 | D19: mg/kg | E19: Eq
B20: Upper | C20: =C9*C$16/C$11 -> 7.00121616e-09 | D20: mg/kg | E20: Eq

Sheet F08
A1: Consumption of bait by a bear
A2: Short Title | B2: Consumption of food cache by bear | E2: BaitAmnt_Ac
A3: Receptor | B3: Bear | E3: Scenario parameter
A4: Duration | B4: Acute
A5: Material consumed | B5: Bait
A6: Parameter/Assumption | B6: Code / Range | C6: Equation/ Value | D6: Units | E6: Reference/Designation
A7: Body weight | B7: BW | C7: 100 | D7: kg | E7: Scenario parameter
A8: Amount of a.i. available in a single incident. | B8: Cache_AI
B9: Central | C9: 12.5 | D9: mg a.i. | E9: Scenario parameter
B10: Lower | C10: 1.25 | E10: Scenario parameter
B11: Upper | C11: 125 | E11: Scenario parameter
A12: Number of incidents | B12: NCache | C12: 1 | E12: Scenario parameter
A13: Total amount of a.i. available | B13: AmntAI
B14: Central | C14: =C9*C$12 -> 12.5 | E14: Eq
B15: Lower | C15: =C10*C$12 -> 1.25 | E15: Eq
B16: Upper | C16: =C11*C$12 -> 125 | E16: Eq
A17: Proportion of the rodenticide that is consumed | B17: Prop
B18: Central | C18: 0.3 | E18: Scenario parameter
B19: Lower | C19: 0.1 | E19: Scenario parameter
B20: Upper | C20: 1 | E20: Scenario parameter
A21: Dose | B21: Dose | C21: AmntAI x Prop / BW
B22: Central | C22: =C9*C18/C$7 -> 0.0375 | D22: mg/kg bw | E22: Eq
B23: Lower | C23: =C10*C19/C$7 -> 0.00125 | E23: Eq
B24: Upper | C24: =C11*C20/C$7 -> 1.25 | E24: Eq

Sheet F09a
A1: Consumption of Poisoned Gopher by a Coyete
A2: Short Title | B2: Consumption of prairie dog | E2: BaitPrey_Ac
A3: Receptor | B3: Coyete | E3: Scenario parameter
A4: Duration | B4: Acute
A5: Material consumed | B5: Prairie dog
A6: Parameter/Assumption | B6: Code / Range | C6: Equation/ Value | D6: Units | E6: Reference/Designation
A7: Body weight of Predator | B7: BWPred | C7: 13 | D7: kg | E7: Scenario parameter
A8: Body weight of Prey | B8: BWPrey | C8: 1 | D8: kg | E8: Scenario parameter
A9: Concentration of a.i. in prey | B9: Prey_Conc
B10: Central | C10: 1.8 | D10: mg a.i./kg bw | E10: Scenario parameter
B11: Lower | C11: 1.35 | E11: Scenario parameter
B12: Upper | C12: 5.29 | E12: Scenario parameter
A13: Amount of a.i. in prey | B13: Prey_AI
B14: Central | C14: =C$8*C10 -> 1.8 | D14: mg a.i. | E14: Eq
B15: Lower | C15: =C$8*C11 -> 1.35 | E15: Eq
B16: Upper | C16: =C$8*C12 -> 5.29 | E16: Eq
A17: Number of prey organisms consumed | B17: Nprey
B18: Central | C18: 1 | E18: Scenario parameter
B19: Lower | C19: 1 | E19: Scenario parameter
B20: Upper | C20: 1 | E20: Scenario parameter
A21: Total amount of a.i. available | B21: AmntAI
B22: Central | C22: =C14*C18 -> 1.8 | D22: mg a.i. | E22: Eq
B23: Lower | C23: =C15*C19 -> 1.35 | E23: Eq
B24: Upper | C24: =C16*C20 -> 5.29 | E24: Eq
A25: Proportion of the prey that is consumed. | B25: Prop
B26: Central | C26: 0.3 | E26: Scenario parameter
B27: Lower | C27: 0.01 | E27: Scenario parameter
B28: Upper | C28: 0.8 | E28: Scenario parameter
A29: Dose | B29: Dose | C29: AmntAI x Prop / BW
B30: Central | C30: =C14*C26/C$7 -> 0.04153846154 | D30: mg/kg bw | E30: Eq
B31: Lower | C31: =C15*C27/C$7 -> 0.001038461538 | E31: Eq
B32: Upper | C32: =C16*C28/C$7 -> 0.3255384615 | E32: Eq

Sheet F09b
A1: Consumption of Poisoned Prairie Dog by a Badger
A2: Short Title | B2: Consumption of prairie dog | E2: BaitPrey_Ac
A3: Receptor | B3: Badger | E3: Scenario parameter
A4: Duration | B4: Acute
A5: Material consumed | B5: Prairie dog
A6: Parameter/Assumption | B6: Code / Range | C6: Equation/ Value | D6: Units | E6: Reference/Designation
A7: Body weight of Predator | B7: BWPred | C7: 7 | D7: kg | E7: Scenario parameter
A8: Body weight of Prey | B8: BWPrey | C8: 1 | D8: kg | E8: Scenario parameter
A9: Concentration of a.i. in prey | B9: Prey_Conc
B10: Central | C10: 1.8 | D10: mg a.i./kg bw | E10: Scenario parameter
B11: Lower | C11: 1.35 | E11: Scenario parameter
B12: Upper | C12: 5.29 | E12: Scenario parameter
A13: Amount of a.i. in prey | B13: Prey_AI
B14: Central | C14: =C$8*C10 -> 1.8 | D14: mg a.i. | E14: Eq
B15: Lower | C15: =C$8*C11 -> 1.35 | E15: Eq
B16: Upper | C16: =C$8*C12 -> 5.29 | E16: Eq
A17: Number of prey organisms consumed | B17: Nprey
B18: Central | C18: 1 | E18: Scenario parameter
B19: Lower | C19: 1 | E19: Scenario parameter
B20: Upper | C20: 1 | E20: Scenario parameter
A21: Total amount of a.i. available | B21: AmntAI
B22: Central | C22: =C14*C18 -> 1.8 | D22: mg a.i. | E22: Eq
B23: Lower | C23: =C15*C19 -> 1.35 | E23: Eq
B24: Upper | C24: =C16*C20 -> 5.29 | E24: Eq
A25: Proportion of the prey that is consumed. | B25: Prop
B26: Central | C26: 0.3 | E26: Scenario parameter
B27: Lower | C27: 0.01 | E27: Scenario parameter
B28: Upper | C28: 0.8 | E28: Scenario parameter
A29: Dose | B29: Dose | C29: AmntAI x Prop / BW
B30: Central | C30: =C14*C26/C$7 -> 0.07714285714 | D30: mg/kg bw | E30: Eq
B31: Lower | C31: =C15*C27/C$7 -> 0.001928571429 | E31: Eq
B32: Upper | C32: =C16*C28/C$7 -> 0.6045714286 | E32: Eq

Sheet F09c
A1: Consumption of Poisoned Prairie Dog by a Mink
A2: Short Title | B2: Consumption of prairie dog | E2: BaitPrey_Ac
A3: Receptor | B3: Mink | E3: Scenario parameter
A4: Duration | B4: Acute
A5: Material consumed | B5: Prairie dog
A6: Parameter/Assumption | B6: Code / Range | C6: Equation/ Value | D6: Units | E6: Reference/Designation
A7: Body weight of Predator | B7: BWPred | C7: 1 | D7: kg | E7: Scenario parameter
A8: Body weight of Prey | B8: BWPrey | C8: 1 | D8: kg | E8: Scenario parameter
A9: Concentration of a.i. in prey | B9: Prey_Conc
B10: Central | C10: 1.8 | D10: mg a.i./kg bw | E10: Scenario parameter
B11: Lower | C11: 1.35 | E11: Scenario parameter
B12: Upper | C12: 5.29 | E12: Scenario parameter
A13: Amount of a.i. in prey | B13: Prey_AI
B14: Central | C14: =C$8*C10 -> 1.8 | D14: mg a.i. | E14: Eq
B15: Lower | C15: =C$8*C11 -> 1.35 | E15: Eq
B16: Upper | C16: =C$8*C12 -> 5.29 | E16: Eq
A17: Number of prey organisms consumed | B17: Nprey
B18: Central | C18: 1 | E18: Scenario parameter
B19: Lower | C19: 1 | E19: Scenario parameter
B20: Upper | C20: 1 | E20: Scenario parameter
A21: Total amount of a.i. available | B21: AmntAI
B22: Central | C22: =C14*C18 -> 1.8 | D22: mg a.i. | E22: Eq
B23: Lower | C23: =C15*C19 -> 1.35 | E23: Eq
B24: Upper | C24: =C16*C20 -> 5.29 | E24: Eq
A25: Proportion of the prey that is consumed. | B25: Prop
B26: Central | C26: 0.03 | E26: Scenario parameter
B27: Lower | C27: 0.01 | E27: Scenario parameter
B28: Upper | C28: 0.08 | E28: Scenario parameter
A29: Dose | B29: Dose | C29: AmntAI x Prop / BW
B30: Central | C30: =C14*C26/C$7 -> 0.054 | D30: mg/kg bw | E30: Eq
B31: Lower | C31: =C15*C27/C$7 -> 0.0135 | E31: Eq
B32: Upper | C32: =C16*C28/C$7 -> 0.4232 | E32: Eq

Sheet F09d
A1: Consumption of Poisoned Prairie Dog by a Owl
A2: Short Title | B2: Consumption of prairie dog | E2: BaitPrey_Ac
A3: Receptor | B3: Owl | E3: Scenario parameter
A4: Duration | B4: Acute
A5: Material consumed | B5: Prairie dog
A6: Parameter/Assumption | B6: Code / Range | C6: Equation/ Value | D6: Units | E6: Reference/Designation
A7: Body weight of Predator | B7: BWPred | C7: 1.5 | D7: kg | E7: Scenario parameter
A8: Body weight of Prey | B8: BWPrey | C8: 1 | D8: kg | E8: Scenario parameter
A9: Concentration of a.i. in prey | B9: Prey_Conc
B10: Central | C10: 1.8 | D10: mg a.i./kg bw | E10: Scenario parameter
B11: Lower | C11: 1.35 | E11: Scenario parameter
B12: Upper | C12: 5.29 | E12: Scenario parameter
A13: Amount of a.i. in prey | B13: Prey_AI
B14: Central | C14: =C$8*C10 -> 1.8 | D14: mg a.i. | E14: Eq
B15: Lower | C15: =C$8*C11 -> 1.35 | E15: Eq
B16: Upper | C16: =C$8*C12 -> 5.29 | E16: Eq
A17: Number of prey organisms consumed | B17: Nprey
B18: Central | C18: 1 | E18: Scenario parameter
B19: Lower | C19: 1 | E19: Scenario parameter
B20: Upper | C20: 1 | E20: Scenario parameter
A21: Total amount of a.i. available | B21: AmntAI
B22: Central | C22: =C14*C18 -> 1.8 | D22: mg a.i. | E22: Eq
B23: Lower | C23: =C15*C19 -> 1.35 | E23: Eq
B24: Upper | C24: =C16*C20 -> 5.29 | E24: Eq
A25: Proportion of the prey that is consumed. | B25: Prop
B26: Central | C26: 0.03 | E26: Scenario parameter
B27: Lower | C27: 0.01 | E27: Scenario parameter
B28: Upper | C28: 0.08 | E28: Scenario parameter
A29: Dose | B29: Dose | C29: AmntAI x Prop / BW
B30: Central | C30: =C14*C26/C$7 -> 0.036 | D30: mg/kg bw | E30: Eq
B31: Lower | C31: =C15*C27/C$7 -> 0.009 | E31: Eq
B32: Upper | C32: =C16*C28/C$7 -> 0.2821333333 | E32: Eq

Sheet F09e
A1: Consumption of Poisoned Prairie Dog by a Snake
A2: Short Title | B2: Consumption of prairie dog | E2: BaitPrey_Ac
A3: Receptor | B3: Snake | E3: Scenario parameter
A4: Duration | B4: Acute
A5: Material consumed | B5: Prairie dog
A6: Parameter/Assumption | B6: Code / Range | C6: Equation/ Value | D6: Units | E6: Reference/Designation
A7: Body weight of Predator | B7: BWPred | C7: 0.5 | D7: kg | E7: Scenario parameter
A8: Body weight of Prey | B8: BWPrey | C8: 1 | D8: kg | E8: Scenario parameter
A9: Concentration of a.i. in prey | B9: Prey_Conc
B10: Central | C10: 1.8 | D10: mg a.i./kg bw | E10: Scenario parameter
B11: Lower | C11: 1.35 | E11: Scenario parameter
B12: Upper | C12: 5.29 | E12: Scenario parameter
A13: Amount of a.i. in prey | B13: Prey_AI
B14: Central | C14: =C$8*C10 -> 1.8 | D14: mg a.i. | E14: Eq
B15: Lower | C15: =C$8*C11 -> 1.35 | E15: Eq
B16: Upper | C16: =C$8*C12 -> 5.29 | E16: Eq
A17: Number of prey organisms consumed | B17: Nprey
B18: Central | C18: 1 | E18: Scenario parameter
B19: Lower | C19: 1 | E19: Scenario parameter
B20: Upper | C20: 1 | E20: Scenario parameter
A21: Total amount of a.i. available | B21: AmntAI
B22: Central | C22: =C14*C18 -> 1.8 | D22: mg a.i. | E22: Eq
B23: Lower | C23: =C15*C19 -> 1.35 | E23: Eq
B24: Upper | C24: =C16*C20 -> 5.29 | E24: Eq
A25: Proportion of the prey that is consumed. | B25: Prop
B26: Central | C26: 0.03 | E26: Scenario parameter
B27: Lower | C27: 0.01 | E27: Scenario parameter
B28: Upper | C28: 0.08 | E28: Scenario parameter
A29: Dose | B29: Dose | C29: AmntAI x Prop / BW
B30: Central | C30: =C14*C26/C$7 -> 0.108 | D30: mg/kg bw | E30: Eq
B31: Lower | C31: =C15*C27/C$7 -> 0.027 | E31: Eq
B32: Upper | C32: =C16*C28/C$7 -> 0.8464 | E32: Eq

Sheet F10a
A1: Consumption of Contaminated Contaminated Insects by Mouse
A2: Short Title | B2: Mouse, Insect consumption | E2: BaitInsAlloBW_Ac
A3: Receptor | B3: Mouse | E3: Scenario parameter
A4: Duration | B4: Acute
A5: Material consumed | B5: Insects
A6: Parameter/Assumption | B6: Code / Range | C6: Equation/ Value | D6: Units | E6: Reference/Designation
A7: Body weight | B7: BW | C7: 0.02 | D7: kg | E7: Scenario parameter
A8: Allometric coefficients for food consumption per day in grams and BW in grams
B9: alpha | C9: =A02b!$C$69 -> 0.621 | E9: U.S. EPA/ORD 1993
B10: beta | C10: =A02b!$C$70 -> 0.584 | E10: U.S. EPA/ORD 1993
A11: Amount of food consumed per day | B11: Amnt | C11: =C9*((C7*1000)^C10) -> 3.571849221 | D11: grams | E11: Eq
A12: Proportion of diet as bait | B12: PropC
B13: Central | C13: 0.3 | D13: Unitless | E13: Scenario parameter
B14: Lower | C14: 0.1 | E14: Scenario parameter
B15: Upper | C15: 1 | E15: Scenario parameter
A16: Consumption of Insects (unadjusted for a.i.) | B16: Bait | C16: (Amnt x PropC )
B17: Central | C17: =C$11*C13 -> 1.071554766 | D17: grams
B18: Lower | C18: =C$11*C14 -> 0.3571849221
B19: Upper | C19: =C$11*C15 -> 3.571849221
A20: Residues in insects | B20: Bait | C20: (Amnt x PropC )
B21: Central | C21: ='A01'!C$32 -> 0.2 | D21: µg/g | E21: Worksheet A01
B22: Lower | C22: ='A01'!C$33 -> 0.07 | E22: Worksheet A01
B23: Upper | C23: ='A01'!C$34 -> 0.6 | E23: Worksheet A01
A24: Amount of a.i. consumed | B24: AmntAI | C24: Bait x PerCentAI / 1000 µg/g)
B25: Central | C25: =C21*C17/1000 -> 0.0002143109532 | D25: mg a.i. | E25: Eq
B26: Lower | C26: =C22*C18/1000 -> 2.500294455e-05 | E26: Eq
B27: Upper | C27: =C23*C19/1000 -> 0.002143109532 | E27: Eq
A28: Dose | B28: Dose | C28: AmntAI / BW
B29: Central | C29: =C25/C$7 -> 0.01071554766 | D29: mg/kg bw | E29: Eq
B30: Lower | C30: =C26/C$7 -> 0.001250147227 | E30: Eq
B31: Upper | C31: =C27/C$7 -> 0.1071554766 | E31: Eq

Sheet F10b
A1: Consumption of Contaminated Contaminated Insects by Small bird
A2: Short Title | B2: Bird, Insect consumption | E2: BaitInsAlloBW_Ac
A3: Receptor | B3: Small bird | E3: Scenario parameter
A4: Duration | B4: Acute
A5: Material consumed | B5: Insects
A6: Parameter/Assumption | B6: Code / Range | C6: Equation/ Value | D6: Units | E6: Reference/Designation
A7: Body weight | B7: BW | C7: 0.01 | D7: kg | E7: Scenario parameter
A8: Allometric coefficients for food consumption per day in grams and BW in grams
B9: alpha | C9: =A02b!$C$22 -> 0.398 | E9: U.S. EPA/ORD 1993
B10: beta | C10: =A02b!$C$23 -> 0.85 | E10: U.S. EPA/ORD 1993
A11: Amount of food consumed per day | B11: Amnt | C11: =C9*((C7*1000)^C10) -> 2.817624222 | D11: grams | E11: Eq
A12: Proportion of diet as bait | B12: PropC
B13: Central | C13: 0.3 | D13: Unitless | E13: Scenario parameter
B14: Lower | C14: 0.1 | E14: Scenario parameter
B15: Upper | C15: 1 | E15: Scenario parameter
A16: Consumption of Insects (unadjusted for a.i.) | B16: Bait | C16: (Amnt x PropC )
B17: Central | C17: =C$11*C13 -> 0.8452872666 | D17: grams
B18: Lower | C18: =C$11*C14 -> 0.2817624222
B19: Upper | C19: =C$11*C15 -> 2.817624222
A20: Residues in insects | B20: Bait | C20: (Amnt x PropC )
B21: Central | C21: ='A01'!C$32 -> 0.2 | D21: µg/g | E21: Worksheet A01
B22: Lower | C22: ='A01'!C$33 -> 0.07 | E22: Worksheet A01
B23: Upper | C23: ='A01'!C$34 -> 0.6 | E23: Worksheet A01
A24: Amount of a.i. consumed | B24: AmntAI | C24: Bait x PerCentAI / 1000 µg/g)
B25: Central | C25: =C21*C17/1000 -> 0.0001690574533 | D25: mg a.i. | E25: Eq
B26: Lower | C26: =C22*C18/1000 -> 1.972336955e-05 | E26: Eq
B27: Upper | C27: =C23*C19/1000 -> 0.001690574533 | E27: Eq
A28: Dose | B28: Dose | C28: AmntAI / BW
B29: Central | C29: =C25/C$7 -> 0.01690574533 | D29: mg/kg bw | E29: Eq
B30: Lower | C30: =C26/C$7 -> 0.001972336955 | E30: Eq
B31: Upper | C31: =C27/C$7 -> 0.1690574533 | E31: Eq

Sheet F10c
A1: Consumption of Contaminated Contaminated Insects by Bullfrog
A2: Short Title | B2: Bullfrog, Insect consumption | E2: BaitInsAlloBW_Ac
A3: Receptor | B3: Bullfrog | E3: Scenario parameter
A4: Duration | B4: Acute
A5: Material consumed | B5: Insects
A6: Parameter/Assumption | B6: Code / Range | C6: Equation/ Value | D6: Units | E6: Reference/Designation
A7: Body weight | B7: BW | C7: 0.01 | D7: kg | E7: Scenario parameter
A8: Allometric coefficients for food consumption per day in grams and BW in grams
B9: alpha | C9: =A02b!$C$6 -> 1.09 | E9: SERA 2010
B10: beta | C10: =A02b!$C$7 -> 0.1723 | E10: SERA 2010
A11: Amount of food consumed per day | B11: Amnt | C11: =C9*((C7*1000)^C10) -> 1.620789065 | D11: grams | E11: Eq
A12: Proportion of diet as bait | B12: PropC
B13: Central | C13: 0.3 | D13: Unitless | E13: Scenario parameter
B14: Lower | C14: 0.1 | E14: Scenario parameter
B15: Upper | C15: 1 | E15: Scenario parameter
A16: Consumption of Insects (unadjusted for a.i.) | B16: Bait | C16: (Amnt x PropC )
B17: Central | C17: =C$11*C13 -> 0.4862367195 | D17: grams
B18: Lower | C18: =C$11*C14 -> 0.1620789065
B19: Upper | C19: =C$11*C15 -> 1.620789065
A20: Residues in insects | B20: Bait | C20: (Amnt x PropC )
B21: Central | C21: ='A01'!C$32 -> 0.2 | D21: µg/g | E21: Worksheet A01
B22: Lower | C22: ='A01'!C$33 -> 0.07 | E22: Worksheet A01
B23: Upper | C23: ='A01'!C$34 -> 0.6 | E23: Worksheet A01
A24: Amount of a.i. consumed | B24: AmntAI | C24: Bait x PerCentAI / 1000 µg/g)
B25: Central | C25: =C21*C17/1000 -> 9.724734389e-05 | D25: mg a.i. | E25: Eq
B26: Lower | C26: =C22*C18/1000 -> 1.134552345e-05 | E26: Eq
B27: Upper | C27: =C23*C19/1000 -> 0.0009724734389 | E27: Eq
A28: Dose | B28: Dose | C28: AmntAI / BW
B29: Central | C29: =C25/C$7 -> 0.009724734389 | D29: mg/kg bw | E29: Eq
B30: Lower | C30: =C26/C$7 -> 0.001134552345 | E30: Eq
B31: Upper | C31: =C27/C$7 -> 0.09724734389 | E31: Eq

Sheet G01
A1: Summary of Rodenticide Exposure Assessments for the Terrestrial Animals
B2: ='A01'!ApRt_C -> 0.000625 | C2: lb a.i./acre | F2: G01V5Rod
A3: Scenario | B3: Receptor | C3: mg/kg/day or mg/kg/event | F3: Detail Worksheet
C4: Central | D4: Lower | E4: Upper
A5: Accidental Acute Exposures
A6: Accidental Spill (Primary Consumption)
A7: Bait | B7: Mouse | C7: =F01a!Dose_C -> 2.678886916 | D7: =F01a!Dose_L -> 0.2678886916 | E7: =F01a!Dose_U -> 8.929623052 | F7: F01a
A8: Bait | B8: Squirrel | C8: =F01b!Dose_C -> 1.158587652 | D8: =F01b!Dose_L -> 0.1158587652 | E8: =F01b!Dose_U -> 3.861958839 | F8: F01b
A9: Bait | B9: Small Passeriine | C9: =F01c!Dose_C -> 3.8090777 | D9: =F01c!Dose_L -> 0.38090777 | E9: =F01c!Dose_U -> 12.69692567 | F9: F01c
A10: Bait | B10: Mallard | C10: =F01d!Dose_C -> 0.8084585431 | D10: =F01d!Dose_L -> 0.08084585431 | E10: =F01d!Dose_U -> 2.69486181 | F10: F01d
A11: Bait | B11: Pigeon | C11: =F01e!Dose_C -> 1.049989151 | D11: =F01e!Dose_L -> 0.1049989151 | E11: =F01e!Dose_U -> 3.499963836 | F11: F01e
A12: Bait | B12: Quail | C12: =F01f!Dose_C -> 0.08046555788 | D12: =F01f!Dose_L -> 0.008046555788 | E12: =F01f!Dose_U -> 0.8046555788 | F12: F01f
A13: Bait | B13: Deer | C13: =F01g!Dose_C -> 0.02744505138 | D13: =F01g!Dose_L -> 0.002744505138 | E13: =F01g!Dose_U -> 0.2744505138 | F13: F01g
A14: Misapplication (Primary Consumption)
A15: Bait | B15: Mouse | C15: =F02a!Dose_C -> 0.2678886916 | D15: =F02a!Dose_L -> 0.02678886916 | E15: =F02a!Dose_U -> 0.8929623052 | F15: F02a
A16: Bait | B16: Squirrel | C16: =F02b!Dose_C -> 0.1158587652 | D16: =F02b!Dose_L -> 0.01158587652 | E16: =F02b!Dose_U -> 0.3861958839 | F16: F02b
A17: Bait | B17: Skunk | C17: =F02c!Dose_C -> 0.03944158698 | D17: =F02c!Dose_L -> 0.003944158698 | E17: =F02c!Dose_U -> 0.1314719566 | F17: F02c
A18: Bait | B18: Small Passeriine | C18: =F02d!Dose_C -> 0.38090777 | D18: =F02d!Dose_L -> 0.038090777 | E18: =F02d!Dose_U -> 1.269692567 | F18: F02d
A19: Bait | B19: Mallard | C19: =F02e!Dose_C -> 0.08084585431 | D19: =F02e!Dose_L -> 0.008084585431 | E19: =F02e!Dose_U -> 0.269486181 | F19: F02e
A20: Bait | B20: Pigeon | C20: =F02f!Dose_C -> 0.1049989151 | D20: =F02f!Dose_L -> 0.01049989151 | E20: =F02f!Dose_U -> 0.3499963836 | F20: F02f
A21: Bait | B21: Quail | C21: =F02g!Dose_C -> 0.1206983368 | D21: =F02g!Dose_L -> 0.01206983368 | E21: =F02g!Dose_U -> 0.4023277894 | F21: F02g
A22: Contaminated Water
A23: Spill | B23: Small Mammal | C23: =F03a!Dose_C -> 9.96085229e-05 | D23: =F03a!Dose_L -> 6.640568193e-05 | E23: =F03a!Dose_U -> 0.0001328113639 | F23: F03a
A24: Spill | B24: Canid | C24: =F03b!Dose_C -> 5.734591665e-05 | D24: =F03b!Dose_L -> 3.82306111e-05 | E24: =F03b!Dose_U -> 7.646122219e-05 | F24: F03b
A25: Spill | B25: Large Mammal | C25: =F03c!Dose_C -> 4.404429832e-05 | D25: =F03c!Dose_L -> 2.936286555e-05 | E25: =F03c!Dose_U -> 5.872573109e-05 | F25: F03c
A26: Spill | B26: Small Bird (Passerine) | C26: =F03d!Dose_C -> 0.0001459743056 | D26: =F03d!Dose_L -> 9.731620374e-05 | E26: =F03d!Dose_U -> 0.0001946324075 | F26: F03d
A27: Spill | B27: Large Bird (Goose) | C27: =F03e!Dose_C -> 2.54060132e-05 | D27: =F03e!Dose_L -> 1.693734214e-05 | E27: =F03e!Dose_U -> 3.387468427e-05 | F27: F03e
A28: Consumption of contaminated Fish
A29: Spill | B29: Fish-eating bird | C29: =F04a!Dose_C -> 8.101450815e-05 | D29: =F04a!Dose_L -> 5.40096721e-06 | E29: =F04a!Dose_U -> 0.0006121096172 | F29: F04a
A30: Non-Accidental Acute Exposures
A31: Primary Consumption
A32: Bait | B32: Mouse | C32: =F05a!Dose_C -> 0.0178592461 | D32: =F05a!Dose_L -> 0.00178592461 | E32: =F05a!Dose_U -> 0.178592461 | F32: F05a
A33: Bait | B33: Squirrel | C33: =F05b!Dose_C -> 0.007723917678 | D33: =F05b!Dose_L -> 0.0007723917678 | E33: =F05b!Dose_U -> 0.07723917678 | F33: F05b
A34: Bait | B34: Skunk | C34: =F05c!Dose_C -> 0.002629439132 | D34: =F05c!Dose_L -> 0.0002629439132 | E34: =F05c!Dose_U -> 0.02629439132 | F34: F05c
A35: Bait | B35: Small Passeriine | C35: =F05d!Dose_C -> 0.0002539385133 | D35: =F05d!Dose_L -> 2.539385133e-05 | E35: =F05d!Dose_U -> 0.002539385133 | F35: F05d
A36: Bait | B36: Mallard | C36: =F05e!Dose_C -> 5.389723621e-05 | D36: =F05e!Dose_L -> 5.389723621e-06 | E36: =F05e!Dose_U -> 0.0005389723621 | F36: F05e
A37: Bait | B37: Pigeon | C37: =F05f!Dose_C -> 6.999927671e-05 | D37: =F05f!Dose_L -> 6.999927671e-06 | E37: =F05f!Dose_U -> 0.0006999927671 | F37: F05f
A38: Bait | B38: Quail | C38: =F05g!Dose_C -> 8.046555788e-05 | D38: =F05g!Dose_L -> 8.046555788e-06 | E38: =F05g!Dose_U -> 0.0008046555788 | F38: F05g
A39: Food cache | B39: Grizzly bear | C39: ='F08'!Dose_C -> 0.0375 | D39: ='F08'!Dose_L -> 0.00125 | E39: ='F08'!Dose_U -> 1.25 | F39: F08
A40: Secondary Consumption
A41: Prairie Dog | B41: Coyete | C41: =F09a!Dose_C -> 0.04153846154 | D41: =F09a!Dose_L -> 0.001038461538 | E41: =F09a!Dose_U -> 0.3255384615 | F41: F09a
A42: Prairie Dog | B42: Badger | C42: =F09b!Dose_C -> 0.07714285714 | D42: =F09b!Dose_L -> 0.001928571429 | E42: =F09b!Dose_U -> 0.6045714286 | F42: F09b
A43: Prairie Dog | B43: Mink | C43: =F09c!Dose_C -> 0.054 | D43: =F09c!Dose_L -> 0.0135 | E43: =F09c!Dose_U -> 0.4232 | F43: F09c
A44: Prairie Dog | B44: Owl | C44: =F09d!Dose_C -> 0.036 | D44: =F09d!Dose_L -> 0.009 | E44: =F09d!Dose_U -> 0.2821333333 | F44: F09d
A45: Prairie Dog | B45: Snake | C45: =F09e!Dose_C -> 0.108 | D45: =F09e!Dose_L -> 0.027 | E45: =F09e!Dose_U -> 0.8464 | F45: F09e
A46: Tertiary Consumption
A47: Insects | B47: Small mammal | C47: =F10a!Dose_C -> 0.01071554766 | D47: =F10a!Dose_L -> 0.001250147227 | E47: =F10a!Dose_U -> 0.1071554766 | F47: F10a
A48: Insects | B48: Small bird (Passerine) | C48: =F10b!Dose_C -> 0.01690574533 | D48: =F10b!Dose_L -> 0.001972336955 | E48: =F10b!Dose_U -> 0.1690574533 | F48: F10b
A49: Insects | B49: Bullfrog | C49: =F10c!Dose_C -> 0.009724734389 | D49: =F10c!Dose_L -> 0.001134552345 | E49: =F10c!Dose_U -> 0.09724734389 | F49: F10c
A50: Contaminated Water
B51: Small Mammal | C51: =F06a!Dose_C -> 1.829962575e-07 | D51: =F06a!Dose_L -> 1.829962575e-08 | E51: =F06a!Dose_U -> 9.149812877e-07 | F51: F06a
B52: Canid | C52: =F06b!Dose_C -> 1.053533154e-07 | D52: =F06b!Dose_L -> 1.053533154e-08 | E52: =F06b!Dose_U -> 5.267665771e-07 | F52: F06b
B53: Large Mammal | C53: =F06c!Dose_C -> 8.091618592e-08 | D53: =F06c!Dose_L -> 8.091618592e-09 | E53: =F06c!Dose_U -> 4.045809296e-07 | F53: F06c
B54: Small Bird (Passerine) | C54: =F06d!Dose_C -> 3.371025398e-07 | D54: =F06d!Dose_L -> 3.371025398e-08 | E54: =F06d!Dose_U -> 1.685512699e-06 | F54: F06d
B55: Large Bird (Goose) | C55: =F06e!Dose_C -> 4.66747744e-08 | D55: =F06e!Dose_L -> 4.66747744e-09 | E55: =F06e!Dose_U -> 2.33373872e-07 | F55: F06e
A56: Consumption of contaminated Fish
B57: Fish-eating bird | C57: =F04b!Dose_C -> 1.488361775e-07 | D57: =F04b!Dose_L -> 1.488361775e-09 | E57: =F04b!Dose_U -> 4.21702503e-06 | F57: F04b
A58: Chronic/Longer Term Exposures
A59: Contaminated Water
B60: Small Mammal | C60: =F07a!Dose_C -> 4.574906438e-09 | D60: =F07a!Dose_L -> 1.829962575e-10 | E60: =F07a!Dose_U -> 2.744943863e-08 | F60: F07a
B61: Canid | C61: =F07c!Dose_C -> 2.022904648e-09 | D61: =F07c!Dose_L -> 8.091618592e-11 | E61: =F07c!Dose_U -> 1.213742789e-08 | F61: F07c
B62: Large Mammal | C62: =F07d!Dose_C -> 8.427563496e-09 | D62: =F07d!Dose_L -> 3.371025398e-10 | E62: =F07d!Dose_U -> 5.056538098e-08 | F62: F07d
B63: Small Bird (Passerine) | C63: =F07b!Dose_C -> 2.633832885e-09 | D63: =F07b!Dose_L -> 1.053533154e-10 | E63: =F07b!Dose_U -> 1.580299731e-08 | F63: F07b
B64: Large Bird (Goose) | C64: =F07e!Dose_C -> 1.16686936e-09 | D64: =F07e!Dose_L -> 4.66747744e-11 | E64: =F07e!Dose_U -> 7.00121616e-09 | F64: F07e
A65: Consumption of contaminated Fish
B66: Fish-eating bird | C66: =F04c!Dose_C -> 3.720904438e-09 | D66: =F04c!Dose_L -> 1.488361775e-11 | E66: =F04c!Dose_U -> 1.265107509e-07 | F66: F04c

Sheet G02
A1: Summary of Rodenticide Hazard Quotients (Toxicity) for the Terrestrial Animals
B2: ='A01'!ApRt_C -> 0.000625 | C2: lb a.i./acre | F2: G01V5Rod
A3: Scenario | B3: Receptor | C3: Hazard Quotients | F3: Toxicity Value
C4: Central | D4: Lower | E4: Upper
A5: Accidental Acute Exposures
A6: Accidental Spill (Primary Consumption)
A7: Bait | B7: Mouse | C7: =F01a!$C$26/$F$7 -> 89.29623052 | D7: =F01a!$C$27/$F$7 -> 8.929623052 | E7: =F01a!$C$28/$F$7 -> 297.6541017 | F7: ='B02'!$E$6 -> 0.03 | G7: NOAEL
A8: Bait | B8: Squirrel | C8: =F01b!$C$26/$F$8 -> 38.61958839 | D8: =F01b!$C$27/$F$8 -> 3.861958839 | E8: =F01b!$C$28/$F$8 -> 128.7319613 | F8: ='B02'!$E$6 -> 0.03 | G8: NOAEL
A9: Bait | B9: Small Passeriine | C9: =F01c!$C$26/$F$9 -> 6.348462834 | D9: =F01c!$C$27/$F$9 -> 0.6348462834 | E9: =F01c!$C$28/$F$9 -> 21.16154278 | F9: ='B02'!$E$8 -> 0.6 | G9: NOAEL
A10: Bait | B10: Mallard | C10: =F01d!$C$26/$F$10 -> 1.347430905 | D10: =F01d!$C$27/$F$10 -> 0.1347430905 | E10: =F01d!$C$28/$F$10 -> 4.491436351 | F10: ='B02'!$E$8 -> 0.6 | G10: NOAEL
A11: Bait | B11: Pigeon | C11: =F01e!$C$26/$F$11 -> 1.749981918 | D11: =F01e!$C$27/$F$11 -> 0.1749981918 | E11: =F01e!$C$28/$F$11 -> 5.833273059 | F11: ='B02'!$E$8 -> 0.6 | G11: NOAEL
A12: Bait | B12: Quail | C12: =F01f!$C$26/$F$12 -> 0.1341092631 | D12: =F01f!$C$27/$F$12 -> 0.01341092631 | E12: =F01f!$C$28/$F$12 -> 1.341092631 | F12: ='B02'!$E$8 -> 0.6 | G12: NOAEL
A13: Bait | B13: Deer | C13: =F01g!$C$26/$F$13 -> 0.9148350461 | D13: =F01g!$C$27/$F$13 -> 0.09148350461 | E13: =F01g!$C$28/$F$13 -> 9.148350461 | F13: ='B02'!$E$6 -> 0.03 | G13: NOAEL
A14: Misapplication (Primary Consumption)
A15: Bait | B15: Mouse | C15: =F02a!$C$26/$F$15 -> 8.929623052 | D15: =F02a!$C$27/$F$15 -> 0.8929623052 | E15: =F02a!$C$28/$F$15 -> 29.76541017 | F15: ='B02'!$E$6 -> 0.03 | G15: NOAEL
A16: Bait | B16: Squirrel | C16: =F02b!$C$26/$F$16 -> 3.861958839 | D16: =F02b!$C$27/$F$16 -> 0.3861958839 | E16: =F02b!$C$28/$F$16 -> 12.87319613 | F16: ='B02'!$E$6 -> 0.03 | G16: NOAEL
A17: Bait | B17: Skunk | C17: =F02c!$C$26/$F$17 -> 1.314719566 | D17: =F02c!$C$27/$F$17 -> 0.1314719566 | E17: =F02c!$C$28/$F$17 -> 4.382398554 | F17: ='B02'!$E$6 -> 0.03 | G17: NOAEL
A18: Bait | B18: Small Passeriine | C18: =F02d!$C$26/$F$18 -> 0.6348462834 | D18: =F02d!$C$27/$F$18 -> 0.06348462834 | E18: =F02d!$C$28/$F$18 -> 2.116154278 | F18: ='B02'!$E$8 -> 0.6 | G18: NOAEL
A19: Bait | B19: Mallard | C19: =F02e!$C$26/$F$19 -> 0.1347430905 | D19: =F02e!$C$27/$F$19 -> 0.01347430905 | E19: =F02e!$C$28/$F$19 -> 0.4491436351 | F19: ='B02'!$E$8 -> 0.6 | G19: NOAEL
A20: Bait | B20: Pigeon | C20: =F02f!$C$26/$F$20 -> 0.1749981918 | D20: =F02f!$C$27/$F$20 -> 0.01749981918 | E20: =F02f!$C$28/$F$20 -> 0.5833273059 | F20: ='B02'!$E$8 -> 0.6 | G20: NOAEL
A21: Bait | B21: Quail | C21: =F02g!$C$26/$F$21 -> 0.2011638947 | D21: =F02g!$C$27/$F$21 -> 0.02011638947 | E21: =F02g!$C$28/$F$21 -> 0.6705463157 | F21: ='B02'!$E$8 -> 0.6 | G21: NOAEL
A22: Contaminated Water
A23: Spill | B23: Small Mammal | C23: =F03a!$C$30/$F$23 -> 0.003320284097 | D23: =F03a!$C$31/$F$23 -> 0.002213522731 | E23: =F03a!$C$32/$F$23 -> 0.004427045462 | F23: ='B02'!$E$6 -> 0.03 | G23: NOAEL
A24: Spill | B24: Canid | C24: =F03b!$C$30/$F$24 -> 0.001911530555 | D24: =F03b!$C$31/$F$24 -> 0.001274353703 | E24: =F03b!$C$32/$F$24 -> 0.002548707406 | F24: ='B02'!$E$6 -> 0.03 | G24: NOAEL
A25: Spill | B25: Large Mammal | C25: =F03c!$C$30/$F$25 -> 0.001468143277 | D25: =F03c!$C$31/$F$25 -> 0.0009787621849 | E25: =F03c!$C$32/$F$25 -> 0.00195752437 | F25: ='B02'!$E$6 -> 0.03 | G25: NOAEL
A26: Spill | B26: Small Bird (Passerine) | C26: =F03d!$C$30/$F$26 -> 0.0002432905093 | D26: =F03d!$C$31/$F$26 -> 0.0001621936729 | E26: =F03d!$C$32/$F$26 -> 0.0003243873458 | F26: ='B02'!$E$8 -> 0.6 | G26: NOAEL
A27: Spill | B27: Large Bird (Goose) | C27: =F03e!$C$30/$F$27 -> 4.234335534e-05 | D27: =F03e!$C$31/$F$27 -> 2.822890356e-05 | E27: =F03e!$C$32/$F$27 -> 5.645780712e-05 | F27: ='B02'!$E$8 -> 0.6 | G27: NOAEL
A28: Consumption of contaminated Fish
A29: Spill | B29: Fish-eating bird | C29: =F04a!$C$47/$F$29 -> 0.0001350241803 | D29: =F04a!$C$48/$F$29 -> 9.001612017e-06 | E29: =F04a!$C$49/$F$29 -> 0.001020182695 | F29: ='B02'!$E$8 -> 0.6 | G29: NOAEL
A30: Non-Accidental Acute Exposures
A31: Primary Consumption
A32: Bait | B32: Mouse | C32: =F05a!$C$26/$F$32 -> 0.5953082035 | D32: =F05a!$C$27/$F$32 -> 0.05953082035 | E32: =F05a!$C$28/$F$32 -> 5.953082035 | F32: ='B02'!$E$6 -> 0.03 | G32: NOAEL
A33: Bait | B33: Squirrel | C33: =F05b!$C$26/$F$33 -> 0.2574639226 | D33: =F05b!$C$27/$F$33 -> 0.02574639226 | E33: =F05b!$C$28/$F$33 -> 2.574639226 | F33: ='B02'!$E$6 -> 0.03 | G33: NOAEL
A34: Bait | B34: Skunk | C34: =F05c!$C$26/$F$34 -> 0.08764797108 | D34: =F05c!$C$27/$F$34 -> 0.008764797108 | E34: =F05c!$C$28/$F$34 -> 0.8764797108 | F34: ='B02'!$E$6 -> 0.03 | G34: NOAEL
A35: Bait | B35: Small Passeriine | C35: =F05d!$C$26/$F$35 -> 0.0004232308556 | D35: =F05d!$C$27/$F$35 -> 4.232308556e-05 | E35: =F05d!$C$28/$F$35 -> 0.004232308556 | F35: ='B02'!$E$8 -> 0.6 | G35: NOAEL
A36: Bait | B36: Mallard | C36: =F05e!$C$26/$F$36 -> 8.982872701e-05 | D36: =F05e!$C$27/$F$36 -> 8.982872701e-06 | E36: =F05e!$C$28/$F$36 -> 0.0008982872701 | F36: ='B02'!$E$8 -> 0.6 | G36: NOAEL
A37: Bait | B37: Pigeon | C37: =F05f!$C$26/$F$37 -> 0.0001166654612 | D37: =F05f!$C$27/$F$37 -> 1.166654612e-05 | E37: =F05f!$C$28/$F$37 -> 0.001166654612 | F37: ='B02'!$E$8 -> 0.6 | G37: NOAEL
A38: Bait | B38: Quail | C38: =F05g!$C$26/$F$38 -> 0.0001341092631 | D38: =F05g!$C$27/$F$38 -> 1.341092631e-05 | E38: =F05g!$C$28/$F$38 -> 0.001341092631 | F38: ='B02'!$E$8 -> 0.6 | G38: NOAEL
A39: Bait | B39: Grizzly bear | C39: ='F08'!$C$22/$F$39 -> 1.25 | D39: ='F08'!$C$23/$F$39 -> 0.04166666667 | E39: ='F08'!$C$24/$F$39 -> 41.66666667 | F39: ='B02'!$E$6 -> 0.03 | G39: NOAEL
A40: Secondary Consumption
A41: Prairie Dog | B41: Coyete | C41: =F09a!$C$30/$F$41 -> 1.384615385 | D41: =F09a!$C$31/$F$41 -> 0.03461538462 | E41: =F09a!$C$32/$F$41 -> 10.85128205 | F41: ='B02'!$E$6 -> 0.03 | G41: NOAEL
A42: Prairie Dog | B42: Badger | C42: =F09b!$C$30/$F$42 -> 2.571428571 | D42: =F09b!$C$31/$F$42 -> 0.06428571429 | E42: =F09b!$C$32/$F$42 -> 20.15238095 | F42: ='B02'!$E$6 -> 0.03 | G42: NOAEL
A43: Prairie Dog | B43: Mink | C43: =F09c!$C$30/$F$43 -> 1.8 | D43: =F09c!$C$31/$F$43 -> 0.45 | E43: =F09c!$C$32/$F$43 -> 14.10666667 | F43: ='B02'!$E$6 -> 0.03 | G43: NOAEL
A44: Prairie Dog | B44: Owl | C44: =F09d!$C$30/$F$44 -> 0.06 | D44: =F09d!$C$31/$F$44 -> 0.015 | E44: =F09d!$C$32/$F$44 -> 0.4702222222 | F44: ='B02'!$E$8 -> 0.6 | G44: NOAEL
A45: Prairie Dog | B45: Snake | C45: Toxicity data not available. | F45: N/A
A46: Tertiary Consumption
A47: Insects | B47: Small mammal | C47: =F10a!$C$29/$F$47 -> 0.3571849221 | D47: =F10a!$C$30/$F$47 -> 0.04167157424 | E47: =F10a!$C$31/$F$47 -> 3.571849221 | F47: ='B02'!$E$6 -> 0.03 | G47: NOAEL
A48: Insects | B48: Small bird (Passerine) | C48: =F10b!$C$29/$F$48 -> 0.02817624222 | D48: =F10b!$C$30/$F$48 -> 0.003287228259 | E48: =F10b!$C$31/$F$48 -> 0.2817624222 | F48: ='B02'!$E$8 -> 0.6 | G48: NOAEL
A49: Insects | B49: Bullfrog | C49: Toxicity data not available. | F49: N/A
A50: Contaminated Water
B51: Small Mammal | C51: =F06a!$C$18/$F$51 -> 6.099875251e-06 | D51: =F06a!$C$19/$F$51 -> 6.099875251e-07 | E51: =F06a!$C$20/$F$51 -> 3.049937626e-05 | F51: ='B02'!$E$6 -> 0.03 | G51: NOAEL
B52: Canid | C52: =F06b!$C$18/$F$52 -> 3.51177718e-06 | D52: =F06b!$C$19/$F$52 -> 3.51177718e-07 | E52: =F06b!$C$20/$F$52 -> 1.75588859e-05 | F52: ='B02'!$E$6 -> 0.03 | G52: NOAEL
B53: Large Mammal | C53: =F06c!$C$18/$F$53 -> 2.697206197e-06 | D53: =F06c!$C$19/$F$53 -> 2.697206197e-07 | E53: =F06c!$C$20/$F$53 -> 1.348603099e-05 | F53: ='B02'!$E$6 -> 0.03 | G53: NOAEL
B54: Small Bird (Passerine) | C54: =F06d!$C$18/$F$54 -> 5.618375664e-07 | D54: =F06d!$C$19/$F$54 -> 5.618375664e-08 | E54: =F06d!$C$20/$F$54 -> 2.809187832e-06 | F54: ='B02'!$E$8 -> 0.6 | G54: NOAEL
B55: Large Bird (Goose) | C55: =F06e!$C$18/$F$55 -> 7.779129067e-08 | D55: =F06e!$C$19/$F$55 -> 7.779129067e-09 | E55: =F06e!$C$20/$F$55 -> 3.889564534e-07 | F55: ='B02'!$E$8 -> 0.6 | G55: NOAEL
A56: Consumption of contaminated Fish
B57: Fish-eating bird | C57: =F04b!$C$47/$F$57 -> 2.480602959e-07 | D57: =F04b!$C$48/$F$57 -> 2.480602959e-09 | E57: =F04b!$C$49/$F$57 -> 7.02837505e-06 | F57: ='B02'!$E$8 -> 0.6 | G57: NOAEL
A58: Chronic/Longer Term Exposures
A59: Contaminated Water
B60: Small Mammal | C60: =F07a!$C$18/$F$60 -> 9.149812877e-07 | D60: =F07a!$C$19/$F$60 -> 3.659925151e-08 | E60: =F07a!$C$20/$F$60 -> 5.489887726e-06 | F60: ='B02'!$E$7 -> 0.005 | G60: NOAEL
B61: Canid | C61: =F07c!$C$18/$F$61 -> 4.045809296e-07 | D61: =F07c!$C$19/$F$61 -> 1.618323718e-08 | E61: =F07c!$C$20/$F$61 -> 2.427485578e-06 | F61: ='B02'!$E$7 -> 0.005 | G61: NOAEL
B62: Large Mammal | C62: =F07d!$C$18/$F$62 -> 1.203937642e-07 | D62: =F07d!$C$19/$F$62 -> 4.815750569e-09 | E62: =F07d!$C$20/$F$62 -> 7.223625854e-07 | F62: ='B02'!$E$9 -> 0.07 | G62: NOAEL
B63: Small Bird (Passerine) | C63: =F07b!$C$18/$F$63 -> 5.267665771e-07 | D63: =F07b!$C$19/$F$63 -> 2.107066308e-08 | E63: =F07b!$C$20/$F$63 -> 3.160599462e-06 | F63: ='B02'!$E$7 -> 0.005 | G63: NOAEL
B64: Large Bird (Goose) | C64: =F07e!$C$18/$F$64 -> 1.666956229e-08 | D64: =F07e!$C$19/$F$64 -> 6.667824915e-10 | E64: =F07e!$C$20/$F$64 -> 1.000173737e-07 | F64: ='B02'!$E$9 -> 0.07 | G64: NOAEL
A65: Consumption of contaminated Fish
B66: Fish-eating bird | C66: =F04c!$C$47/$F$66 -> 5.315577769e-08 | D66: =F04c!$C$48/$F$66 -> 2.126231108e-10 | E66: =F04c!$C$49/$F$66 -> 1.807296441e-06 | F66: ='B02'!$E$9 -> 0.07 | G66: NOAEL

Sheet G03
A1: Worksheet G03: Summary of Hazard Quotients for Aquatic Species
A2: Application Rate: | B2: 0.000625 | C2: lb a.i./acre | F2: AqToxSumV6
A3: Exposures | C3: Concentrations (mg/L)
B4: Scenario | C4: Central | D4: Lower | E4: Upper | F4: Worksheet
B5: Accidental Spill | C5: =B04b!Acute_C -> 0.0006804 | D5: =B04b!Acute_L -> 0.0004536 | E5: =B04b!Acute_U -> 0.0009072 | F5: B04b
B6: Peak EEC | C6: =B04a!Acute_C -> 1.25e-06 | D6: =B04a!Acute_L -> 1.25e-07 | E6: =B04a!Acute_U -> 6.25e-06 | F6: B04a
B7: Chronic | C7: =B04a!Chronic_C -> 3.125e-08 | D7: =B04a!Chronic_L -> 1.25e-09 | E7: =B04a!Chronic_U -> 1.875e-07 | F7: B04a
A8: Receptor | B8: Type | C8: Hazard Quotients | F8: Toxicity Value | G8: Toxicity Endpoint
C9: Central | D9: Lower | E9: Upper
A10: Accidental Acute Exposures | K10: Lower | L10: Central | M10: Upper | N10: Check
A11: Fish | B11: Sensitive | C11: =C$5/$F11 -> 0.00567 | D11: =D$5/$F11 -> 0.00378 | E11: =E$5/$F11 -> 0.00756 | F11: ='B02'!$E$11 -> 0.12 | G11: NOAEC | J11: Fish Sn | K11: =IF(D11>0, D11, "") -> 0.00378 | L11: =IF(ISERROR(C11-K11), "", C11-K11) -> 0.00189 | M11: =IF(ISERROR(E11-C11), "", E11-C11) -> 0.00189 | N11: =E11-SUM(K11:M11) -> 0
B12: Tolerant | C12: =C$5/$F12 -> 0.00189 | D12: 0.00126 | E12: 0.00252 | F12: ='B02'!$E$12 -> 0.36 | G12: NOAEC | J12: Fish Tl | K12: 0.00126 | L12: 0.00063 | M12: 0.00063 | N12: =E12-SUM(K12:M12) -> 0
A13: Amphibian | B13: Sensitive | C13: No toxicity data. | F13: N/A | J13: Amph Sn | N13: =E13-SUM(K13:M13) -> 0
B14: Tolerant | C14: No toxicity data. | F14: N/A | J14: Amph To | N14: 0
A15: Invertebrate | B15: Sensitive | C15: No toxicity data. | F15: N/A | J15: Invt Sn | N15: 0
B16: Tolerant | C16: 0.00243 | D16: 0.00162 | E16: 0.00324 | F16: ='B02'!$E$10 -> 0.28 | G16: NOAEC | J16: Invt Tl | K16: 0.00162 | L16: 0.00081 | M16: 0.00081 | N16: 0
A17: Macrophyte | B17: Sensitive | C17: No toxicity data. | F17: N/A | J17: Plant Sn | N17: 0
B18: Tolerant | C18: No toxicity data. | F18: N/A | J18: Plant Tl | N18: 0
A19: Algae | B19: Sensitive | C19: No toxicity data. | F19: N/A | J19: Algae Sn | N19: 0
B20: Tolerant | C20: No toxicity data. | F20: N/A | J20: Algae Tl | N20: 0
A21: Non-Accidental Acute Exposures
A22: Fish | B22: Sensitive | C22: =C$6/$F22 -> 1.041666667e-05 | D22: =D$6/$F22 -> 1.041666667e-06 | E22: 5.208333333e-05 | F22: ='B02'!$E$11 -> 0.12 | G22: NOAEC | J22: Fish Sn | K22: =IF(D22>0, D22, "") -> 1.041666667e-06 | L22: =IF(ISERROR(C22-K22), "", C22-K22) -> 9.375e-06 | M22: =IF(ISERROR(E22-C22), "", E22-C22) -> 4.166666667e-05 | N22: 0
B23: Tolerant | C23: =C$6/$F23 -> 3.472222222e-06 | D23: 3.472222222e-07 | E23: 1.736111111e-05 | F23: ='B02'!$E$12 -> 0.36 | G23: NOAEC | J23: Fish Tl | K23: 3.472222222e-07 | L23: 3.125e-06 | M23: 1.388888889e-05 | N23: 0
A24: Amphibian | B24: Sensitive | C24: No toxicity data. | F24: N/A | J24: Amph Sn | N24: 0
B25: Tolerant | C25: No toxicity data. | F25: N/A | J25: Amph To | N25: 0
A26: Invertebrate | B26: Sensitive | C26: No toxicity data. | F26: N/A | J26: Invt Sn | N26: 0
B27: Tolerant | C27: 4.464285714e-06 | D27: 4.464285714e-07 | E27: 2.232142857e-05 | F27: ='B02'!$E$10 -> 0.28 | G27: NOAEC | J27: Invt Tl | K27: 4.464285714e-07 | L27: 4.017857143e-06 | M27: 1.785714286e-05 | N27: 0
A28: Macrophyte | B28: Sensitive | C28: No toxicity data. | F28: N/A | J28: Plant Sn | N28: 0
B29: Tolerant | C29: No toxicity data. | F29: N/A | J29: Plant Tl | N29: 0
A30: Algae | B30: Sensitive | C30: No toxicity data. | F30: N/A | J30: Algae Sn | N30: 0
B31: Tolerant | C31: No toxicity data. | F31: N/A | J31: Algae Tl | N31: 0
A32: Chronic/Longer Term Exposures
A33: Fish | B33: Sensitive | C33: No toxicity data. | F33: N/A | J33: Fish Sn | K33: =IF(D33>0, D33, "") ->  | L33: =IF(ISERROR(C33-K33), "", C33-K33) ->  | M33: =IF(ISERROR(E33-C33), "", E33-C33) ->  | N33: 0
B34: Tolerant | C34: No toxicity data. | F34: N/A | J34: Fish Tl | N34: 0
A35: Amphibian | B35: Sensitive | C35: No toxicity data. | F35: N/A | J35: Amph Sn | N35: 0
B36: Tolerant | C36: No toxicity data. | F36: N/A | J36: Amph To | N36: 0
A37: Invertebrate | B37: Sensitive | C37: No toxicity data. | F37: N/A | J37: Invt Sn | N37: 0
B38: Tolerant | C38: No toxicity data. | F38: N/A | J38: Invt Tl | N38: 0
A39: Macrophyte | B39: Sensitive | C39: No toxicity data. | F39: N/A | J39: Plant Sn | N39: 0
B40: Tolerant | C40: No toxicity data. | F40: N/A | J40: Plant Tl | N40: 0
A41: Algae | B41: Sensitive | C41: No toxicity data. | F41: N/A | J41: Algae Sn | N41: 0
B42: Tolerant | C42: No toxicity data. | F42: N/A | J42: Algae Tl | K42: =IF(D42>0, D42, "") ->  | L42: =IF(ISERROR(C42-K42), "", C42-K42) ->  | M42: =IF(ISERROR(E42-C42), "", E42-C42) ->  | N42: 0

Sheet References
A1: References cited in workbook
A2: Citation | B2: Full Reference
A3: Ali et al. 2005 | B3: Ali M; Iqbat F; Salam A; Iram S; Athar M. 2005. Comparative study of body composition of different fish species from brackish water pond. Int J Environ Sci Tech. 2(3): 229-232.
A4: Boxenbaum and D’Souza 1990 | B4: Boxenbaum J; D'Souza R. 1990. Interspecies pharmacokinetic scaling, biological design and neoteny. Adv. Drug Res. 19: 139-195.
A5: Budavari 1989 | B5: Budavari S. (Ed). 1989. The Merck Index: An Encyclopedia of Chemicals, Drugs,and Biologicals, 11th ed. Merck & Co., Inc., Rahway, New Jersey.
A6: Burnmaster 1998 | B6: Burnmaster DE. 1998. Lognormal distribution for total water intake and tap water intake by pregnant and lactating women in the United States. Risk Analysis. 18(5): 215-219
A7: Chapman 1998 | B7: Chapman P. 1998. The Insects: Structure and Function. 4th Edition. Cambridge University Press, Cambridge, UK. 788 pp.
A8: Default | B8: These are plausible default values that are typically used in SERA risk assessments.
A9: Dunning 1993 | B9: Dunning JB. 1993. CRC Handbook of Avian Body Masses. CRC Press, Boca Raton FL, 371 pp.
A10: Durkin et al. 1995 | B10: Durkin PR; Rubin L; Withey J; Meylan W. 1995. Methods of assessing dermal absorption with emphasis on uptake from contaminated vegetation. Toxicol. Indust. Health. 11(1): 63-79.
A11: Fletcher et al. 1994 | B11: Fletcher JS; Nellessen JE; Pfleeger TG. 1994. Literature review and evaluation of the EPA food-chain (Kenega) nomogram, an instrument for estimating pesticide residues on plants. Environ. Toxicol. Chem. 13(9):1383-1391.
A12: Harris and Solomon 1992 | B12: Harris SA; Solomon KR. 1992. Human exposure to 2,4-D following controlled activities on recently sprayed turf. J. Environ. Sci. Health. B27(1): 9-22.
A13: Hoerger and Kenaga 1972 | B13: Hoerger F; Kenaga EE. 1972. Pesticide residues on plants: Correlation of representative data as a basis for estimation of their magnitude in the environment. In: Environmental Quality and Safety, Volume I: Global Aspects of Toxicology and Technology as Applied to the Environment. F. Coulston and F. Kerte (eds.). Academic Press, New York, NY. pp. 9-28.
A14: Humphery and Dykes 2008 | B14: Humphrey JAC; Dykes ES. 2008. Thermal energy conduction in a honey bee comb due to cell-heating bees. J Theoretical Biology. 250 (1): 194-208.
A15: ICRP 1975 | B15: ICRP (International Commission on Radiologic Protection). 1975. Report of the Task Group on Reference Man. Recommendations of the International Commission on Radiological Protection (ICRP) Publ. No. 23. Pergamon Press, New York, NY.
A16: Knisel et al. 1992 | B16: Knisel WG; Davis FM; Leonard RA. 1992. GLEAMS Version 2.0 User Manual. U.S. Department of Agriculture, Agricultural Research Service, Southeast Watershed Research Laboratory, Tifton, GA. 202pp
A17: Manugistics 1995 | B17: Manugistics. 1995. Statgraphics Plus for Windows. Version 3. Available from Manugistics, Inc. Rockville, Maryland.
A18: Mason and Johnson 1987 | B18: Mason RW; Johnson BL. 1987. Ergonomic factors in chemical hazard control. In: Handbook of Human Factors. Salveny, G; ed. John Wiley and Sons, New York, NY. pp. 772-741.
A19: Mendenhall and Scheaffer 1973 | B19: Mendenhall W; Scheaffer RF. 1973. Mathematical Statistics with Applications. Duxbury Press, North Scituate, Massachusetts. 461 pp. plus appendices.
A20: N/A | B20: Not applicable
A21: Nagy 2005 | B21: Nagy KA. 2005. Field metabolic rate and body size. Journal of Experimental Biology. 208: 1621-1625.
A22: Ratnapalan et al. 2003 | B22: Ratnapalan S; Potylitsina Y; Tan LH; Roifman M; Koren G. 2003. Measuring a toddler's mouthful: toxicologic considerations. J Pediatr. 142(6):729-30.
A23: Reichle et al. 1973 | B23: Reichle DE, Goldstein RA; Van Hook RI; Dodson DJ. 1973. Analysis of Insect Consumption in a Forest Canopy. Ecology. 54: 1076-1084.
A24: Reid 2006 | B24: Reid FA. 2006. A Field Guide to Mammals of North America North of Mexico. Fourth Edition. The Peterson Field Guide Series. Houghton Mifflin Company, Boston MA. 570 pp.
A25: Ruffle et al. 1994 | B25: Ruffle B; Burmaster DE; Anderson PD; Gordon HD. 1994. Lognormal distributions for fish consumption by the general U.S. population. Risk Analy. 14(4): 395-404.
A26: SERA 1997 | B26: SERA (Syracuse Environmental Research Associates, Inc.). 1997. Reevaluation of Methods for Assessing Worker Exposure to Pesticides, SERA TR 96-21-08-01, draft dated December 31, 1997. Prepared under USDA/FS Contract 53-3187-5-12. Syracuse Environmental Research Associates, Inc., Fayetteville, NY.
A27: SERA 2005 | B27: SERA (Syracuse Environmental Research Associates, Inc.). 2005. Hexazinone - Human Health and Ecological Risk Assessment– Final Report, SERA SERA TR 05-43-20-03d, Final Report dated October 25, 2005. Available at: http://www.fs.fed.us/foresthealth/pesticide/risk.shtml.
A28: SERA 2007 | B28: SERA (Syracuse Environmental Research Associates, Inc.). 2007. Preparation of Environmental Documentation and Risk Assessments, SERA MD 2007-01a, draft dated July 2001. Syracuse Environmental Research Associates, Inc., Fayetteville, NY. Available at www.sera-inc.com.
A29: SERA 2010 | B29: SERA (Syracuse Environmental Research Associates, Inc.). 2010. Strychnine Human Health and Ecological Risk Assessment, SERA TR-052-17-02a, draft dated February 22, 2010. Syracuse Environmental Research Associates, Inc., Manlius, NY. Available at www.sera-inc.com.
A30: Sibley 2000 | B30: Sibley DA. 2000. The Sibley Guide to Birds. National Audubon Society, Chanticleer Press Edition. Alfred A. Knopf Inc., New York. 545 pp.
A31: Teske et al. 2001 | B31: Teske ME; Bird SL; Esterly DM; Ray SL; Perry SG. 2001. A User’s Guide for AgDRIFT 2.0: A Tiered Approach for the Assesment of Spray Drift. Continuum Dynamics, Inc. Public Use Version. C.D.I. Report No. 01-01. Available, with executable model at: http://www.agdrift.com
A32: U.S. EPA/OPP 1999 | B32: U.S. EPA/OPP ((U.S. Environmental Protection Agency/Office of Pesticide Programs). 1999. ECOFRAM: Terrestrial ECOFRAM Terrestrial Draft Report. Ecological Committee on FIFRA Risk Assessment Methods(ECOFRAM). Report dated May 10, 1999. Available at: http://www.epa.gov/oppefed1/ ecorisk/terrreport.pdf.
A33: U.S. EPA/ORD 1985 | B33: U.S. EPA/ORD (U.S. Environmental Protection Agency/Office of Research and Development). 1985. Development of Statistical Distributions or Ranges of Standard Factors Used in Exposure Assessments, Report prepared by GCA Corp., Chapel Hill. Available from NTIS: PB85-242667.
A34: U.S. EPA/ORD 1992 | B34: U.S. EPA/ORD (U.S. Environmental Protection Agency/Office of Research and Development). 1992. Dermal Exposure Assessment: Principles and Applications. EPA/600/8-91/011B. Interim Report. Exposure Assessment Group, Office of Health and Environmental Assessment, Washington, DC.
A35: U.S. EPA/ORD 1993 | B35: U.S. EPA/ORD (U.S. Environmental Protection Agency/Office of Research and Development). 1993. Wildlife Exposure Factors Handbook. Volumes 1 and 2. EPA/600/R-93/187a,b. Pagination not continuous. Available NTIS: PB94-174778 and PB94-174779.
A36: U.S. EPA/ORD 1996 | B36: U.S. EPA (U.S. Environmental Protection Agency/Office of Research and Development). 1996. Exposure Factors Handbook. National Center for Environmental Assessment, U.S. EPA, Washington, DC. EPA/600/P-95/002Ba-c. Avail. NTIS: PB97-117683, 97-117691, PB97-117709.
A37: U.S. EPA/ORD 1997 | B37: U.S. EPA (U.S. Environmental Protection Agency/Office of Research and Development). 1996. Exposure Factors Handbook. National Center for Environmental Assessment, U.S. EPA, Washington, DC. EPA/600/P-95/002Fa. Available at: http://rais.ornl.gov/homepage/EFH_Final_1997_EPA600P95002Fa.pdf
A38: USDA 1989a | B38: USDA (U.S. Department of Agriculture/Forest Service). 1989a. Final Environmental Impact Statement: Vegetation Management in the Coastal Plain/Piedmont, Management Bulletin R8-MB-23, dated January, 1989. 1213 pp.
A39: USDA 1989b | B39: USDA (U.S. Department of Agriculture/Forest Service). 1989b. Draft Environmental Impact Statement: Vegetation Management in the Ozark/Ouachita Mountains, Management Bulletin R8-MB-23, dated June, 1989. 499 pp.
A40: USDA 1989c | B40: USDA (U.S. Department of Agriculture/Forest Service). 1989c. Final Environmental Impact Statement: Vegetation Management in the Appalachian Mountains, Management Bulletin R8-MB-38, dated July, 1989. 1104 pp.
A41: Waldbauer 1968 | B41: Waldbauer GP. 1968. The consumption and utilization of food by insects. Advan Insect Physiol. 5: 229-288
A42: Winston 1987 | B42: Winston ML. 1987. The Biology of the Honey Bee. Harvard University Press, Cambridge, MA. ISBN 0-674-07409-2 280 pp.
A43: Wolfram Research 1997 | B43: Wolfram Research. 1997. Mathematica Version 3.0.1. Available from Wolfram Research, Inc. Champaign, IL.
